Workbook

Sheet Planilha1
A1: MARINHA DO BRASIL
A2: Noc ANTARES
A4: CALCULO DO OXIGÊNIO DISSOLVIDO NA ÁGUA DO MAR
A8: PERNADA :
A9: PERÍODO :
A10: ESTAÇÃO | B10: DATA | C10: HORA | D10: PROFUND | E10: PROFUND | F10: TEMP (ºC) | G10: TEMP (ºC) | H10: TEMP (K) | I10: SALINIDADE | J10: VOL,gasto | K10: WINKLER | L10: PORCENTAGEM | M10: SOLUBILIDADE | O10: CTD
C11: HMG | D11: LOCAL (m) | E11: COLETA | F11: CTD | G11: BANCADA | I11: PSU | J11: tiossulfato | K11: OD (ml / L) | M11: DO OXIGENIO | O11: OD (ml / L)
H12: =of:=[.G12]+273 -> 273 | K12: =of:=([.J$498]*[.J12]*112/[.J$499])*([.H12]/273) -> 0 | L12: =of:=[.K12]/[.M12] -> 0% | M12: =of:=EXP(-173.4292+249.6339*(100/([.F12]+273.15))+143.3483*LN(([.F12]+273.15)/100)-21.8492*(([.F12]+273.15)/100)+[.I12]*(-0.033096+0.014259*(([.F12]+273.15)/100)-0.0017*((([.F12]+273.15)/100))^2)) -> 10.21803236
A13: POSIÇÃO GEOGRÁFICA | H13: =of:=[.G13]+273 -> 273 | K13: =of:=([.J$498]*[.J13]*112/[.J$499])*([.H13]/273) -> 0 | L13: =of:=[.K13]/[.M13] -> 0% | M13: =of:=EXP(-173.4292+249.6339*(100/([.F13]+273.15))+143.3483*LN(([.F13]+273.15)/100)-21.8492*(([.F13]+273.15)/100)+[.I13]*(-0.033096+0.014259*(([.F13]+273.15)/100)-0.0017*((([.F13]+273.15)/100))^2)) -> 10.21803236
A14: Latitude | H14: =of:=[.G14]+273 -> 273 | K14: =of:=([.J$498]*[.J14]*112/[.J$499])*([.H14]/273) -> 0 | L14: =of:=[.K14]/[.M14] -> 0% | M14: =of:=EXP(-173.4292+249.6339*(100/([.F14]+273.15))+143.3483*LN(([.F14]+273.15)/100)-21.8492*(([.F14]+273.15)/100)+[.I14]*(-0.033096+0.014259*(([.F14]+273.15)/100)-0.0017*((([.F14]+273.15)/100))^2)) -> 10.21803236
A15: Longitude | H15: =of:=[.G15]+273 -> 273 | K15: =of:=([.J$498]*[.J15]*112/[.J$499])*([.H15]/273) -> 0 | L15: =of:=[.K15]/[.M15] -> 0% | M15: =of:=EXP(-173.4292+249.6339*(100/([.F15]+273.15))+143.3483*LN(([.F15]+273.15)/100)-21.8492*(([.F15]+273.15)/100)+[.I15]*(-0.033096+0.014259*(([.F15]+273.15)/100)-0.0017*((([.F15]+273.15)/100))^2)) -> 10.21803236
H16: =of:=[.G16]+273 -> 273 | K16: =of:=([.J$498]*[.J16]*112/[.J$499])*([.H16]/273) -> 0 | L16: =of:=[.K16]/[.M16] -> 0% | M16: =of:=EXP(-173.4292+249.6339*(100/([.F16]+273.15))+143.3483*LN(([.F16]+273.15)/100)-21.8492*(([.F16]+273.15)/100)+[.I16]*(-0.033096+0.014259*(([.F16]+273.15)/100)-0.0017*((([.F16]+273.15)/100))^2)) -> 10.21803236
H17: =of:=[.G17]+273 -> 273 | K17: =of:=([.J$498]*[.J17]*112/[.J$499])*([.H17]/273) -> 0 | L17: =of:=[.K17]/[.M17] -> 0% | M17: =of:=EXP(-173.4292+249.6339*(100/([.F17]+273.15))+143.3483*LN(([.F17]+273.15)/100)-21.8492*(([.F17]+273.15)/100)+[.I17]*(-0.033096+0.014259*(([.F17]+273.15)/100)-0.0017*((([.F17]+273.15)/100))^2)) -> 10.21803236
H18: =of:=[.G18]+273 -> 273 | K18: =of:=([.J$498]*[.J18]*112/[.J$499])*([.H18]/273) -> 0 | L18: =of:=[.K18]/[.M18] -> 0% | M18: =of:=EXP(-173.4292+249.6339*(100/([.F18]+273.15))+143.3483*LN(([.F18]+273.15)/100)-21.8492*(([.F18]+273.15)/100)+[.I18]*(-0.033096+0.014259*(([.F18]+273.15)/100)-0.0017*((([.F18]+273.15)/100))^2)) -> 10.21803236
H19: =of:=[.G19]+273 -> 273 | K19: =of:=([.J$498]*[.J19]*112/[.J$499])*([.H19]/273) -> 0 | L19: =of:=[.K19]/[.M19] -> 0% | M19: =of:=EXP(-173.4292+249.6339*(100/([.F19]+273.15))+143.3483*LN(([.F19]+273.15)/100)-21.8492*(([.F19]+273.15)/100)+[.I19]*(-0.033096+0.014259*(([.F19]+273.15)/100)-0.0017*((([.F19]+273.15)/100))^2)) -> 10.21803236
H20: =of:=[.G20]+273 -> 273 | K20: =of:=([.J$498]*[.J20]*112/[.J$499])*([.H20]/273) -> 0 | L20: =of:=[.K20]/[.M20] -> 0% | M20: =of:=EXP(-173.4292+249.6339*(100/([.F20]+273.15))+143.3483*LN(([.F20]+273.15)/100)-21.8492*(([.F20]+273.15)/100)+[.I20]*(-0.033096+0.014259*(([.F20]+273.15)/100)-0.0017*((([.F20]+273.15)/100))^2)) -> 10.21803236
H21: =of:=[.G21]+273 -> 273 | K21: =of:=([.J$498]*[.J21]*112/[.J$499])*([.H21]/273) -> 0 | L21: =of:=[.K21]/[.M21] -> 0% | M21: =of:=EXP(-173.4292+249.6339*(100/([.F21]+273.15))+143.3483*LN(([.F21]+273.15)/100)-21.8492*(([.F21]+273.15)/100)+[.I21]*(-0.033096+0.014259*(([.F21]+273.15)/100)-0.0017*((([.F21]+273.15)/100))^2)) -> 10.21803236
A22: ESTAÇÃO | B22: DATA | C22: HORA | D22: PROFUND | E22: PROFUND | F22: TEMP (ºC) | G22: TEMP (ºC) | H22: TEMP (K) | I22: SALINIDADE | J22: VOL,gasto | K22: WINKLER | L22: PORCENTAGEM | M22: SOLUBILIDADE | O22: CTD
C23: HMG | D23: LOCAL (m) | E23: COLETA | F23: CTD | G23: BANCADA | I23: PSU | J23: tiossulfato | K23: OD (ml / L) | M23: DO OXIGENIO | O23: OD (ml / L)
H24: =of:=[.F24]+273 -> 273 | K24: =of:=([.J$498]*[.J24]*112/[.J$499])*([.H24]/273) -> 0 | L24: =of:=[.K24]/[.M24] -> 0% | M24: =of:=EXP(-173.4292+249.6339*(100/([.F24]+273.15))+143.3483*LN(([.F24]+273.15)/100)-21.8492*(([.F24]+273.15)/100)+[.I24]*(-0.033096+0.014259*(([.F24]+273.15)/100)-0.0017*((([.F24]+273.15)/100))^2)) -> 10.21803236
A25: POSIÇÃO GEOGRÁFICA | H25: =of:=[.F25]+273 -> 273 | K25: =of:=([.J$498]*[.J25]*112/[.J$499])*([.H25]/273) -> 0 | L25: =of:=[.K25]/[.M25] -> 0% | M25: =of:=EXP(-173.4292+249.6339*(100/([.F25]+273.15))+143.3483*LN(([.F25]+273.15)/100)-21.8492*(([.F25]+273.15)/100)+[.I25]*(-0.033096+0.014259*(([.F25]+273.15)/100)-0.0017*((([.F25]+273.15)/100))^2)) -> 10.21803236
A26: Latitude | H26: =of:=[.G26]+273 -> 273 | K26: =of:=([.J$498]*[.J26]*112/[.J$499])*([.H26]/273) -> 0 | L26: =of:=[.K26]/[.M26] -> 0% | M26: =of:=EXP(-173.4292+249.6339*(100/([.F26]+273.15))+143.3483*LN(([.F26]+273.15)/100)-21.8492*(([.F26]+273.15)/100)+[.I26]*(-0.033096+0.014259*(([.F26]+273.15)/100)-0.0017*((([.F26]+273.15)/100))^2)) -> 10.21803236
A27: Longitude | H27: =of:=[.G27]+273 -> 273 | K27: =of:=([.J$498]*[.J27]*112/[.J$499])*([.H27]/273) -> 0 | L27: =of:=[.K27]/[.M27] -> 0% | M27: =of:=EXP(-173.4292+249.6339*(100/([.F27]+273.15))+143.3483*LN(([.F27]+273.15)/100)-21.8492*(([.F27]+273.15)/100)+[.I27]*(-0.033096+0.014259*(([.F27]+273.15)/100)-0.0017*((([.F27]+273.15)/100))^2)) -> 10.21803236
H28: =of:=[.G28]+273 -> 273 | K28: =of:=([.J$498]*[.J28]*112/[.J$499])*([.H28]/273) -> 0 | L28: =of:=[.K28]/[.M28] -> 0% | M28: =of:=EXP(-173.4292+249.6339*(100/([.F28]+273.15))+143.3483*LN(([.F28]+273.15)/100)-21.8492*(([.F28]+273.15)/100)+[.I28]*(-0.033096+0.014259*(([.F28]+273.15)/100)-0.0017*((([.F28]+273.15)/100))^2)) -> 10.21803236
H29: =of:=[.G29]+273 -> 273 | K29: =of:=([.J$498]*[.J29]*112/[.J$499])*([.H29]/273) -> 0 | L29: =of:=[.K29]/[.M29] -> 0% | M29: =of:=EXP(-173.4292+249.6339*(100/([.F29]+273.15))+143.3483*LN(([.F29]+273.15)/100)-21.8492*(([.F29]+273.15)/100)+[.I29]*(-0.033096+0.014259*(([.F29]+273.15)/100)-0.0017*((([.F29]+273.15)/100))^2)) -> 10.21803236
H30: =of:=[.G30]+273 -> 273 | K30: =of:=([.J$498]*[.J30]*112/[.J$499])*([.H30]/273) -> 0 | L30: =of:=[.K30]/[.M30] -> 0% | M30: =of:=EXP(-173.4292+249.6339*(100/([.F30]+273.15))+143.3483*LN(([.F30]+273.15)/100)-21.8492*(([.F30]+273.15)/100)+[.I30]*(-0.033096+0.014259*(([.F30]+273.15)/100)-0.0017*((([.F30]+273.15)/100))^2)) -> 10.21803236
H31: =of:=[.G31]+273 -> 273 | K31: =of:=([.J$498]*[.J31]*112/[.J$499])*([.H31]/273) -> 0 | L31: =of:=[.K31]/[.M31] -> 0% | M31: =of:=EXP(-173.4292+249.6339*(100/([.F31]+273.15))+143.3483*LN(([.F31]+273.15)/100)-21.8492*(([.F31]+273.15)/100)+[.I31]*(-0.033096+0.014259*(([.F31]+273.15)/100)-0.0017*((([.F31]+273.15)/100))^2)) -> 10.21803236
H32: =of:=[.G32]+273 -> 273 | K32: =of:=([.J$498]*[.J32]*112/[.J$499])*([.H32]/273) -> 0 | L32: =of:=[.K32]/[.M32] -> 0% | M32: =of:=EXP(-173.4292+249.6339*(100/([.F32]+273.15))+143.3483*LN(([.F32]+273.15)/100)-21.8492*(([.F32]+273.15)/100)+[.I32]*(-0.033096+0.014259*(([.F32]+273.15)/100)-0.0017*((([.F32]+273.15)/100))^2)) -> 10.21803236
H33: =of:=[.G33]+273 -> 273 | K33: =of:=([.J$498]*[.J33]*112/[.J$499])*([.H33]/273) -> 0 | L33: =of:=[.K33]/[.M33] -> 0% | M33: =of:=EXP(-173.4292+249.6339*(100/([.F33]+273.15))+143.3483*LN(([.F33]+273.15)/100)-21.8492*(([.F33]+273.15)/100)+[.I33]*(-0.033096+0.014259*(([.F33]+273.15)/100)-0.0017*((([.F33]+273.15)/100))^2)) -> 10.21803236
A34: ESTAÇÃO | B34: DATA | C34: HORA | D34: PROFUND | E34: PROFUND | F34: TEMP (ºC) | G34: TEMP (ºC) | H34: TEMP (K) | I34: SALINIDADE | J34: VOL,gasto | K34: WINKLER | L34: PORCENTAGEM | M34: SOLUBILIDADE | O34: CTD
C35: HMG | D35: LOCAL (m) | E35: COLETA | F35: CTD | G35: BANCADA | I35: PSU | J35: tiossulfato | K35: OD (ml / L) | M35: DO OXIGENIO | O35: OD (ml / L)
H36: =of:=[.G36]+273 -> 273 | K36: =of:=([.J$498]*[.J36]*112/[.J$499])*([.H36]/273) -> 0 | L36: =of:=[.K36]/[.M36] -> 0% | M36: =of:=EXP(-173.4292+249.6339*(100/([.F36]+273.15))+143.3483*LN(([.F36]+273.15)/100)-21.8492*(([.F36]+273.15)/100)+[.I36]*(-0.033096+0.014259*(([.F36]+273.15)/100)-0.0017*((([.F36]+273.15)/100))^2)) -> 10.21803236
A37: POSIÇÃO GEOGRÁFICA | H37: =of:=[.G37]+273 -> 273 | K37: =of:=([.J$498]*[.J37]*112/[.J$499])*([.H37]/273) -> 0 | L37: =of:=[.K37]/[.M37] -> 0% | M37: =of:=EXP(-173.4292+249.6339*(100/([.F37]+273.15))+143.3483*LN(([.F37]+273.15)/100)-21.8492*(([.F37]+273.15)/100)+[.I37]*(-0.033096+0.014259*(([.F37]+273.15)/100)-0.0017*((([.F37]+273.15)/100))^2)) -> 10.21803236
A38: Latitude | H38: =of:=[.G38]+273 -> 273 | K38: =of:=([.J$498]*[.J38]*112/[.J$499])*([.H38]/273) -> 0 | L38: =of:=[.K38]/[.M38] -> 0% | M38: =of:=EXP(-173.4292+249.6339*(100/([.F38]+273.15))+143.3483*LN(([.F38]+273.15)/100)-21.8492*(([.F38]+273.15)/100)+[.I38]*(-0.033096+0.014259*(([.F38]+273.15)/100)-0.0017*((([.F38]+273.15)/100))^2)) -> 10.21803236
A39: Longitude | H39: =of:=[.G39]+273 -> 273 | K39: =of:=([.J$498]*[.J39]*112/[.J$499])*([.H39]/273) -> 0 | L39: =of:=[.K39]/[.M39] -> 0% | M39: =of:=EXP(-173.4292+249.6339*(100/([.F39]+273.15))+143.3483*LN(([.F39]+273.15)/100)-21.8492*(([.F39]+273.15)/100)+[.I39]*(-0.033096+0.014259*(([.F39]+273.15)/100)-0.0017*((([.F39]+273.15)/100))^2)) -> 10.21803236
H40: =of:=[.G40]+273 -> 273 | K40: =of:=([.J$498]*[.J40]*112/[.J$499])*([.H40]/273) -> 0 | L40: =of:=[.K40]/[.M40] -> 0% | M40: =of:=EXP(-173.4292+249.6339*(100/([.F40]+273.15))+143.3483*LN(([.F40]+273.15)/100)-21.8492*(([.F40]+273.15)/100)+[.I40]*(-0.033096+0.014259*(([.F40]+273.15)/100)-0.0017*((([.F40]+273.15)/100))^2)) -> 10.21803236
H41: =of:=[.G41]+273 -> 273 | K41: =of:=([.J$498]*[.J41]*112/[.J$499])*([.H41]/273) -> 0 | L41: =of:=[.K41]/[.M41] -> 0% | M41: =of:=EXP(-173.4292+249.6339*(100/([.F41]+273.15))+143.3483*LN(([.F41]+273.15)/100)-21.8492*(([.F41]+273.15)/100)+[.I41]*(-0.033096+0.014259*(([.F41]+273.15)/100)-0.0017*((([.F41]+273.15)/100))^2)) -> 10.21803236
H42: =of:=[.G42]+273 -> 273 | K42: =of:=([.J$498]*[.J42]*112/[.J$499])*([.H42]/273) -> 0 | L42: =of:=[.K42]/[.M42] -> 0% | M42: =of:=EXP(-173.4292+249.6339*(100/([.F42]+273.15))+143.3483*LN(([.F42]+273.15)/100)-21.8492*(([.F42]+273.15)/100)+[.I42]*(-0.033096+0.014259*(([.F42]+273.15)/100)-0.0017*((([.F42]+273.15)/100))^2)) -> 10.21803236
H43: =of:=[.G43]+273 -> 273 | K43: =of:=([.J$498]*[.J43]*112/[.J$499])*([.H43]/273) -> 0 | L43: =of:=[.K43]/[.M43] -> 0% | M43: =of:=EXP(-173.4292+249.6339*(100/([.F43]+273.15))+143.3483*LN(([.F43]+273.15)/100)-21.8492*(([.F43]+273.15)/100)+[.I43]*(-0.033096+0.014259*(([.F43]+273.15)/100)-0.0017*((([.F43]+273.15)/100))^2)) -> 10.21803236
H44: =of:=[.G44]+273 -> 273 | K44: =of:=([.J$498]*[.J44]*112/[.J$499])*([.H44]/273) -> 0 | L44: =of:=[.K44]/[.M44] -> 0% | M44: =of:=EXP(-173.4292+249.6339*(100/([.F44]+273.15))+143.3483*LN(([.F44]+273.15)/100)-21.8492*(([.F44]+273.15)/100)+[.I44]*(-0.033096+0.014259*(([.F44]+273.15)/100)-0.0017*((([.F44]+273.15)/100))^2)) -> 10.21803236
H45: =of:=[.G45]+273 -> 273 | K45: =of:=([.J$498]*[.J45]*112/[.J$499])*([.H45]/273) -> 0 | L45: =of:=[.K45]/[.M45] -> 0% | M45: =of:=EXP(-173.4292+249.6339*(100/([.F45]+273.15))+143.3483*LN(([.F45]+273.15)/100)-21.8492*(([.F45]+273.15)/100)+[.I45]*(-0.033096+0.014259*(([.F45]+273.15)/100)-0.0017*((([.F45]+273.15)/100))^2)) -> 10.21803236
A46: ESTAÇÃO | B46: DATA | C46: HORA | D46: PROFUND | E46: PROFUND | F46: TEMP (ºC) | G46: TEMP (ºC) | H46: TEMP (K) | I46: SALINIDADE | J46: VOL,gasto | K46: WINKLER | L46: PORCENTAGEM | M46: SOLUBILIDADE | O46: CTD
C47: HMG | D47: LOCAL (m) | E47: COLETA | F47: CTD | G47: BANCADA | I47: PSU | J47: tiossulfato | K47: OD (ml / L) | M47: DO OXIGENIO | O47: OD (ml / L)
H48: =of:=[.G48]+273 -> 273 | K48: =of:=([.J$498]*[.J48]*112/[.J$499])*([.H48]/273) -> 0 | L48: =of:=[.K48]/[.M48] -> 0% | M48: =of:=EXP(-173.4292+249.6339*(100/([.F48]+273.15))+143.3483*LN(([.F48]+273.15)/100)-21.8492*(([.F48]+273.15)/100)+[.I48]*(-0.033096+0.014259*(([.F48]+273.15)/100)-0.0017*((([.F48]+273.15)/100))^2)) -> 10.21803236
A49: POSIÇÃO GEOGRÁFICA | H49: =of:=[.G49]+273 -> 273 | K49: =of:=([.J$498]*[.J49]*112/[.J$499])*([.H49]/273) -> 0 | L49: =of:=[.K49]/[.M49] -> 0% | M49: =of:=EXP(-173.4292+249.6339*(100/([.F49]+273.15))+143.3483*LN(([.F49]+273.15)/100)-21.8492*(([.F49]+273.15)/100)+[.I49]*(-0.033096+0.014259*(([.F49]+273.15)/100)-0.0017*((([.F49]+273.15)/100))^2)) -> 10.21803236
A50: Latitude | H50: =of:=[.G50]+273 -> 273 | K50: =of:=([.J$498]*[.J50]*112/[.J$499])*([.H50]/273) -> 0 | L50: =of:=[.K50]/[.M50] -> 0% | M50: =of:=EXP(-173.4292+249.6339*(100/([.F50]+273.15))+143.3483*LN(([.F50]+273.15)/100)-21.8492*(([.F50]+273.15)/100)+[.I50]*(-0.033096+0.014259*(([.F50]+273.15)/100)-0.0017*((([.F50]+273.15)/100))^2)) -> 10.21803236
A51: Longitude | H51: =of:=[.G51]+273 -> 273 | K51: =of:=([.J$498]*[.J51]*112/[.J$499])*([.H51]/273) -> 0 | L51: =of:=[.K51]/[.M51] -> 0% | M51: =of:=EXP(-173.4292+249.6339*(100/([.F51]+273.15))+143.3483*LN(([.F51]+273.15)/100)-21.8492*(([.F51]+273.15)/100)+[.I51]*(-0.033096+0.014259*(([.F51]+273.15)/100)-0.0017*((([.F51]+273.15)/100))^2)) -> 10.21803236
H52: =of:=[.G52]+273 -> 273 | K52: =of:=([.J$498]*[.J52]*112/[.J$499])*([.H52]/273) -> 0 | L52: =of:=[.K52]/[.M52] -> 0% | M52: =of:=EXP(-173.4292+249.6339*(100/([.F52]+273.15))+143.3483*LN(([.F52]+273.15)/100)-21.8492*(([.F52]+273.15)/100)+[.I52]*(-0.033096+0.014259*(([.F52]+273.15)/100)-0.0017*((([.F52]+273.15)/100))^2)) -> 10.21803236
H53: =of:=[.G53]+273 -> 273 | K53: =of:=([.J$498]*[.J53]*112/[.J$499])*([.H53]/273) -> 0 | L53: =of:=[.K53]/[.M53] -> 0% | M53: =of:=EXP(-173.4292+249.6339*(100/([.F53]+273.15))+143.3483*LN(([.F53]+273.15)/100)-21.8492*(([.F53]+273.15)/100)+[.I53]*(-0.033096+0.014259*(([.F53]+273.15)/100)-0.0017*((([.F53]+273.15)/100))^2)) -> 10.21803236
H54: =of:=[.G54]+273 -> 273 | K54: =of:=([.J$498]*[.J54]*112/[.J$499])*([.H54]/273) -> 0 | L54: =of:=[.K54]/[.M54] -> 0% | M54: =of:=EXP(-173.4292+249.6339*(100/([.F54]+273.15))+143.3483*LN(([.F54]+273.15)/100)-21.8492*(([.F54]+273.15)/100)+[.I54]*(-0.033096+0.014259*(([.F54]+273.15)/100)-0.0017*((([.F54]+273.15)/100))^2)) -> 10.21803236
H55: =of:=[.G55]+273 -> 273 | K55: =of:=([.J$498]*[.J55]*112/[.J$499])*([.H55]/273) -> 0 | L55: =of:=[.K55]/[.M55] -> 0% | M55: =of:=EXP(-173.4292+249.6339*(100/([.F55]+273.15))+143.3483*LN(([.F55]+273.15)/100)-21.8492*(([.F55]+273.15)/100)+[.I55]*(-0.033096+0.014259*(([.F55]+273.15)/100)-0.0017*((([.F55]+273.15)/100))^2)) -> 10.21803236
H56: =of:=[.G56]+273 -> 273 | K56: =of:=([.J$498]*[.J56]*112/[.J$499])*([.H56]/273) -> 0 | L56: =of:=[.K56]/[.M56] -> 0% | M56: =of:=EXP(-173.4292+249.6339*(100/([.F56]+273.15))+143.3483*LN(([.F56]+273.15)/100)-21.8492*(([.F56]+273.15)/100)+[.I56]*(-0.033096+0.014259*(([.F56]+273.15)/100)-0.0017*((([.F56]+273.15)/100))^2)) -> 10.21803236
H57: =of:=[.G57]+273 -> 273 | K57: =of:=([.J$498]*[.J57]*112/[.J$499])*([.H57]/273) -> 0 | L57: =of:=[.K57]/[.M57] -> 0% | M57: =of:=EXP(-173.4292+249.6339*(100/([.F57]+273.15))+143.3483*LN(([.F57]+273.15)/100)-21.8492*(([.F57]+273.15)/100)+[.I57]*(-0.033096+0.014259*(([.F57]+273.15)/100)-0.0017*((([.F57]+273.15)/100))^2)) -> 10.21803236
A58: ESTAÇÃO | B58: DATA | C58: HORA | D58: PROFUND | E58: PROFUND | F58: TEMP (ºC) | G58: TEMP (ºC) | H58: TEMP (K) | I58: SALINIDADE | J58: VOL,gasto | K58: WINKLER | L58: PORCENTAGEM | M58: SOLUBILIDADE | O58: CTD
C59: HMG | D59: LOCAL (m) | E59: COLETA | F59: CTD | G59: BANCADA | I59: PSU | J59: tiossulfato | K59: OD (ml / L) | M59: DO OXIGENIO | O59: OD (ml / L)
H60: =of:=[.G60]+273 -> 273 | K60: =of:=([.J$498]*[.J60]*112/[.J$499])*([.H60]/273) -> 0 | L60: =of:=[.K60]/[.M60] -> 0% | M60: =of:=EXP(-173.4292+249.6339*(100/([.F60]+273.15))+143.3483*LN(([.F60]+273.15)/100)-21.8492*(([.F60]+273.15)/100)+[.I60]*(-0.033096+0.014259*(([.F60]+273.15)/100)-0.0017*((([.F60]+273.15)/100))^2)) -> 10.21803236
A61: POSIÇÃO GEOGRÁFICA | H61: =of:=[.G61]+273 -> 273 | K61: =of:=([.J$498]*[.J61]*112/[.J$499])*([.H61]/273) -> 0 | L61: =of:=[.K61]/[.M61] -> 0% | M61: =of:=EXP(-173.4292+249.6339*(100/([.F61]+273.15))+143.3483*LN(([.F61]+273.15)/100)-21.8492*(([.F61]+273.15)/100)+[.I61]*(-0.033096+0.014259*(([.F61]+273.15)/100)-0.0017*((([.F61]+273.15)/100))^2)) -> 10.21803236
A62: Latitude | H62: =of:=[.G62]+273 -> 273 | K62: =of:=([.J$498]*[.J62]*112/[.J$499])*([.H62]/273) -> 0 | L62: =of:=[.K62]/[.M62] -> 0% | M62: =of:=EXP(-173.4292+249.6339*(100/([.F62]+273.15))+143.3483*LN(([.F62]+273.15)/100)-21.8492*(([.F62]+273.15)/100)+[.I62]*(-0.033096+0.014259*(([.F62]+273.15)/100)-0.0017*((([.F62]+273.15)/100))^2)) -> 10.21803236
A63: Longitude | H63: =of:=[.G63]+273 -> 273 | K63: =of:=([.J$498]*[.J63]*112/[.J$499])*([.H63]/273) -> 0 | L63: =of:=[.K63]/[.M63] -> 0% | M63: =of:=EXP(-173.4292+249.6339*(100/([.F63]+273.15))+143.3483*LN(([.F63]+273.15)/100)-21.8492*(([.F63]+273.15)/100)+[.I63]*(-0.033096+0.014259*(([.F63]+273.15)/100)-0.0017*((([.F63]+273.15)/100))^2)) -> 10.21803236
H64: =of:=[.G64]+273 -> 273 | K64: =of:=([.J$498]*[.J64]*112/[.J$499])*([.H64]/273) -> 0 | L64: =of:=[.K64]/[.M64] -> 0% | M64: =of:=EXP(-173.4292+249.6339*(100/([.F64]+273.15))+143.3483*LN(([.F64]+273.15)/100)-21.8492*(([.F64]+273.15)/100)+[.I64]*(-0.033096+0.014259*(([.F64]+273.15)/100)-0.0017*((([.F64]+273.15)/100))^2)) -> 10.21803236
H65: =of:=[.G65]+273 -> 273 | K65: =of:=([.J$498]*[.J65]*112/[.J$499])*([.H65]/273) -> 0 | L65: =of:=[.K65]/[.M65] -> 0% | M65: =of:=EXP(-173.4292+249.6339*(100/([.F65]+273.15))+143.3483*LN(([.F65]+273.15)/100)-21.8492*(([.F65]+273.15)/100)+[.I65]*(-0.033096+0.014259*(([.F65]+273.15)/100)-0.0017*((([.F65]+273.15)/100))^2)) -> 10.21803236
H66: =of:=[.G66]+273 -> 273 | K66: =of:=([.J$498]*[.J66]*112/[.J$499])*([.H66]/273) -> 0 | L66: =of:=[.K66]/[.M66] -> 0% | M66: =of:=EXP(-173.4292+249.6339*(100/([.F66]+273.15))+143.3483*LN(([.F66]+273.15)/100)-21.8492*(([.F66]+273.15)/100)+[.I66]*(-0.033096+0.014259*(([.F66]+273.15)/100)-0.0017*((([.F66]+273.15)/100))^2)) -> 10.21803236
H67: =of:=[.G67]+273 -> 273 | K67: =of:=([.J$498]*[.J67]*112/[.J$499])*([.H67]/273) -> 0 | L67: =of:=[.K67]/[.M67] -> 0% | M67: =of:=EXP(-173.4292+249.6339*(100/([.F67]+273.15))+143.3483*LN(([.F67]+273.15)/100)-21.8492*(([.F67]+273.15)/100)+[.I67]*(-0.033096+0.014259*(([.F67]+273.15)/100)-0.0017*((([.F67]+273.15)/100))^2)) -> 10.21803236
H68: =of:=[.G68]+273 -> 273 | K68: =of:=([.J$498]*[.J68]*112/[.J$499])*([.H68]/273) -> 0 | L68: =of:=[.K68]/[.M68] -> 0% | M68: =of:=EXP(-173.4292+249.6339*(100/([.F68]+273.15))+143.3483*LN(([.F68]+273.15)/100)-21.8492*(([.F68]+273.15)/100)+[.I68]*(-0.033096+0.014259*(([.F68]+273.15)/100)-0.0017*((([.F68]+273.15)/100))^2)) -> 10.21803236
H69: =of:=[.G69]+273 -> 273 | K69: =of:=([.J$498]*[.J69]*112/[.J$499])*([.H69]/273) -> 0 | L69: =of:=[.K69]/[.M69] -> 0% | M69: =of:=EXP(-173.4292+249.6339*(100/([.F69]+273.15))+143.3483*LN(([.F69]+273.15)/100)-21.8492*(([.F69]+273.15)/100)+[.I69]*(-0.033096+0.014259*(([.F69]+273.15)/100)-0.0017*((([.F69]+273.15)/100))^2)) -> 10.21803236
A70: ESTAÇÃO | B70: DATA | C70: HORA | D70: PROFUND | E70: PROFUND | F70: TEMP (ºC) | G70: TEMP (ºC) | H70: TEMP (K) | I70: SALINIDADE | J70: VOL,gasto | K70: WINKLER | L70: PORCENTAGEM | M70: SOLUBILIDADE | O70: CTD
C71: HMG | D71: LOCAL (m) | E71: COLETA | F71: CTD | G71: BANCADA | I71: PSU | J71: tiossulfato | K71: OD (ml / L) | M71: DO OXIGENIO | O71: OD (ml / L)
H72: =of:=[.G72]+273 -> 273 | K72: =of:=([.J$498]*[.J72]*112/[.J$499])*([.H72]/273) -> 0 | L72: =of:=[.K72]/[.M72] -> 0% | M72: =of:=EXP(-173.4292+249.6339*(100/([.F72]+273.15))+143.3483*LN(([.F72]+273.15)/100)-21.8492*(([.F72]+273.15)/100)+[.I72]*(-0.033096+0.014259*(([.F72]+273.15)/100)-0.0017*((([.F72]+273.15)/100))^2)) -> 10.21803236
A73: POSIÇÃO GEOGRÁFICA | H73: =of:=[.G73]+273 -> 273 | K73: =of:=([.J$498]*[.J73]*112/[.J$499])*([.H73]/273) -> 0 | L73: =of:=[.K73]/[.M73] -> 0% | M73: =of:=EXP(-173.4292+249.6339*(100/([.F73]+273.15))+143.3483*LN(([.F73]+273.15)/100)-21.8492*(([.F73]+273.15)/100)+[.I73]*(-0.033096+0.014259*(([.F73]+273.15)/100)-0.0017*((([.F73]+273.15)/100))^2)) -> 10.21803236
A74: Latitude | H74: =of:=[.G74]+273 -> 273 | K74: =of:=([.J$498]*[.J74]*112/[.J$499])*([.H74]/273) -> 0 | L74: =of:=[.K74]/[.M74] -> 0% | M74: =of:=EXP(-173.4292+249.6339*(100/([.F74]+273.15))+143.3483*LN(([.F74]+273.15)/100)-21.8492*(([.F74]+273.15)/100)+[.I74]*(-0.033096+0.014259*(([.F74]+273.15)/100)-0.0017*((([.F74]+273.15)/100))^2)) -> 10.21803236
A75: Longitude | H75: =of:=[.G75]+273 -> 273 | K75: =of:=([.J$498]*[.J75]*112/[.J$499])*([.H75]/273) -> 0 | L75: =of:=[.K75]/[.M75] -> 0% | M75: =of:=EXP(-173.4292+249.6339*(100/([.F75]+273.15))+143.3483*LN(([.F75]+273.15)/100)-21.8492*(([.F75]+273.15)/100)+[.I75]*(-0.033096+0.014259*(([.F75]+273.15)/100)-0.0017*((([.F75]+273.15)/100))^2)) -> 10.21803236
H76: =of:=[.G76]+273 -> 273 | K76: =of:=([.J$498]*[.J76]*112/[.J$499])*([.H76]/273) -> 0 | L76: =of:=[.K76]/[.M76] -> 0% | M76: =of:=EXP(-173.4292+249.6339*(100/([.F76]+273.15))+143.3483*LN(([.F76]+273.15)/100)-21.8492*(([.F76]+273.15)/100)+[.I76]*(-0.033096+0.014259*(([.F76]+273.15)/100)-0.0017*((([.F76]+273.15)/100))^2)) -> 10.21803236
H77: =of:=[.G77]+273 -> 273 | K77: =of:=([.J$498]*[.J77]*112/[.J$499])*([.H77]/273) -> 0 | L77: =of:=[.K77]/[.M77] -> 0% | M77: =of:=EXP(-173.4292+249.6339*(100/([.F77]+273.15))+143.3483*LN(([.F77]+273.15)/100)-21.8492*(([.F77]+273.15)/100)+[.I77]*(-0.033096+0.014259*(([.F77]+273.15)/100)-0.0017*((([.F77]+273.15)/100))^2)) -> 10.21803236
H78: =of:=[.G78]+273 -> 273 | K78: =of:=([.J$498]*[.J78]*112/[.J$499])*([.H78]/273) -> 0 | L78: =of:=[.K78]/[.M78] -> 0% | M78: =of:=EXP(-173.4292+249.6339*(100/([.F78]+273.15))+143.3483*LN(([.F78]+273.15)/100)-21.8492*(([.F78]+273.15)/100)+[.I78]*(-0.033096+0.014259*(([.F78]+273.15)/100)-0.0017*((([.F78]+273.15)/100))^2)) -> 10.21803236
H79: =of:=[.G79]+273 -> 273 | K79: =of:=([.J$498]*[.J79]*112/[.J$499])*([.H79]/273) -> 0 | L79: =of:=[.K79]/[.M79] -> 0% | M79: =of:=EXP(-173.4292+249.6339*(100/([.F79]+273.15))+143.3483*LN(([.F79]+273.15)/100)-21.8492*(([.F79]+273.15)/100)+[.I79]*(-0.033096+0.014259*(([.F79]+273.15)/100)-0.0017*((([.F79]+273.15)/100))^2)) -> 10.21803236
H80: =of:=[.G80]+273 -> 273 | K80: =of:=([.J$498]*[.J80]*112/[.J$499])*([.H80]/273) -> 0 | L80: =of:=[.K80]/[.M80] -> 0% | M80: =of:=EXP(-173.4292+249.6339*(100/([.F80]+273.15))+143.3483*LN(([.F80]+273.15)/100)-21.8492*(([.F80]+273.15)/100)+[.I80]*(-0.033096+0.014259*(([.F80]+273.15)/100)-0.0017*((([.F80]+273.15)/100))^2)) -> 10.21803236
H81: =of:=[.G81]+273 -> 273 | K81: =of:=([.J$498]*[.J81]*112/[.J$499])*([.H81]/273) -> 0 | L81: =of:=[.K81]/[.M81] -> 0% | M81: =of:=EXP(-173.4292+249.6339*(100/([.F81]+273.15))+143.3483*LN(([.F81]+273.15)/100)-21.8492*(([.F81]+273.15)/100)+[.I81]*(-0.033096+0.014259*(([.F81]+273.15)/100)-0.0017*((([.F81]+273.15)/100))^2)) -> 10.21803236
A82: ESTAÇÃO | B82: DATA | C82: HORA | D82: PROFUND | E82: PROFUND | F82: TEMP (ºC) | G82: TEMP (ºC) | H82: TEMP (K) | I82: SALINIDADE | J82: VOL,gasto | K82: WINKLER | L82: PORCENTAGEM | M82: SOLUBILIDADE | O82: CTD
C83: HMG | D83: LOCAL (m) | E83: COLETA | F83: CTD | G83: BANCADA | I83: PSU | J83: tiossulfato | K83: OD (ml / L) | M83: DO OXIGENIO | O83: OD (ml / L)
H84: =of:=[.G84]+273 -> 273 | K84: =of:=([.J$498]*[.J84]*112/[.J$499])*([.H84]/273) -> 0 | L84: =of:=[.K84]/[.M84] -> 0% | M84: =of:=EXP(-173.4292+249.6339*(100/([.F84]+273.15))+143.3483*LN(([.F84]+273.15)/100)-21.8492*(([.F84]+273.15)/100)+[.I84]*(-0.033096+0.014259*(([.F84]+273.15)/100)-0.0017*((([.F84]+273.15)/100))^2)) -> 10.21803236
A85: POSIÇÃO GEOGRÁFICA | H85: =of:=[.G85]+273 -> 273 | K85: =of:=([.J$498]*[.J85]*112/[.J$499])*([.H85]/273) -> 0 | L85: =of:=[.K85]/[.M85] -> 0% | M85: =of:=EXP(-173.4292+249.6339*(100/([.F85]+273.15))+143.3483*LN(([.F85]+273.15)/100)-21.8492*(([.F85]+273.15)/100)+[.I85]*(-0.033096+0.014259*(([.F85]+273.15)/100)-0.0017*((([.F85]+273.15)/100))^2)) -> 10.21803236
A86: Latitude | H86: =of:=[.G86]+273 -> 273 | K86: =of:=([.J$498]*[.J86]*112/[.J$499])*([.H86]/273) -> 0 | L86: =of:=[.K86]/[.M86] -> 0% | M86: =of:=EXP(-173.4292+249.6339*(100/([.F86]+273.15))+143.3483*LN(([.F86]+273.15)/100)-21.8492*(([.F86]+273.15)/100)+[.I86]*(-0.033096+0.014259*(([.F86]+273.15)/100)-0.0017*((([.F86]+273.15)/100))^2)) -> 10.21803236
A87: Longitude | H87: =of:=[.G87]+273 -> 273 | K87: =of:=([.J$498]*[.J87]*112/[.J$499])*([.H87]/273) -> 0 | L87: =of:=[.K87]/[.M87] -> 0% | M87: =of:=EXP(-173.4292+249.6339*(100/([.F87]+273.15))+143.3483*LN(([.F87]+273.15)/100)-21.8492*(([.F87]+273.15)/100)+[.I87]*(-0.033096+0.014259*(([.F87]+273.15)/100)-0.0017*((([.F87]+273.15)/100))^2)) -> 10.21803236
H88: =of:=[.G88]+273 -> 273 | K88: =of:=([.J$498]*[.J88]*112/[.J$499])*([.H88]/273) -> 0 | L88: =of:=[.K88]/[.M88] -> 0% | M88: =of:=EXP(-173.4292+249.6339*(100/([.F88]+273.15))+143.3483*LN(([.F88]+273.15)/100)-21.8492*(([.F88]+273.15)/100)+[.I88]*(-0.033096+0.014259*(([.F88]+273.15)/100)-0.0017*((([.F88]+273.15)/100))^2)) -> 10.21803236
H89: =of:=[.G89]+273 -> 273 | K89: =of:=([.J$498]*[.J89]*112/[.J$499])*([.H89]/273) -> 0 | L89: =of:=[.K89]/[.M89] -> 0% | M89: =of:=EXP(-173.4292+249.6339*(100/([.F89]+273.15))+143.3483*LN(([.F89]+273.15)/100)-21.8492*(([.F89]+273.15)/100)+[.I89]*(-0.033096+0.014259*(([.F89]+273.15)/100)-0.0017*((([.F89]+273.15)/100))^2)) -> 10.21803236
H90: =of:=[.G90]+273 -> 273 | K90: =of:=([.J$498]*[.J90]*112/[.J$499])*([.H90]/273) -> 0 | L90: =of:=[.K90]/[.M90] -> 0% | M90: =of:=EXP(-173.4292+249.6339*(100/([.F90]+273.15))+143.3483*LN(([.F90]+273.15)/100)-21.8492*(([.F90]+273.15)/100)+[.I90]*(-0.033096+0.014259*(([.F90]+273.15)/100)-0.0017*((([.F90]+273.15)/100))^2)) -> 10.21803236
H91: =of:=[.G91]+273 -> 273 | K91: =of:=([.J$498]*[.J91]*112/[.J$499])*([.H91]/273) -> 0 | L91: =of:=[.K91]/[.M91] -> 0% | M91: =of:=EXP(-173.4292+249.6339*(100/([.F91]+273.15))+143.3483*LN(([.F91]+273.15)/100)-21.8492*(([.F91]+273.15)/100)+[.I91]*(-0.033096+0.014259*(([.F91]+273.15)/100)-0.0017*((([.F91]+273.15)/100))^2)) -> 10.21803236
H92: =of:=[.G92]+273 -> 273 | K92: =of:=([.J$498]*[.J92]*112/[.J$499])*([.H92]/273) -> 0 | L92: =of:=[.K92]/[.M92] -> 0% | M92: =of:=EXP(-173.4292+249.6339*(100/([.F92]+273.15))+143.3483*LN(([.F92]+273.15)/100)-21.8492*(([.F92]+273.15)/100)+[.I92]*(-0.033096+0.014259*(([.F92]+273.15)/100)-0.0017*((([.F92]+273.15)/100))^2)) -> 10.21803236
H93: =of:=[.G93]+273 -> 273 | K93: =of:=([.J$498]*[.J93]*112/[.J$499])*([.H93]/273) -> 0 | L93: =of:=[.K93]/[.M93] -> 0% | M93: =of:=EXP(-173.4292+249.6339*(100/([.F93]+273.15))+143.3483*LN(([.F93]+273.15)/100)-21.8492*(([.F93]+273.15)/100)+[.I93]*(-0.033096+0.014259*(([.F93]+273.15)/100)-0.0017*((([.F93]+273.15)/100))^2)) -> 10.21803236
A94: ESTAÇÃO | B94: DATA | C94: HORA | D94: PROFUND | E94: PROFUND | F94: TEMP (ºC) | G94: TEMP (ºC) | H94: TEMP (K) | I94: SALINIDADE | J94: VOL,gasto | K94: WINKLER | L94: PORCENTAGEM | M94: SOLUBILIDADE | O94: CTD
C95: HMG | D95: LOCAL (m) | E95: COLETA | F95: CTD | G95: BANCADA | I95: PSU | J95: tiossulfato | K95: OD (ml / L) | M95: DO OXIGENIO | O95: OD (ml / L)
H96: =of:=[.G96]+273 -> 273 | K96: =of:=([.J$498]*[.J96]*112/[.J$499])*([.H96]/273) -> 0 | L96: =of:=[.K96]/[.M96] -> 0% | M96: =of:=EXP(-173.4292+249.6339*(100/([.F96]+273.15))+143.3483*LN(([.F96]+273.15)/100)-21.8492*(([.F96]+273.15)/100)+[.I96]*(-0.033096+0.014259*(([.F96]+273.15)/100)-0.0017*((([.F96]+273.15)/100))^2)) -> 10.21803236
A97: POSIÇÃO GEOGRÁFICA | H97: =of:=[.G97]+273 -> 273 | K97: =of:=([.J$498]*[.J97]*112/[.J$499])*([.H97]/273) -> 0 | L97: =of:=[.K97]/[.M97] -> 0% | M97: =of:=EXP(-173.4292+249.6339*(100/([.F97]+273.15))+143.3483*LN(([.F97]+273.15)/100)-21.8492*(([.F97]+273.15)/100)+[.I97]*(-0.033096+0.014259*(([.F97]+273.15)/100)-0.0017*((([.F97]+273.15)/100))^2)) -> 10.21803236
A98: Latitude | H98: =of:=[.G98]+273 -> 273 | K98: =of:=([.J$498]*[.J98]*112/[.J$499])*([.H98]/273) -> 0 | L98: =of:=[.K98]/[.M98] -> 0% | M98: =of:=EXP(-173.4292+249.6339*(100/([.F98]+273.15))+143.3483*LN(([.F98]+273.15)/100)-21.8492*(([.F98]+273.15)/100)+[.I98]*(-0.033096+0.014259*(([.F98]+273.15)/100)-0.0017*((([.F98]+273.15)/100))^2)) -> 10.21803236
A99: Longitude | H99: =of:=[.G99]+273 -> 273 | K99: =of:=([.J$498]*[.J99]*112/[.J$499])*([.H99]/273) -> 0 | L99: =of:=[.K99]/[.M99] -> 0% | M99: =of:=EXP(-173.4292+249.6339*(100/([.F99]+273.15))+143.3483*LN(([.F99]+273.15)/100)-21.8492*(([.F99]+273.15)/100)+[.I99]*(-0.033096+0.014259*(([.F99]+273.15)/100)-0.0017*((([.F99]+273.15)/100))^2)) -> 10.21803236
H100: =of:=[.G100]+273 -> 273 | K100: =of:=([.J$498]*[.J100]*112/[.J$499])*([.H100]/273) -> 0 | L100: =of:=[.K100]/[.M100] -> 0% | M100: =of:=EXP(-173.4292+249.6339*(100/([.F100]+273.15))+143.3483*LN(([.F100]+273.15)/100)-21.8492*(([.F100]+273.15)/100)+[.I100]*(-0.033096+0.014259*(([.F100]+273.15)/100)-0.0017*((([.F100]+273.15)/100))^2)) -> 10.21803236
H101: =of:=[.G101]+273 -> 273 | K101: =of:=([.J$498]*[.J101]*112/[.J$499])*([.H101]/273) -> 0 | L101: =of:=[.K101]/[.M101] -> 0% | M101: =of:=EXP(-173.4292+249.6339*(100/([.F101]+273.15))+143.3483*LN(([.F101]+273.15)/100)-21.8492*(([.F101]+273.15)/100)+[.I101]*(-0.033096+0.014259*(([.F101]+273.15)/100)-0.0017*((([.F101]+273.15)/100))^2)) -> 10.21803236
H102: =of:=[.G102]+273 -> 273 | K102: =of:=([.J$498]*[.J102]*112/[.J$499])*([.H102]/273) -> 0 | L102: =of:=[.K102]/[.M102] -> 0% | M102: =of:=EXP(-173.4292+249.6339*(100/([.F102]+273.15))+143.3483*LN(([.F102]+273.15)/100)-21.8492*(([.F102]+273.15)/100)+[.I102]*(-0.033096+0.014259*(([.F102]+273.15)/100)-0.0017*((([.F102]+273.15)/100))^2)) -> 10.21803236
H103: =of:=[.G103]+273 -> 273 | K103: =of:=([.J$498]*[.J103]*112/[.J$499])*([.H103]/273) -> 0 | L103: =of:=[.K103]/[.M103] -> 0% | M103: =of:=EXP(-173.4292+249.6339*(100/([.F103]+273.15))+143.3483*LN(([.F103]+273.15)/100)-21.8492*(([.F103]+273.15)/100)+[.I103]*(-0.033096+0.014259*(([.F103]+273.15)/100)-0.0017*((([.F103]+273.15)/100))^2)) -> 10.21803236
H104: =of:=[.G104]+273 -> 273 | K104: =of:=([.J$498]*[.J104]*112/[.J$499])*([.H104]/273) -> 0 | L104: =of:=[.K104]/[.M104] -> 0% | M104: =of:=EXP(-173.4292+249.6339*(100/([.F104]+273.15))+143.3483*LN(([.F104]+273.15)/100)-21.8492*(([.F104]+273.15)/100)+[.I104]*(-0.033096+0.014259*(([.F104]+273.15)/100)-0.0017*((([.F104]+273.15)/100))^2)) -> 10.21803236
H105: =of:=[.G105]+273 -> 273 | K105: =of:=([.J$498]*[.J105]*112/[.J$499])*([.H105]/273) -> 0 | L105: =of:=[.K105]/[.M105] -> 0% | M105: =of:=EXP(-173.4292+249.6339*(100/([.F105]+273.15))+143.3483*LN(([.F105]+273.15)/100)-21.8492*(([.F105]+273.15)/100)+[.I105]*(-0.033096+0.014259*(([.F105]+273.15)/100)-0.0017*((([.F105]+273.15)/100))^2)) -> 10.21803236
A106: ESTAÇÃO | B106: DATA | C106: HORA | D106: PROFUND | E106: PROFUND | F106: TEMP (ºC) | G106: TEMP (ºC) | H106: TEMP (K) | I106: SALINIDADE | J106: VOL,gasto | K106: WINKLER | L106: PORCENTAGEM | M106: SOLUBILIDADE | O106: CTD
C107: HMG | D107: LOCAL (m) | E107: COLETA | F107: CTD | G107: BANCADA | I107: PSU | J107: tiossulfato | K107: OD (ml / L) | M107: DO OXIGENIO | O107: OD (ml / L)
H108: =of:=[.G108]+273 -> 273 | K108: =of:=([.J$498]*[.J108]*112/[.J$499])*([.H108]/273) -> 0 | L108: =of:=[.K108]/[.M108] -> 0% | M108: =of:=EXP(-173.4292+249.6339*(100/([.F108]+273.15))+143.3483*LN(([.F108]+273.15)/100)-21.8492*(([.F108]+273.15)/100)+[.I108]*(-0.033096+0.014259*(([.F108]+273.15)/100)-0.0017*((([.F108]+273.15)/100))^2)) -> 10.21803236
A109: POSIÇÃO GEOGRÁFICA | H109: =of:=[.G109]+273 -> 273 | K109: =of:=([.J$498]*[.J109]*112/[.J$499])*([.H109]/273) -> 0 | L109: =of:=[.K109]/[.M109] -> 0% | M109: =of:=EXP(-173.4292+249.6339*(100/([.F109]+273.15))+143.3483*LN(([.F109]+273.15)/100)-21.8492*(([.F109]+273.15)/100)+[.I109]*(-0.033096+0.014259*(([.F109]+273.15)/100)-0.0017*((([.F109]+273.15)/100))^2)) -> 10.21803236
A110: Latitude | H110: =of:=[.G110]+273 -> 273 | K110: =of:=([.J$498]*[.J110]*112/[.J$499])*([.H110]/273) -> 0 | L110: =of:=[.K110]/[.M110] -> 0% | M110: =of:=EXP(-173.4292+249.6339*(100/([.F110]+273.15))+143.3483*LN(([.F110]+273.15)/100)-21.8492*(([.F110]+273.15)/100)+[.I110]*(-0.033096+0.014259*(([.F110]+273.15)/100)-0.0017*((([.F110]+273.15)/100))^2)) -> 10.21803236
A111: Longitude | H111: =of:=[.G111]+273 -> 273 | K111: =of:=([.J$498]*[.J111]*112/[.J$499])*([.H111]/273) -> 0 | L111: =of:=[.K111]/[.M111] -> 0% | M111: =of:=EXP(-173.4292+249.6339*(100/([.F111]+273.15))+143.3483*LN(([.F111]+273.15)/100)-21.8492*(([.F111]+273.15)/100)+[.I111]*(-0.033096+0.014259*(([.F111]+273.15)/100)-0.0017*((([.F111]+273.15)/100))^2)) -> 10.21803236
H112: =of:=[.G112]+273 -> 273 | K112: =of:=([.J$498]*[.J112]*112/[.J$499])*([.H112]/273) -> 0 | L112: =of:=[.K112]/[.M112] -> 0% | M112: =of:=EXP(-173.4292+249.6339*(100/([.F112]+273.15))+143.3483*LN(([.F112]+273.15)/100)-21.8492*(([.F112]+273.15)/100)+[.I112]*(-0.033096+0.014259*(([.F112]+273.15)/100)-0.0017*((([.F112]+273.15)/100))^2)) -> 10.21803236
H113: =of:=[.G113]+273 -> 273 | K113: =of:=([.J$498]*[.J113]*112/[.J$499])*([.H113]/273) -> 0 | L113: =of:=[.K113]/[.M113] -> 0% | M113: =of:=EXP(-173.4292+249.6339*(100/([.F113]+273.15))+143.3483*LN(([.F113]+273.15)/100)-21.8492*(([.F113]+273.15)/100)+[.I113]*(-0.033096+0.014259*(([.F113]+273.15)/100)-0.0017*((([.F113]+273.15)/100))^2)) -> 10.21803236
H114: =of:=[.G114]+273 -> 273 | K114: =of:=([.J$498]*[.J114]*112/[.J$499])*([.H114]/273) -> 0 | L114: =of:=[.K114]/[.M114] -> 0% | M114: =of:=EXP(-173.4292+249.6339*(100/([.F114]+273.15))+143.3483*LN(([.F114]+273.15)/100)-21.8492*(([.F114]+273.15)/100)+[.I114]*(-0.033096+0.014259*(([.F114]+273.15)/100)-0.0017*((([.F114]+273.15)/100))^2)) -> 10.21803236
H115: =of:=[.G115]+273 -> 273 | K115: =of:=([.J$498]*[.J115]*112/[.J$499])*([.H115]/273) -> 0 | L115: =of:=[.K115]/[.M115] -> 0% | M115: =of:=EXP(-173.4292+249.6339*(100/([.F115]+273.15))+143.3483*LN(([.F115]+273.15)/100)-21.8492*(([.F115]+273.15)/100)+[.I115]*(-0.033096+0.014259*(([.F115]+273.15)/100)-0.0017*((([.F115]+273.15)/100))^2)) -> 10.21803236
H116: =of:=[.G116]+273 -> 273 | K116: =of:=([.J$498]*[.J116]*112/[.J$499])*([.H116]/273) -> 0 | L116: =of:=[.K116]/[.M116] -> 0% | M116: =of:=EXP(-173.4292+249.6339*(100/([.F116]+273.15))+143.3483*LN(([.F116]+273.15)/100)-21.8492*(([.F116]+273.15)/100)+[.I116]*(-0.033096+0.014259*(([.F116]+273.15)/100)-0.0017*((([.F116]+273.15)/100))^2)) -> 10.21803236
H117: =of:=[.G117]+273 -> 273 | K117: =of:=([.J$498]*[.J117]*112/[.J$499])*([.H117]/273) -> 0 | L117: =of:=[.K117]/[.M117] -> 0% | M117: =of:=EXP(-173.4292+249.6339*(100/([.F117]+273.15))+143.3483*LN(([.F117]+273.15)/100)-21.8492*(([.F117]+273.15)/100)+[.I117]*(-0.033096+0.014259*(([.F117]+273.15)/100)-0.0017*((([.F117]+273.15)/100))^2)) -> 10.21803236
A118: ESTAÇÃO | B118: DATA | C118: HORA | D118: PROFUND | E118: PROFUND | F118: TEMP (ºC) | G118: TEMP (ºC) | H118: TEMP (K) | I118: SALINIDADE | J118: VOL,gasto | K118: WINKLER | L118: PORCENTAGEM | M118: SOLUBILIDADE | O118: CTD
C119: HMG | D119: LOCAL (m) | E119: COLETA | F119: CTD | G119: BANCADA | I119: PSU | J119: tiossulfato | K119: OD (ml / L) | M119: DO OXIGENIO | O119: OD (ml / L)
H120: =of:=[.G120]+273 -> 273 | K120: =of:=([.J$498]*[.J120]*112/[.J$499])*([.H120]/273) -> 0 | L120: =of:=[.K120]/[.M120] -> 0% | M120: =of:=EXP(-173.4292+249.6339*(100/([.F120]+273.15))+143.3483*LN(([.F120]+273.15)/100)-21.8492*(([.F120]+273.15)/100)+[.I120]*(-0.033096+0.014259*(([.F120]+273.15)/100)-0.0017*((([.F120]+273.15)/100))^2)) -> 10.21803236
A121: POSIÇÃO GEOGRÁFICA | H121: =of:=[.G121]+273 -> 273 | K121: =of:=([.J$498]*[.J121]*112/[.J$499])*([.H121]/273) -> 0 | L121: =of:=[.K121]/[.M121] -> 0% | M121: =of:=EXP(-173.4292+249.6339*(100/([.F121]+273.15))+143.3483*LN(([.F121]+273.15)/100)-21.8492*(([.F121]+273.15)/100)+[.I121]*(-0.033096+0.014259*(([.F121]+273.15)/100)-0.0017*((([.F121]+273.15)/100))^2)) -> 10.21803236
A122: Latitude | H122: =of:=[.G122]+273 -> 273 | K122: =of:=([.J$498]*[.J122]*112/[.J$499])*([.H122]/273) -> 0 | L122: =of:=[.K122]/[.M122] -> 0% | M122: =of:=EXP(-173.4292+249.6339*(100/([.F122]+273.15))+143.3483*LN(([.F122]+273.15)/100)-21.8492*(([.F122]+273.15)/100)+[.I122]*(-0.033096+0.014259*(([.F122]+273.15)/100)-0.0017*((([.F122]+273.15)/100))^2)) -> 10.21803236
A123: Longitude | H123: =of:=[.G123]+273 -> 273 | K123: =of:=([.J$498]*[.J123]*112/[.J$499])*([.H123]/273) -> 0 | L123: =of:=[.K123]/[.M123] -> 0% | M123: =of:=EXP(-173.4292+249.6339*(100/([.F123]+273.15))+143.3483*LN(([.F123]+273.15)/100)-21.8492*(([.F123]+273.15)/100)+[.I123]*(-0.033096+0.014259*(([.F123]+273.15)/100)-0.0017*((([.F123]+273.15)/100))^2)) -> 10.21803236
H124: =of:=[.G124]+273 -> 273 | K124: =of:=([.J$498]*[.J124]*112/[.J$499])*([.H124]/273) -> 0 | L124: =of:=[.K124]/[.M124] -> 0% | M124: =of:=EXP(-173.4292+249.6339*(100/([.F124]+273.15))+143.3483*LN(([.F124]+273.15)/100)-21.8492*(([.F124]+273.15)/100)+[.I124]*(-0.033096+0.014259*(([.F124]+273.15)/100)-0.0017*((([.F124]+273.15)/100))^2)) -> 10.21803236
H125: =of:=[.G125]+273 -> 273 | K125: =of:=([.J$498]*[.J125]*112/[.J$499])*([.H125]/273) -> 0 | L125: =of:=[.K125]/[.M125] -> 0% | M125: =of:=EXP(-173.4292+249.6339*(100/([.F125]+273.15))+143.3483*LN(([.F125]+273.15)/100)-21.8492*(([.F125]+273.15)/100)+[.I125]*(-0.033096+0.014259*(([.F125]+273.15)/100)-0.0017*((([.F125]+273.15)/100))^2)) -> 10.21803236
H126: =of:=[.G126]+273 -> 273 | K126: =of:=([.J$498]*[.J126]*112/[.J$499])*([.H126]/273) -> 0 | L126: =of:=[.K126]/[.M126] -> 0% | M126: =of:=EXP(-173.4292+249.6339*(100/([.F126]+273.15))+143.3483*LN(([.F126]+273.15)/100)-21.8492*(([.F126]+273.15)/100)+[.I126]*(-0.033096+0.014259*(([.F126]+273.15)/100)-0.0017*((([.F126]+273.15)/100))^2)) -> 10.21803236
H127: =of:=[.G127]+273 -> 273 | K127: =of:=([.J$498]*[.J127]*112/[.J$499])*([.H127]/273) -> 0 | L127: =of:=[.K127]/[.M127] -> 0% | M127: =of:=EXP(-173.4292+249.6339*(100/([.F127]+273.15))+143.3483*LN(([.F127]+273.15)/100)-21.8492*(([.F127]+273.15)/100)+[.I127]*(-0.033096+0.014259*(([.F127]+273.15)/100)-0.0017*((([.F127]+273.15)/100))^2)) -> 10.21803236
H128: =of:=[.G128]+273 -> 273 | K128: =of:=([.J$498]*[.J128]*112/[.J$499])*([.H128]/273) -> 0 | L128: =of:=[.K128]/[.M128] -> 0% | M128: =of:=EXP(-173.4292+249.6339*(100/([.F128]+273.15))+143.3483*LN(([.F128]+273.15)/100)-21.8492*(([.F128]+273.15)/100)+[.I128]*(-0.033096+0.014259*(([.F128]+273.15)/100)-0.0017*((([.F128]+273.15)/100))^2)) -> 10.21803236
H129: =of:=[.G129]+273 -> 273 | K129: =of:=([.J$498]*[.J129]*112/[.J$499])*([.H129]/273) -> 0 | L129: =of:=[.K129]/[.M129] -> 0% | M129: =of:=EXP(-173.4292+249.6339*(100/([.F129]+273.15))+143.3483*LN(([.F129]+273.15)/100)-21.8492*(([.F129]+273.15)/100)+[.I129]*(-0.033096+0.014259*(([.F129]+273.15)/100)-0.0017*((([.F129]+273.15)/100))^2)) -> 10.21803236
A130: ESTAÇÃO | B130: DATA | C130: HORA | D130: PROFUND | E130: PROFUND | F130: TEMP (ºC) | G130: TEMP (ºC) | H130: TEMP (K) | I130: SALINIDADE | J130: VOL,gasto | K130: WINKLER | L130: PORCENTAGEM | M130: SOLUBILIDADE | O130: CTD
C131: HMG | D131: LOCAL (m) | E131: COLETA | F131: CTD | G131: BANCADA | I131: PSU | J131: tiossulfato | K131: OD (ml / L) | M131: DO OXIGENIO | O131: OD (ml / L)
H132: =of:=[.G132]+273 -> 273 | K132: =of:=([.J$498]*[.J132]*112/[.J$499])*([.H132]/273) -> 0 | L132: =of:=[.K132]/[.M132] -> 0% | M132: =of:=EXP(-173.4292+249.6339*(100/([.F132]+273.15))+143.3483*LN(([.F132]+273.15)/100)-21.8492*(([.F132]+273.15)/100)+[.I132]*(-0.033096+0.014259*(([.F132]+273.15)/100)-0.0017*((([.F132]+273.15)/100))^2)) -> 10.21803236
A133: POSIÇÃO GEOGRÁFICA | H133: =of:=[.G133]+273 -> 273 | K133: =of:=([.J$498]*[.J133]*112/[.J$499])*([.H133]/273) -> 0 | L133: =of:=[.K133]/[.M133] -> 0% | M133: =of:=EXP(-173.4292+249.6339*(100/([.F133]+273.15))+143.3483*LN(([.F133]+273.15)/100)-21.8492*(([.F133]+273.15)/100)+[.I133]*(-0.033096+0.014259*(([.F133]+273.15)/100)-0.0017*((([.F133]+273.15)/100))^2)) -> 10.21803236
A134: Latitude | H134: =of:=[.G134]+273 -> 273 | K134: =of:=([.J$498]*[.J134]*112/[.J$499])*([.H134]/273) -> 0 | L134: =of:=[.K134]/[.M134] -> 0% | M134: =of:=EXP(-173.4292+249.6339*(100/([.F134]+273.15))+143.3483*LN(([.F134]+273.15)/100)-21.8492*(([.F134]+273.15)/100)+[.I134]*(-0.033096+0.014259*(([.F134]+273.15)/100)-0.0017*((([.F134]+273.15)/100))^2)) -> 10.21803236
A135: Longitude | H135: =of:=[.G135]+273 -> 273 | K135: =of:=([.J$498]*[.J135]*112/[.J$499])*([.H135]/273) -> 0 | L135: =of:=[.K135]/[.M135] -> 0% | M135: =of:=EXP(-173.4292+249.6339*(100/([.F135]+273.15))+143.3483*LN(([.F135]+273.15)/100)-21.8492*(([.F135]+273.15)/100)+[.I135]*(-0.033096+0.014259*(([.F135]+273.15)/100)-0.0017*((([.F135]+273.15)/100))^2)) -> 10.21803236
H136: =of:=[.G136]+273 -> 273 | K136: =of:=([.J$498]*[.J136]*112/[.J$499])*([.H136]/273) -> 0 | L136: =of:=[.K136]/[.M136] -> 0% | M136: =of:=EXP(-173.4292+249.6339*(100/([.F136]+273.15))+143.3483*LN(([.F136]+273.15)/100)-21.8492*(([.F136]+273.15)/100)+[.I136]*(-0.033096+0.014259*(([.F136]+273.15)/100)-0.0017*((([.F136]+273.15)/100))^2)) -> 10.21803236
H137: =of:=[.G137]+273 -> 273 | K137: =of:=([.J$498]*[.J137]*112/[.J$499])*([.H137]/273) -> 0 | L137: =of:=[.K137]/[.M137] -> 0% | M137: =of:=EXP(-173.4292+249.6339*(100/([.F137]+273.15))+143.3483*LN(([.F137]+273.15)/100)-21.8492*(([.F137]+273.15)/100)+[.I137]*(-0.033096+0.014259*(([.F137]+273.15)/100)-0.0017*((([.F137]+273.15)/100))^2)) -> 10.21803236
H138: =of:=[.G138]+273 -> 273 | K138: =of:=([.J$498]*[.J138]*112/[.J$499])*([.H138]/273) -> 0 | L138: =of:=[.K138]/[.M138] -> 0% | M138: =of:=EXP(-173.4292+249.6339*(100/([.F138]+273.15))+143.3483*LN(([.F138]+273.15)/100)-21.8492*(([.F138]+273.15)/100)+[.I138]*(-0.033096+0.014259*(([.F138]+273.15)/100)-0.0017*((([.F138]+273.15)/100))^2)) -> 10.21803236
H139: =of:=[.G139]+273 -> 273 | K139: =of:=([.J$498]*[.J139]*112/[.J$499])*([.H139]/273) -> 0 | L139: =of:=[.K139]/[.M139] -> 0% | M139: =of:=EXP(-173.4292+249.6339*(100/([.F139]+273.15))+143.3483*LN(([.F139]+273.15)/100)-21.8492*(([.F139]+273.15)/100)+[.I139]*(-0.033096+0.014259*(([.F139]+273.15)/100)-0.0017*((([.F139]+273.15)/100))^2)) -> 10.21803236
H140: =of:=[.G140]+273 -> 273 | K140: =of:=([.J$498]*[.J140]*112/[.J$499])*([.H140]/273) -> 0 | L140: =of:=[.K140]/[.M140] -> 0% | M140: =of:=EXP(-173.4292+249.6339*(100/([.F140]+273.15))+143.3483*LN(([.F140]+273.15)/100)-21.8492*(([.F140]+273.15)/100)+[.I140]*(-0.033096+0.014259*(([.F140]+273.15)/100)-0.0017*((([.F140]+273.15)/100))^2)) -> 10.21803236
H141: =of:=[.G141]+273 -> 273 | K141: =of:=([.J$498]*[.J141]*112/[.J$499])*([.H141]/273) -> 0 | L141: =of:=[.K141]/[.M141] -> 0% | M141: =of:=EXP(-173.4292+249.6339*(100/([.F141]+273.15))+143.3483*LN(([.F141]+273.15)/100)-21.8492*(([.F141]+273.15)/100)+[.I141]*(-0.033096+0.014259*(([.F141]+273.15)/100)-0.0017*((([.F141]+273.15)/100))^2)) -> 10.21803236
A142: ESTAÇÃO | B142: DATA | C142: HORA | D142: PROFUND | E142: PROFUND | F142: TEMP (ºC) | G142: TEMP (ºC) | H142: TEMP (K) | I142: SALINIDADE | J142: VOL,gasto | K142: WINKLER | L142: PORCENTAGEM | M142: SOLUBILIDADE | O142: CTD
C143: HMG | D143: LOCAL (m) | E143: COLETA | F143: CTD | G143: BANCADA | I143: PSU | J143: tiossulfato | K143: OD (ml / L) | M143: DO OXIGENIO | O143: OD (ml / L)
H144: =of:=[.G144]+273 -> 273 | K144: =of:=([.J$498]*[.J144]*112/[.J$499])*([.H144]/273) -> 0 | L144: =of:=[.K144]/[.M144] -> 0% | M144: =of:=EXP(-173.4292+249.6339*(100/([.F144]+273.15))+143.3483*LN(([.F144]+273.15)/100)-21.8492*(([.F144]+273.15)/100)+[.I144]*(-0.033096+0.014259*(([.F144]+273.15)/100)-0.0017*((([.F144]+273.15)/100))^2)) -> 10.21803236
A145: POSIÇÃO GEOGRÁFICA | H145: =of:=[.G145]+273 -> 273 | K145: =of:=([.J$498]*[.J145]*112/[.J$499])*([.H145]/273) -> 0 | L145: =of:=[.K145]/[.M145] -> 0% | M145: =of:=EXP(-173.4292+249.6339*(100/([.F145]+273.15))+143.3483*LN(([.F145]+273.15)/100)-21.8492*(([.F145]+273.15)/100)+[.I145]*(-0.033096+0.014259*(([.F145]+273.15)/100)-0.0017*((([.F145]+273.15)/100))^2)) -> 10.21803236
A146: Latitude | H146: =of:=[.G146]+273 -> 273 | K146: =of:=([.J$498]*[.J146]*112/[.J$499])*([.H146]/273) -> 0 | L146: =of:=[.K146]/[.M146] -> 0% | M146: =of:=EXP(-173.4292+249.6339*(100/([.F146]+273.15))+143.3483*LN(([.F146]+273.15)/100)-21.8492*(([.F146]+273.15)/100)+[.I146]*(-0.033096+0.014259*(([.F146]+273.15)/100)-0.0017*((([.F146]+273.15)/100))^2)) -> 10.21803236
A147: Longitude | H147: =of:=[.G147]+273 -> 273 | K147: =of:=([.J$498]*[.J147]*112/[.J$499])*([.H147]/273) -> 0 | L147: =of:=[.K147]/[.M147] -> 0% | M147: =of:=EXP(-173.4292+249.6339*(100/([.F147]+273.15))+143.3483*LN(([.F147]+273.15)/100)-21.8492*(([.F147]+273.15)/100)+[.I147]*(-0.033096+0.014259*(([.F147]+273.15)/100)-0.0017*((([.F147]+273.15)/100))^2)) -> 10.21803236
H148: =of:=[.G148]+273 -> 273 | K148: =of:=([.J$498]*[.J148]*112/[.J$499])*([.H148]/273) -> 0 | L148: =of:=[.K148]/[.M148] -> 0% | M148: =of:=EXP(-173.4292+249.6339*(100/([.F148]+273.15))+143.3483*LN(([.F148]+273.15)/100)-21.8492*(([.F148]+273.15)/100)+[.I148]*(-0.033096+0.014259*(([.F148]+273.15)/100)-0.0017*((([.F148]+273.15)/100))^2)) -> 10.21803236
H149: =of:=[.G149]+273 -> 273 | K149: =of:=([.J$498]*[.J149]*112/[.J$499])*([.H149]/273) -> 0 | L149: =of:=[.K149]/[.M149] -> 0% | M149: =of:=EXP(-173.4292+249.6339*(100/([.F149]+273.15))+143.3483*LN(([.F149]+273.15)/100)-21.8492*(([.F149]+273.15)/100)+[.I149]*(-0.033096+0.014259*(([.F149]+273.15)/100)-0.0017*((([.F149]+273.15)/100))^2)) -> 10.21803236
H150: =of:=[.G150]+273 -> 273 | K150: =of:=([.J$498]*[.J150]*112/[.J$499])*([.H150]/273) -> 0 | L150: =of:=[.K150]/[.M150] -> 0% | M150: =of:=EXP(-173.4292+249.6339*(100/([.F150]+273.15))+143.3483*LN(([.F150]+273.15)/100)-21.8492*(([.F150]+273.15)/100)+[.I150]*(-0.033096+0.014259*(([.F150]+273.15)/100)-0.0017*((([.F150]+273.15)/100))^2)) -> 10.21803236
H151: =of:=[.G151]+273 -> 273 | K151: =of:=([.J$498]*[.J151]*112/[.J$499])*([.H151]/273) -> 0 | L151: =of:=[.K151]/[.M151] -> 0% | M151: =of:=EXP(-173.4292+249.6339*(100/([.F151]+273.15))+143.3483*LN(([.F151]+273.15)/100)-21.8492*(([.F151]+273.15)/100)+[.I151]*(-0.033096+0.014259*(([.F151]+273.15)/100)-0.0017*((([.F151]+273.15)/100))^2)) -> 10.21803236
H152: =of:=[.G152]+273 -> 273 | K152: =of:=([.J$498]*[.J152]*112/[.J$499])*([.H152]/273) -> 0 | L152: =of:=[.K152]/[.M152] -> 0% | M152: =of:=EXP(-173.4292+249.6339*(100/([.F152]+273.15))+143.3483*LN(([.F152]+273.15)/100)-21.8492*(([.F152]+273.15)/100)+[.I152]*(-0.033096+0.014259*(([.F152]+273.15)/100)-0.0017*((([.F152]+273.15)/100))^2)) -> 10.21803236
H153: =of:=[.G153]+273 -> 273 | K153: =of:=([.J$498]*[.J153]*112/[.J$499])*([.H153]/273) -> 0 | L153: =of:=[.K153]/[.M153] -> 0% | M153: =of:=EXP(-173.4292+249.6339*(100/([.F153]+273.15))+143.3483*LN(([.F153]+273.15)/100)-21.8492*(([.F153]+273.15)/100)+[.I153]*(-0.033096+0.014259*(([.F153]+273.15)/100)-0.0017*((([.F153]+273.15)/100))^2)) -> 10.21803236
A154: ESTAÇÃO | B154: DATA | C154: HORA | D154: PROFUND | E154: PROFUND | F154: TEMP (ºC) | G154: TEMP (ºC) | H154: TEMP (K) | I154: SALINIDADE | J154: VOL,gasto | K154: WINKLER | L154: PORCENTAGEM | M154: SOLUBILIDADE | O154: CTD
C155: HMG | D155: LOCAL (m) | E155: COLETA | F155: CTD | G155: BANCADA | I155: PSU | J155: tiossulfato | K155: OD (ml / L) | M155: DO OXIGENIO | O155: OD (ml / L)
H156: =of:=[.G156]+273 -> 273 | K156: =of:=([.J$498]*[.J156]*112/[.J$499])*([.H156]/273) -> 0 | L156: =of:=[.K156]/[.M156] -> 0% | M156: =of:=EXP(-173.4292+249.6339*(100/([.F156]+273.15))+143.3483*LN(([.F156]+273.15)/100)-21.8492*(([.F156]+273.15)/100)+[.I156]*(-0.033096+0.014259*(([.F156]+273.15)/100)-0.0017*((([.F156]+273.15)/100))^2)) -> 10.21803236
A157: POSIÇÃO GEOGRÁFICA | H157: =of:=[.G157]+273 -> 273 | K157: =of:=([.J$498]*[.J157]*112/[.J$499])*([.H157]/273) -> 0 | L157: =of:=[.K157]/[.M157] -> 0% | M157: =of:=EXP(-173.4292+249.6339*(100/([.F157]+273.15))+143.3483*LN(([.F157]+273.15)/100)-21.8492*(([.F157]+273.15)/100)+[.I157]*(-0.033096+0.014259*(([.F157]+273.15)/100)-0.0017*((([.F157]+273.15)/100))^2)) -> 10.21803236
A158: Latitude | H158: =of:=[.G158]+273 -> 273 | K158: =of:=([.J$498]*[.J158]*112/[.J$499])*([.H158]/273) -> 0 | L158: =of:=[.K158]/[.M158] -> 0% | M158: =of:=EXP(-173.4292+249.6339*(100/([.F158]+273.15))+143.3483*LN(([.F158]+273.15)/100)-21.8492*(([.F158]+273.15)/100)+[.I158]*(-0.033096+0.014259*(([.F158]+273.15)/100)-0.0017*((([.F158]+273.15)/100))^2)) -> 10.21803236
A159: Longitude | H159: =of:=[.G159]+273 -> 273 | K159: =of:=([.J$498]*[.J159]*112/[.J$499])*([.H159]/273) -> 0 | L159: =of:=[.K159]/[.M159] -> 0% | M159: =of:=EXP(-173.4292+249.6339*(100/([.F159]+273.15))+143.3483*LN(([.F159]+273.15)/100)-21.8492*(([.F159]+273.15)/100)+[.I159]*(-0.033096+0.014259*(([.F159]+273.15)/100)-0.0017*((([.F159]+273.15)/100))^2)) -> 10.21803236
H160: =of:=[.G160]+273 -> 273 | K160: =of:=([.J$498]*[.J160]*112/[.J$499])*([.H160]/273) -> 0 | L160: =of:=[.K160]/[.M160] -> 0% | M160: =of:=EXP(-173.4292+249.6339*(100/([.F160]+273.15))+143.3483*LN(([.F160]+273.15)/100)-21.8492*(([.F160]+273.15)/100)+[.I160]*(-0.033096+0.014259*(([.F160]+273.15)/100)-0.0017*((([.F160]+273.15)/100))^2)) -> 10.21803236
H161: =of:=[.G161]+273 -> 273 | K161: =of:=([.J$498]*[.J161]*112/[.J$499])*([.H161]/273) -> 0 | L161: =of:=[.K161]/[.M161] -> 0% | M161: =of:=EXP(-173.4292+249.6339*(100/([.F161]+273.15))+143.3483*LN(([.F161]+273.15)/100)-21.8492*(([.F161]+273.15)/100)+[.I161]*(-0.033096+0.014259*(([.F161]+273.15)/100)-0.0017*((([.F161]+273.15)/100))^2)) -> 10.21803236
H162: =of:=[.G162]+273 -> 273 | K162: =of:=([.J$498]*[.J162]*112/[.J$499])*([.H162]/273) -> 0 | L162: =of:=[.K162]/[.M162] -> 0% | M162: =of:=EXP(-173.4292+249.6339*(100/([.F162]+273.15))+143.3483*LN(([.F162]+273.15)/100)-21.8492*(([.F162]+273.15)/100)+[.I162]*(-0.033096+0.014259*(([.F162]+273.15)/100)-0.0017*((([.F162]+273.15)/100))^2)) -> 10.21803236
H163: =of:=[.G163]+273 -> 273 | K163: =of:=([.J$498]*[.J163]*112/[.J$499])*([.H163]/273) -> 0 | L163: =of:=[.K163]/[.M163] -> 0% | M163: =of:=EXP(-173.4292+249.6339*(100/([.F163]+273.15))+143.3483*LN(([.F163]+273.15)/100)-21.8492*(([.F163]+273.15)/100)+[.I163]*(-0.033096+0.014259*(([.F163]+273.15)/100)-0.0017*((([.F163]+273.15)/100))^2)) -> 10.21803236
H164: =of:=[.G164]+273 -> 273 | K164: =of:=([.J$498]*[.J164]*112/[.J$499])*([.H164]/273) -> 0 | L164: =of:=[.K164]/[.M164] -> 0% | M164: =of:=EXP(-173.4292+249.6339*(100/([.F164]+273.15))+143.3483*LN(([.F164]+273.15)/100)-21.8492*(([.F164]+273.15)/100)+[.I164]*(-0.033096+0.014259*(([.F164]+273.15)/100)-0.0017*((([.F164]+273.15)/100))^2)) -> 10.21803236
H165: =of:=[.G165]+273 -> 273 | K165: =of:=([.J$498]*[.J165]*112/[.J$499])*([.H165]/273) -> 0 | L165: =of:=[.K165]/[.M165] -> 0% | M165: =of:=EXP(-173.4292+249.6339*(100/([.F165]+273.15))+143.3483*LN(([.F165]+273.15)/100)-21.8492*(([.F165]+273.15)/100)+[.I165]*(-0.033096+0.014259*(([.F165]+273.15)/100)-0.0017*((([.F165]+273.15)/100))^2)) -> 10.21803236
A166: ESTAÇÃO | B166: DATA | C166: HORA | D166: PROFUND | E166: PROFUND | F166: TEMP (ºC) | G166: TEMP (ºC) | H166: TEMP (K) | I166: SALINIDADE | J166: VOL,gasto | K166: WINKLER | L166: PORCENTAGEM | M166: SOLUBILIDADE | O166: CTD
C167: HMG | D167: LOCAL (m) | E167: COLETA | F167: CTD | G167: BANCADA | I167: PSU | J167: tiossulfato | K167: OD (ml / L) | M167: DO OXIGENIO | O167: OD (ml / L)
H168: =of:=[.G168]+273 -> 273 | K168: =of:=([.J$498]*[.J168]*112/[.J$499])*([.H168]/273) -> 0 | L168: =of:=[.K168]/[.M168] -> 0% | M168: =of:=EXP(-173.4292+249.6339*(100/([.F168]+273.15))+143.3483*LN(([.F168]+273.15)/100)-21.8492*(([.F168]+273.15)/100)+[.I168]*(-0.033096+0.014259*(([.F168]+273.15)/100)-0.0017*((([.F168]+273.15)/100))^2)) -> 10.21803236
A169: POSIÇÃO GEOGRÁFICA | H169: =of:=[.G169]+273 -> 273 | K169: =of:=([.J$498]*[.J169]*112/[.J$499])*([.H169]/273) -> 0 | L169: =of:=[.K169]/[.M169] -> 0% | M169: =of:=EXP(-173.4292+249.6339*(100/([.F169]+273.15))+143.3483*LN(([.F169]+273.15)/100)-21.8492*(([.F169]+273.15)/100)+[.I169]*(-0.033096+0.014259*(([.F169]+273.15)/100)-0.0017*((([.F169]+273.15)/100))^2)) -> 10.21803236
A170: Latitude | H170: =of:=[.G170]+273 -> 273 | K170: =of:=([.J$498]*[.J170]*112/[.J$499])*([.H170]/273) -> 0 | L170: =of:=[.K170]/[.M170] -> 0% | M170: =of:=EXP(-173.4292+249.6339*(100/([.F170]+273.15))+143.3483*LN(([.F170]+273.15)/100)-21.8492*(([.F170]+273.15)/100)+[.I170]*(-0.033096+0.014259*(([.F170]+273.15)/100)-0.0017*((([.F170]+273.15)/100))^2)) -> 10.21803236
A171: Longitude | H171: =of:=[.G171]+273 -> 273 | K171: =of:=([.J$498]*[.J171]*112/[.J$499])*([.H171]/273) -> 0 | L171: =of:=[.K171]/[.M171] -> 0% | M171: =of:=EXP(-173.4292+249.6339*(100/([.F171]+273.15))+143.3483*LN(([.F171]+273.15)/100)-21.8492*(([.F171]+273.15)/100)+[.I171]*(-0.033096+0.014259*(([.F171]+273.15)/100)-0.0017*((([.F171]+273.15)/100))^2)) -> 10.21803236
H172: =of:=[.G172]+273 -> 273 | K172: =of:=([.J$498]*[.J172]*112/[.J$499])*([.H172]/273) -> 0 | L172: =of:=[.K172]/[.M172] -> 0% | M172: =of:=EXP(-173.4292+249.6339*(100/([.F172]+273.15))+143.3483*LN(([.F172]+273.15)/100)-21.8492*(([.F172]+273.15)/100)+[.I172]*(-0.033096+0.014259*(([.F172]+273.15)/100)-0.0017*((([.F172]+273.15)/100))^2)) -> 10.21803236
H173: =of:=[.G173]+273 -> 273 | K173: =of:=([.J$498]*[.J173]*112/[.J$499])*([.H173]/273) -> 0 | L173: =of:=[.K173]/[.M173] -> 0% | M173: =of:=EXP(-173.4292+249.6339*(100/([.F173]+273.15))+143.3483*LN(([.F173]+273.15)/100)-21.8492*(([.F173]+273.15)/100)+[.I173]*(-0.033096+0.014259*(([.F173]+273.15)/100)-0.0017*((([.F173]+273.15)/100))^2)) -> 10.21803236
H174: =of:=[.G174]+273 -> 273 | K174: =of:=([.J$498]*[.J174]*112/[.J$499])*([.H174]/273) -> 0 | L174: =of:=[.K174]/[.M174] -> 0% | M174: =of:=EXP(-173.4292+249.6339*(100/([.F174]+273.15))+143.3483*LN(([.F174]+273.15)/100)-21.8492*(([.F174]+273.15)/100)+[.I174]*(-0.033096+0.014259*(([.F174]+273.15)/100)-0.0017*((([.F174]+273.15)/100))^2)) -> 10.21803236
H175: =of:=[.G175]+273 -> 273 | K175: =of:=([.J$498]*[.J175]*112/[.J$499])*([.H175]/273) -> 0 | L175: =of:=[.K175]/[.M175] -> 0% | M175: =of:=EXP(-173.4292+249.6339*(100/([.F175]+273.15))+143.3483*LN(([.F175]+273.15)/100)-21.8492*(([.F175]+273.15)/100)+[.I175]*(-0.033096+0.014259*(([.F175]+273.15)/100)-0.0017*((([.F175]+273.15)/100))^2)) -> 10.21803236
H176: =of:=[.G176]+273 -> 273 | K176: =of:=([.J$498]*[.J176]*112/[.J$499])*([.H176]/273) -> 0 | L176: =of:=[.K176]/[.M176] -> 0% | M176: =of:=EXP(-173.4292+249.6339*(100/([.F176]+273.15))+143.3483*LN(([.F176]+273.15)/100)-21.8492*(([.F176]+273.15)/100)+[.I176]*(-0.033096+0.014259*(([.F176]+273.15)/100)-0.0017*((([.F176]+273.15)/100))^2)) -> 10.21803236
H177: =of:=[.G177]+273 -> 273 | K177: =of:=([.J$498]*[.J177]*112/[.J$499])*([.H177]/273) -> 0 | L177: =of:=[.K177]/[.M177] -> 0% | M177: =of:=EXP(-173.4292+249.6339*(100/([.F177]+273.15))+143.3483*LN(([.F177]+273.15)/100)-21.8492*(([.F177]+273.15)/100)+[.I177]*(-0.033096+0.014259*(([.F177]+273.15)/100)-0.0017*((([.F177]+273.15)/100))^2)) -> 10.21803236
A178: ESTAÇÃO | B178: DATA | C178: HORA | D178: PROFUND | E178: PROFUND | F178: TEMP (ºC) | G178: TEMP (ºC) | H178: TEMP (K) | I178: SALINIDADE | J178: VOL,gasto | K178: WINKLER | L178: PORCENTAGEM | M178: SOLUBILIDADE | O178: CTD
C179: HMG | D179: LOCAL (m) | E179: COLETA | F179: CTD | G179: BANCADA | I179: PSU | J179: tiossulfato | K179: OD (ml / L) | M179: DO OXIGENIO | O179: OD (ml / L)
H180: =of:=[.G180]+273 -> 273 | K180: =of:=([.J$498]*[.J180]*112/[.J$499])*([.H180]/273) -> 0 | L180: =of:=[.K180]/[.M180] -> 0% | M180: =of:=EXP(-173.4292+249.6339*(100/([.F180]+273.15))+143.3483*LN(([.F180]+273.15)/100)-21.8492*(([.F180]+273.15)/100)+[.I180]*(-0.033096+0.014259*(([.F180]+273.15)/100)-0.0017*((([.F180]+273.15)/100))^2)) -> 10.21803236
A181: POSIÇÃO GEOGRÁFICA | H181: =of:=[.G181]+273 -> 273 | K181: =of:=([.J$498]*[.J181]*112/[.J$499])*([.H181]/273) -> 0 | L181: =of:=[.K181]/[.M181] -> 0% | M181: =of:=EXP(-173.4292+249.6339*(100/([.F181]+273.15))+143.3483*LN(([.F181]+273.15)/100)-21.8492*(([.F181]+273.15)/100)+[.I181]*(-0.033096+0.014259*(([.F181]+273.15)/100)-0.0017*((([.F181]+273.15)/100))^2)) -> 10.21803236
A182: Latitude | H182: =of:=[.G182]+273 -> 273 | K182: =of:=([.J$498]*[.J182]*112/[.J$499])*([.H182]/273) -> 0 | L182: =of:=[.K182]/[.M182] -> 0% | M182: =of:=EXP(-173.4292+249.6339*(100/([.F182]+273.15))+143.3483*LN(([.F182]+273.15)/100)-21.8492*(([.F182]+273.15)/100)+[.I182]*(-0.033096+0.014259*(([.F182]+273.15)/100)-0.0017*((([.F182]+273.15)/100))^2)) -> 10.21803236
A183: Longitude | H183: =of:=[.G183]+273 -> 273 | K183: =of:=([.J$498]*[.J183]*112/[.J$499])*([.H183]/273) -> 0 | L183: =of:=[.K183]/[.M183] -> 0% | M183: =of:=EXP(-173.4292+249.6339*(100/([.F183]+273.15))+143.3483*LN(([.F183]+273.15)/100)-21.8492*(([.F183]+273.15)/100)+[.I183]*(-0.033096+0.014259*(([.F183]+273.15)/100)-0.0017*((([.F183]+273.15)/100))^2)) -> 10.21803236
H184: =of:=[.G184]+273 -> 273 | K184: =of:=([.J$498]*[.J184]*112/[.J$499])*([.H184]/273) -> 0 | L184: =of:=[.K184]/[.M184] -> 0% | M184: =of:=EXP(-173.4292+249.6339*(100/([.F184]+273.15))+143.3483*LN(([.F184]+273.15)/100)-21.8492*(([.F184]+273.15)/100)+[.I184]*(-0.033096+0.014259*(([.F184]+273.15)/100)-0.0017*((([.F184]+273.15)/100))^2)) -> 10.21803236
H185: =of:=[.G185]+273 -> 273 | K185: =of:=([.J$498]*[.J185]*112/[.J$499])*([.H185]/273) -> 0 | L185: =of:=[.K185]/[.M185] -> 0% | M185: =of:=EXP(-173.4292+249.6339*(100/([.F185]+273.15))+143.3483*LN(([.F185]+273.15)/100)-21.8492*(([.F185]+273.15)/100)+[.I185]*(-0.033096+0.014259*(([.F185]+273.15)/100)-0.0017*((([.F185]+273.15)/100))^2)) -> 10.21803236
H186: =of:=[.G186]+273 -> 273 | K186: =of:=([.J$498]*[.J186]*112/[.J$499])*([.H186]/273) -> 0 | L186: =of:=[.K186]/[.M186] -> 0% | M186: =of:=EXP(-173.4292+249.6339*(100/([.F186]+273.15))+143.3483*LN(([.F186]+273.15)/100)-21.8492*(([.F186]+273.15)/100)+[.I186]*(-0.033096+0.014259*(([.F186]+273.15)/100)-0.0017*((([.F186]+273.15)/100))^2)) -> 10.21803236
H187: =of:=[.G187]+273 -> 273 | K187: =of:=([.J$498]*[.J187]*112/[.J$499])*([.H187]/273) -> 0 | L187: =of:=[.K187]/[.M187] -> 0% | M187: =of:=EXP(-173.4292+249.6339*(100/([.F187]+273.15))+143.3483*LN(([.F187]+273.15)/100)-21.8492*(([.F187]+273.15)/100)+[.I187]*(-0.033096+0.014259*(([.F187]+273.15)/100)-0.0017*((([.F187]+273.15)/100))^2)) -> 10.21803236
H188: =of:=[.G188]+273 -> 273 | K188: =of:=([.J$498]*[.J188]*112/[.J$499])*([.H188]/273) -> 0 | L188: =of:=[.K188]/[.M188] -> 0% | M188: =of:=EXP(-173.4292+249.6339*(100/([.F188]+273.15))+143.3483*LN(([.F188]+273.15)/100)-21.8492*(([.F188]+273.15)/100)+[.I188]*(-0.033096+0.014259*(([.F188]+273.15)/100)-0.0017*((([.F188]+273.15)/100))^2)) -> 10.21803236
H189: =of:=[.G189]+273 -> 273 | K189: =of:=([.J$498]*[.J189]*112/[.J$499])*([.H189]/273) -> 0 | L189: =of:=[.K189]/[.M189] -> 0% | M189: =of:=EXP(-173.4292+249.6339*(100/([.F189]+273.15))+143.3483*LN(([.F189]+273.15)/100)-21.8492*(([.F189]+273.15)/100)+[.I189]*(-0.033096+0.014259*(([.F189]+273.15)/100)-0.0017*((([.F189]+273.15)/100))^2)) -> 10.21803236
A190: ESTAÇÃO | B190: DATA | C190: HORA | D190: PROFUND | E190: PROFUND | F190: TEMP (ºC) | G190: TEMP (ºC) | H190: TEMP (K) | I190: SALINIDADE | J190: VOL,gasto | K190: WINKLER | L190: PORCENTAGEM | M190: SOLUBILIDADE | O190: CTD
C191: HMG | D191: LOCAL (m) | E191: COLETA | F191: CTD | G191: BANCADA | I191: PSU | J191: tiossulfato | K191: OD (ml / L) | M191: DO OXIGENIO | O191: OD (ml / L)
H192: =of:=[.G192]+273 -> 273 | K192: =of:=([.J$498]*[.J192]*112/[.J$499])*([.H192]/273) -> 0 | L192: =of:=[.K192]/[.M192] -> 0% | M192: =of:=EXP(-173.4292+249.6339*(100/([.F192]+273.15))+143.3483*LN(([.F192]+273.15)/100)-21.8492*(([.F192]+273.15)/100)+[.I192]*(-0.033096+0.014259*(([.F192]+273.15)/100)-0.0017*((([.F192]+273.15)/100))^2)) -> 10.21803236
A193: POSIÇÃO GEOGRÁFICA | H193: =of:=[.G193]+273 -> 273 | K193: =of:=([.J$498]*[.J193]*112/[.J$499])*([.H193]/273) -> 0 | L193: =of:=[.K193]/[.M193] -> 0% | M193: =of:=EXP(-173.4292+249.6339*(100/([.F193]+273.15))+143.3483*LN(([.F193]+273.15)/100)-21.8492*(([.F193]+273.15)/100)+[.I193]*(-0.033096+0.014259*(([.F193]+273.15)/100)-0.0017*((([.F193]+273.15)/100))^2)) -> 10.21803236
A194: Latitude | H194: =of:=[.G194]+273 -> 273 | K194: =of:=([.J$498]*[.J194]*112/[.J$499])*([.H194]/273) -> 0 | L194: =of:=[.K194]/[.M194] -> 0% | M194: =of:=EXP(-173.4292+249.6339*(100/([.F194]+273.15))+143.3483*LN(([.F194]+273.15)/100)-21.8492*(([.F194]+273.15)/100)+[.I194]*(-0.033096+0.014259*(([.F194]+273.15)/100)-0.0017*((([.F194]+273.15)/100))^2)) -> 10.21803236
A195: Longitude | H195: =of:=[.G195]+273 -> 273 | K195: =of:=([.J$498]*[.J195]*112/[.J$499])*([.H195]/273) -> 0 | L195: =of:=[.K195]/[.M195] -> 0% | M195: =of:=EXP(-173.4292+249.6339*(100/([.F195]+273.15))+143.3483*LN(([.F195]+273.15)/100)-21.8492*(([.F195]+273.15)/100)+[.I195]*(-0.033096+0.014259*(([.F195]+273.15)/100)-0.0017*((([.F195]+273.15)/100))^2)) -> 10.21803236
H196: =of:=[.G196]+273 -> 273 | K196: =of:=([.J$498]*[.J196]*112/[.J$499])*([.H196]/273) -> 0 | L196: =of:=[.K196]/[.M196] -> 0% | M196: =of:=EXP(-173.4292+249.6339*(100/([.F196]+273.15))+143.3483*LN(([.F196]+273.15)/100)-21.8492*(([.F196]+273.15)/100)+[.I196]*(-0.033096+0.014259*(([.F196]+273.15)/100)-0.0017*((([.F196]+273.15)/100))^2)) -> 10.21803236
H197: =of:=[.G197]+273 -> 273 | K197: =of:=([.J$498]*[.J197]*112/[.J$499])*([.H197]/273) -> 0 | L197: =of:=[.K197]/[.M197] -> 0% | M197: =of:=EXP(-173.4292+249.6339*(100/([.F197]+273.15))+143.3483*LN(([.F197]+273.15)/100)-21.8492*(([.F197]+273.15)/100)+[.I197]*(-0.033096+0.014259*(([.F197]+273.15)/100)-0.0017*((([.F197]+273.15)/100))^2)) -> 10.21803236
H198: =of:=[.G198]+273 -> 273 | K198: =of:=([.J$498]*[.J198]*112/[.J$499])*([.H198]/273) -> 0 | L198: =of:=[.K198]/[.M198] -> 0% | M198: =of:=EXP(-173.4292+249.6339*(100/([.F198]+273.15))+143.3483*LN(([.F198]+273.15)/100)-21.8492*(([.F198]+273.15)/100)+[.I198]*(-0.033096+0.014259*(([.F198]+273.15)/100)-0.0017*((([.F198]+273.15)/100))^2)) -> 10.21803236
H199: =of:=[.G199]+273 -> 273 | K199: =of:=([.J$498]*[.J199]*112/[.J$499])*([.H199]/273) -> 0 | L199: =of:=[.K199]/[.M199] -> 0% | M199: =of:=EXP(-173.4292+249.6339*(100/([.F199]+273.15))+143.3483*LN(([.F199]+273.15)/100)-21.8492*(([.F199]+273.15)/100)+[.I199]*(-0.033096+0.014259*(([.F199]+273.15)/100)-0.0017*((([.F199]+273.15)/100))^2)) -> 10.21803236
H200: =of:=[.G200]+273 -> 273 | K200: =of:=([.J$498]*[.J200]*112/[.J$499])*([.H200]/273) -> 0 | L200: =of:=[.K200]/[.M200] -> 0% | M200: =of:=EXP(-173.4292+249.6339*(100/([.F200]+273.15))+143.3483*LN(([.F200]+273.15)/100)-21.8492*(([.F200]+273.15)/100)+[.I200]*(-0.033096+0.014259*(([.F200]+273.15)/100)-0.0017*((([.F200]+273.15)/100))^2)) -> 10.21803236
H201: =of:=[.G201]+273 -> 273 | K201: =of:=([.J$498]*[.J201]*112/[.J$499])*([.H201]/273) -> 0 | L201: =of:=[.K201]/[.M201] -> 0% | M201: =of:=EXP(-173.4292+249.6339*(100/([.F201]+273.15))+143.3483*LN(([.F201]+273.15)/100)-21.8492*(([.F201]+273.15)/100)+[.I201]*(-0.033096+0.014259*(([.F201]+273.15)/100)-0.0017*((([.F201]+273.15)/100))^2)) -> 10.21803236
A202: ESTAÇÃO | B202: DATA | C202: HORA | D202: PROFUND | E202: PROFUND | F202: TEMP (ºC) | G202: TEMP (ºC) | H202: TEMP (K) | I202: SALINIDADE | J202: VOL,gasto | K202: WINKLER | L202: PORCENTAGEM | M202: SOLUBILIDADE | O202: CTD
C203: HMG | D203: LOCAL (m) | E203: COLETA | F203: CTD | G203: BANCADA | I203: PSU | J203: tiossulfato | K203: OD (ml / L) | M203: DO OXIGENIO | O203: OD (ml / L)
H204: =of:=[.G204]+273 -> 273 | K204: =of:=([.J$498]*[.J204]*112/[.J$499])*([.H204]/273) -> 0 | L204: =of:=[.K204]/[.M204] -> 0% | M204: =of:=EXP(-173.4292+249.6339*(100/([.F204]+273.15))+143.3483*LN(([.F204]+273.15)/100)-21.8492*(([.F204]+273.15)/100)+[.I204]*(-0.033096+0.014259*(([.F204]+273.15)/100)-0.0017*((([.F204]+273.15)/100))^2)) -> 10.21803236
... 296 more rows

Sheet PIRXIII
A1: MARINHA DO BRASIL
A2: Noc ANTARES
A4: CALCULO DO OXIGÊNIO DISSOLVIDO NA ÁGUA DO MAR
A6: PIRATA XIII / 2011.
A9: PERÍODO : | D9: 11 de agosto à 05 de outubro.
A10: ESTAÇÃO | B10: DATA | C10: HORA | D10: PROFUND | E10: PROFUND | F10: TEMP (ºC) | G10: TEMP (ºC) | H10: TEMP (K) | I10: SALINIDADE | J10: VOL,gasto | K10: WINKLER | L10: PORCENTAGEM | M10: SOLUBILIDADE | O10: CTD
C11: HMG | D11: LOCAL (m) | E11: COLETA | F11: CTD | G11: BANCADA | I11: PSU | J11: tiossulfato | K11: OD (ml / L) | M11: DO OXIGENIO | O11: OD (ml / L)
A12: 1 | B12: 2011-08-24 | C12: PT08H01M00S | D12: 3150 | E12: 2 | F12: 27.0375 | G12: 25.2 | H12: =of:=[.G12]+273 -> 298.2 | I12: 34.9647 | J12: 1.83 | K12: =of:=([.J$135]*[.J12]*112/[.J$136])*([.H12]/273) -> 4.232124454 | L12: =of:=[.K12]/[.M12] -> 93% | M12: =of:=EXP(-173.4292+249.6339*(100/([.F12]+273.15))+143.3483*LN(([.F12]+273.15)/100)-21.8492*(([.F12]+273.15)/100)+[.I12]*(-0.033096+0.014259*(([.F12]+273.15)/100)-0.0017*((([.F12]+273.15)/100))^2)) -> 4.56823108 | O12: 4.3296
A13: POSIÇÃO GEOGRÁFICA | E13: 79 | F13: 27.0156 | G13: 25.6 | H13: =of:=[.G13]+273 -> 298.6 | I13: 34.4739 | J13: 1.82 | K13: =of:=([.J$135]*[.J13]*112/[.J$136])*([.H13]/273) -> 4.214643964 | L13: =of:=[.K13]/[.M13] -> 92% | M13: =of:=EXP(-173.4292+249.6339*(100/([.F13]+273.15))+143.3483*LN(([.F13]+273.15)/100)-21.8492*(([.F13]+273.15)/100)+[.I13]*(-0.033096+0.014259*(([.F13]+273.15)/100)-0.0017*((([.F13]+273.15)/100))^2)) -> 4.582494573 | O13: 4.3353
A14: Latitude | B14: 01º59,32 S | E14: 99 | F14: 26.0305 | G14: 25.2 | H14: =of:=[.G14]+273 -> 298.2 | I14: 35.8505 | J14: 1.83 | K14: =of:=([.J$135]*[.J14]*112/[.J$136])*([.H14]/273) -> 4.232124454 | L14: =of:=[.K14]/[.M14] -> 92% | M14: =of:=EXP(-173.4292+249.6339*(100/([.F14]+273.15))+143.3483*LN(([.F14]+273.15)/100)-21.8492*(([.F14]+273.15)/100)+[.I14]*(-0.033096+0.014259*(([.F14]+273.15)/100)-0.0017*((([.F14]+273.15)/100))^2)) -> 4.622474393 | O14: 4.4961
A15: Longitude | B15: 038º02,41 W | E15: 150 | F15: 17.3745 | G15: 26 | H15: =of:=[.G15]+273 -> 299 | I15: 36.7684 | J15: 1.76 | K15: =of:=([.J$135]*[.J15]*112/[.J$136])*([.H15]/273) -> 4.081159402 | L15: =of:=[.K15]/[.M15] -> 76% | M15: =of:=EXP(-173.4292+249.6339*(100/([.F15]+273.15))+143.3483*LN(([.F15]+273.15)/100)-21.8492*(([.F15]+273.15)/100)+[.I15]*(-0.033096+0.014259*(([.F15]+273.15)/100)-0.0017*((([.F15]+273.15)/100))^2)) -> 5.370753618 | O15: 4.0513
E16: 598 | F16: 5.9027 | G16: 13.8 | H16: =of:=[.G16]+273 -> 286.8 | I16: 36.44 | J16: 1.73 | K16: =of:=([.J$135]*[.J16]*112/[.J$136])*([.H16]/273) -> 3.847910409 | L16: =of:=[.K16]/[.M16] -> 56% | M16: =of:=EXP(-173.4292+249.6339*(100/([.F16]+273.15))+143.3483*LN(([.F16]+273.15)/100)-21.8492*(([.F16]+273.15)/100)+[.I16]*(-0.033096+0.014259*(([.F16]+273.15)/100)-0.0017*((([.F16]+273.15)/100))^2)) -> 6.872797105 | O16: 3.7717
E17: 1496 | F17: 4.3548 | G17: 11.2 | H17: =of:=[.G17]+273 -> 284.2 | I17: 36.3247 | J17: 2.16 | K17: =of:=([.J$135]*[.J17]*112/[.J$136])*([.H17]/273) -> 4.760773572 | L17: =of:=[.K17]/[.M17] -> 67% | M17: =of:=EXP(-173.4292+249.6339*(100/([.F17]+273.15))+143.3483*LN(([.F17]+273.15)/100)-21.8492*(([.F17]+273.15)/100)+[.I17]*(-0.033096+0.014259*(([.F17]+273.15)/100)-0.0017*((([.F17]+273.15)/100))^2)) -> 7.138164728 | O17: 5.0314
A18: ESTAÇÃO | B18: DATA | C18: HORA | D18: PROFUND | E18: PROFUND | F18: TEMP (ºC) | G18: TEMP (ºC) | H18: TEMP (K) | I18: SALINIDADE | J18: VOL,gasto | K18: WINKLER | L18: PORCENTAGEM | M18: SOLUBILIDADE | O18: CTD
C19: HMG | D19: LOCAL (m) | E19: COLETA | F19: CTD | G19: BANCADA | I19: PSU | J19: tiossulfato | K19: OD (ml / L) | M19: DO OXIGENIO | O19: OD (ml / L)
A20: 3 | B20: 2011-08-24 | C20: PT23H25M00S | D20: 4443 | E20: 3 | F20: 26.8992 | G20: 25 | H20: =of:=[.F20]+273 -> 299.8992 | I20: 36.0127 | J20: 1.93 | K20: =of:=([.J$135]*[.J20]*112/[.J$136])*([.H20]/273) -> 4.488821315 | L20: =of:=[.K20]/[.M20] -> 99% | M20: =of:=EXP(-173.4292+249.6339*(100/([.F20]+273.15))+143.3483*LN(([.F20]+273.15)/100)-21.8492*(([.F20]+273.15)/100)+[.I20]*(-0.033096+0.014259*(([.F20]+273.15)/100)-0.0017*((([.F20]+273.15)/100))^2)) -> 4.55184868 | O20: 4.3295
A21: POSIÇÃO GEOGRÁFICA | E21: 108 | F21: 21.8556 | G21: 22.2 | H21: =of:=[.F21]+273 -> 294.8556 | I21: 36.4947 | J21: 1.84 | K21: =of:=([.J$135]*[.J21]*112/[.J$136])*([.H21]/273) -> 4.207526938 | L21: =of:=[.K21]/[.M21] -> 85% | M21: =of:=EXP(-173.4292+249.6339*(100/([.F21]+273.15))+143.3483*LN(([.F21]+273.15)/100)-21.8492*(([.F21]+273.15)/100)+[.I21]*(-0.033096+0.014259*(([.F21]+273.15)/100)-0.0017*((([.F21]+273.15)/100))^2)) -> 4.950693163 | O21: 4.0266
A22: Latitude | B22: 00º00,24 S | E22: 128 | F22: 18.6044 | G22: 21.9 | H22: =of:=[.G22]+273 -> 294.9 | I22: 35.9848 | J22: 1.6 | K22: =of:=([.J$135]*[.J22]*112/[.J$136])*([.H22]/273) -> 3.659270015 | L22: =of:=[.K22]/[.M22] -> 69% | M22: =of:=EXP(-173.4292+249.6339*(100/([.F22]+273.15))+143.3483*LN(([.F22]+273.15)/100)-21.8492*(([.F22]+273.15)/100)+[.I22]*(-0.033096+0.014259*(([.F22]+273.15)/100)-0.0017*((([.F22]+273.15)/100))^2)) -> 5.271089436 | O22: 3.7935
A23: Longitude | B23: 038º00,34 W | E23: 400 | F23: 8.4633 | G23: 19.6 | H23: =of:=[.G23]+273 -> 292.6 | I23: 34.7384 | J23: 1.32 | K23: =of:=([.J$135]*[.J23]*112/[.J$136])*([.H23]/273) -> 2.995352612 | L23: =of:=[.K23]/[.M23] -> 46% | M23: =of:=EXP(-173.4292+249.6339*(100/([.F23]+273.15))+143.3483*LN(([.F23]+273.15)/100)-21.8492*(([.F23]+273.15)/100)+[.I23]*(-0.033096+0.014259*(([.F23]+273.15)/100)-0.0017*((([.F23]+273.15)/100))^2)) -> 6.549637604 | O23: 2.9854
E24: 685 | F24: 5.4267 | G24: 19.4 | H24: =of:=[.G24]+273 -> 292.4 | I24: 34.5045 | J24: 1.48 | K24: =of:=([.J$135]*[.J24]*112/[.J$136])*([.H24]/273) -> 3.356130081 | L24: =of:=[.K24]/[.M24] -> 48% | M24: =of:=EXP(-173.4292+249.6339*(100/([.F24]+273.15))+143.3483*LN(([.F24]+273.15)/100)-21.8492*(([.F24]+273.15)/100)+[.I24]*(-0.033096+0.014259*(([.F24]+273.15)/100)-0.0017*((([.F24]+273.15)/100))^2)) -> 7.039807362 | O24: 3.3149
E25: 1493 | F25: 4.3067 | G25: 19.3 | H25: =of:=[.G25]+273 -> 292.3 | I25: 34.9731 | J25: 2.21 | K25: =of:=([.J$135]*[.J25]*112/[.J$136])*([.H25]/273) -> 5.009804641 | L25: =of:=[.K25]/[.M25] -> 69% | M25: =of:=EXP(-173.4292+249.6339*(100/([.F25]+273.15))+143.3483*LN(([.F25]+273.15)/100)-21.8492*(([.F25]+273.15)/100)+[.I25]*(-0.033096+0.014259*(([.F25]+273.15)/100)-0.0017*((([.F25]+273.15)/100))^2)) -> 7.21076601 | O25: 5.1594
A26: ESTAÇÃO | B26: DATA | C26: HORA | D26: PROFUND | E26: PROFUND | F26: TEMP (ºC) | G26: TEMP (ºC) | H26: TEMP (K) | I26: SALINIDADE | J26: VOL,gasto | K26: WINKLER | L26: PORCENTAGEM | M26: SOLUBILIDADE | O26: CTD
C27: HMG | D27: LOCAL (m) | E27: COLETA | F27: CTD | G27: BANCADA | I27: PSU | J27: tiossulfato | K27: OD (ml / L) | M27: DO OXIGENIO | O27: OD (ml / L)
A28: 5 | B28: 2011-08-25 | C28: PT15H42M00S | D28: 4447 | E28: 3 | F28: 27.8959 | G28: 27.6 | H28: =of:=[.G28]+273 -> 300.6 | I28: 35.6129 | J28: 1.85 | K28: =of:=([.J$135]*[.J28]*112/[.J$136])*([.H28]/273) -> 4.3128108 | L28: =of:=[.K28]/[.M28] -> 96% | M28: =of:=EXP(-173.4292+249.6339*(100/([.F28]+273.15))+143.3483*LN(([.F28]+273.15)/100)-21.8492*(([.F28]+273.15)/100)+[.I28]*(-0.033096+0.014259*(([.F28]+273.15)/100)-0.0017*((([.F28]+273.15)/100))^2)) -> 4.487859618 | O28: 4.3225
A29: POSIÇÃO GEOGRÁFICA | E29: 96 | F29: 26.6107 | G29: 27.4 | H29: =of:=[.G29]+273 -> 300.4 | I29: 35.7691 | J29: 1.68 | K29: =of:=([.J$135]*[.J29]*112/[.J$136])*([.H29]/273) -> 3.913892669 | L29: =of:=[.K29]/[.M29] -> 85% | M29: =of:=EXP(-173.4292+249.6339*(100/([.F29]+273.15))+143.3483*LN(([.F29]+273.15)/100)-21.8492*(([.F29]+273.15)/100)+[.I29]*(-0.033096+0.014259*(([.F29]+273.15)/100)-0.0017*((([.F29]+273.15)/100))^2)) -> 4.579971616 | O29: 3.9147
A30: Latitude | B30: 01º59,98 N | E30: 113 | F30: 17.0566 | G30: 22.9 | H30: =of:=[.G30]+273 -> 295.9 | I30: 35.6961 | J30: 0.89 | K30: =of:=([.J$135]*[.J30]*112/[.J$136])*([.H30]/273) -> 2.04237118 | L30: =of:=[.K30]/[.M30] -> 38% | M30: =of:=EXP(-173.4292+249.6339*(100/([.F30]+273.15))+143.3483*LN(([.F30]+273.15)/100)-21.8492*(([.F30]+273.15)/100)+[.I30]*(-0.033096+0.014259*(([.F30]+273.15)/100)-0.0017*((([.F30]+273.15)/100))^2)) -> 5.438842787 | O30: 2.058
A31: Longitude | B31: 038º00,34 W | E31: 495 | F31: 7.1746 | G31: 15.9 | H31: =of:=[.G31]+273 -> 288.9 | I31: 34.6334 | J31: 1.26 | K31: =of:=([.J$135]*[.J31]*112/[.J$136])*([.H31]/273) -> 2.82304492 | L31: =of:=[.K31]/[.M31] -> 42% | M31: =of:=EXP(-173.4292+249.6339*(100/([.F31]+273.15))+143.3483*LN(([.F31]+273.15)/100)-21.8492*(([.F31]+273.15)/100)+[.I31]*(-0.033096+0.014259*(([.F31]+273.15)/100)-0.0017*((([.F31]+273.15)/100))^2)) -> 6.750256265 | O31: 2.8791
E32: 698 | F32: 5.798 | G32: 15.1 | H32: =of:=[.G32]+273 -> 288.1 | I32: 34.5175 | J32: 1.5 | K32: =of:=([.J$135]*[.J32]*112/[.J$136])*([.H32]/273) -> 3.351461378 | L32: =of:=[.K32]/[.M32] -> 48% | M32: =of:=EXP(-173.4292+249.6339*(100/([.F32]+273.15))+143.3483*LN(([.F32]+273.15)/100)-21.8492*(([.F32]+273.15)/100)+[.I32]*(-0.033096+0.014259*(([.F32]+273.15)/100)-0.0017*((([.F32]+273.15)/100))^2)) -> 6.97713353 | O32: 3.322
E33: 1470 | F33: 4.4042 | G33: 14.5 | H33: =of:=[.G33]+273 -> 287.5 | I33: 34.9722 | J33: 2.24 | K33: =of:=([.J$135]*[.J33]*112/[.J$136])*([.H33]/273) -> 4.994425842 | L33: =of:=[.K33]/[.M33] -> 69% | M33: =of:=EXP(-173.4292+249.6339*(100/([.F33]+273.15))+143.3483*LN(([.F33]+273.15)/100)-21.8492*(([.F33]+273.15)/100)+[.I33]*(-0.033096+0.014259*(([.F33]+273.15)/100)-0.0017*((([.F33]+273.15)/100))^2)) -> 7.193670971 | O33: 5.0361
A34: ESTAÇÃO | B34: DATA | C34: HORA | D34: PROFUND | E34: PROFUND | F34: TEMP (ºC) | G34: TEMP (ºC) | H34: TEMP (K) | I34: SALINIDADE | J34: VOL,gasto | K34: WINKLER | L34: PORCENTAGEM | M34: SOLUBILIDADE | O34: CTD
C35: HMG | D35: LOCAL (m) | E35: COLETA | F35: CTD | G35: BANCADA | I35: PSU | J35: tiossulfato | K35: OD (ml / L) | M35: DO OXIGENIO | O35: OD (ml / L)
A36: 7 | B36: 2011-08-26 | C36: PT06H15M00S | D36: 4085 | E36: 3 | F36: 28.3323 | G36: 26.4 | H36: =of:=[.G36]+273 -> 299.4 | I36: 35.6245 | J36: 1.84 | K36: =of:=([.J$135]*[.J36]*112/[.J$136])*([.H36]/273) -> 4.272374563 | L36: =of:=[.K36]/[.M36] -> 79% | M36: =of:=EXP(-173.4292+249.6339*(100/([.F36]+273.15))+143.3483*LN(([.F36]+273.15)/100)-21.8492*(([.F36]+273.15)/100)+[.J38]*(-0.033096+0.014259*(([.F36]+273.15)/100)-0.0017*((([.F36]+273.15)/100))^2)) -> 5.391662809 | O36: 4.2945
A37: POSIÇÃO GEOGRÁFICA | E37: 89 | F37: 27.638 | G37: 26.6 | H37: =of:=[.G37]+273 -> 299.6 | I37: 35.9943 | J37: 1.75 | K37: =of:=([.J$135]*[.J37]*112/[.J$136])*([.H37]/273) -> 4.066114082 | L37: =of:=[.K37]/[.M37] -> 75% | M37: =of:=EXP(-173.4292+249.6339*(100/([.F37]+273.15))+143.3483*LN(([.F37]+273.15)/100)-21.8492*(([.F37]+273.15)/100)+[.J39]*(-0.033096+0.014259*(([.F37]+273.15)/100)-0.0017*((([.F37]+273.15)/100))^2)) -> 5.457095569 | O37: 4.0834
A38: Latitude | B38: 03º59,87 N | E38: 116 | F38: 20.9577 | G38: 22.6 | H38: =of:=[.G38]+273 -> 295.6 | I38: 35.8698 | J38: 1.33 | K38: =of:=([.J$135]*[.J38]*112/[.J$136])*([.H38]/273) -> 3.048988402 | L38: =of:=[.K38]/[.M38] -> 60% | M38: =of:=EXP(-173.4292+249.6339*(100/([.F38]+273.15))+143.3483*LN(([.F38]+273.15)/100)-21.8492*(([.F38]+273.15)/100)+[.I38]*(-0.033096+0.014259*(([.F38]+273.15)/100)-0.0017*((([.F38]+273.15)/100))^2)) -> 5.049841289 | O38: 3.0899
A39: Longitude | B39: 037º59,73 W | E39: 399 | F39: 10.0437 | G39: 16.1 | H39: =of:=[.G39]+273 -> 289.1 | I39: 34.9051 | J39: 1.37 | K39: =of:=([.J$135]*[.J39]*112/[.J$136])*([.H39]/273) -> 3.07162618 | L39: =of:=[.K39]/[.M39] -> 49% | M39: =of:=EXP(-173.4292+249.6339*(100/([.F39]+273.15))+143.3483*LN(([.F39]+273.15)/100)-21.8492*(([.F39]+273.15)/100)+[.I39]*(-0.033096+0.014259*(([.F39]+273.15)/100)-0.0017*((([.F39]+273.15)/100))^2)) -> 6.316260553 | O39: 3.1249
E40: 900 | F40: 5.5635 | G40: 14 | H40: =of:=[.G40]+273 -> 287 | I40: 34.559 | J40: 1.3 | K40: =of:=([.J$135]*[.J40]*112/[.J$136])*([.H40]/273) -> 2.893509754 | L40: =of:=[.K40]/[.M40] -> 41% | M40: =of:=EXP(-173.4292+249.6339*(100/([.F40]+273.15))+143.3483*LN(([.F40]+273.15)/100)-21.8492*(([.F40]+273.15)/100)+[.I40]*(-0.033096+0.014259*(([.F40]+273.15)/100)-0.0017*((([.F40]+273.15)/100))^2)) -> 7.014312266 | O40: 2.9003
E41: 3512 | F41: 2.4395 | G41: 12.7 | H41: =of:=[.G41]+273 -> 285.7 | I41: 34.9027 | J41: 2.6 | K41: =of:=([.J$135]*[.J41]*112/[.J$136])*([.H41]/273) -> 5.760806528 | L41: =of:=[.K41]/[.M41] -> 76% | M41: =of:=EXP(-173.4292+249.6339*(100/([.F41]+273.15))+143.3483*LN(([.F41]+273.15)/100)-21.8492*(([.F41]+273.15)/100)+[.I41]*(-0.033096+0.014259*(([.F41]+273.15)/100)-0.0017*((([.F41]+273.15)/100))^2)) -> 7.55704824 | O41: 5.705
A42: ESTAÇÃO | B42: DATA | C42: HORA | D42: PROFUND | E42: PROFUND | F42: TEMP (ºC) | G42: TEMP (ºC) | H42: TEMP (K) | I42: SALINIDADE | J42: VOL,gasto | K42: WINKLER | L42: PORCENTAGEM | M42: SOLUBILIDADE | O42: CTD
C43: HMG | D43: LOCAL (m) | E43: COLETA | F43: CTD | G43: BANCADA | I43: PSU | J43: tiossulfato | K43: OD (ml / L) | M43: DO OXIGENIO | O43: OD (ml / L)
A44: 15 | B44: 2011-08-29 | C44: PT00H24M00S | D44: 4645 | E44: 4 | F44: 28.6322 | G44: 26.2 | H44: =of:=[.G44]+273 -> 299.2 | I44: 35.7642 | J44: 1.92 | K44: =of:=([.J$135]*[.J44]*112/[.J$136])*([.H44]/273) -> 4.455151936 | L44: =of:=[.K44]/[.M44] -> 101% | M44: =of:=EXP(-173.4292+249.6339*(100/([.F44]+273.15))+143.3483*LN(([.F44]+273.15)/100)-21.8492*(([.F44]+273.15)/100)+[.I44]*(-0.033096+0.014259*(([.F44]+273.15)/100)-0.0017*((([.F44]+273.15)/100))^2)) -> 4.430754902 | O44: 4.2879
A45: POSIÇÃO GEOGRÁFICA | E45: 98 | F45: 19.4434 | G45: 21.4 | H45: =of:=[.G45]+273 -> 294.4 | I45: 36.5786 | J45: 1.25 | K45: =of:=([.J$135]*[.J45]*112/[.J$136])*([.H45]/273) -> 2.853957624 | L45: =of:=[.K45]/[.M45] -> 55% | M45: =of:=EXP(-173.4292+249.6339*(100/([.F45]+273.15))+143.3483*LN(([.F45]+273.15)/100)-21.8492*(([.F45]+273.15)/100)+[.I45]*(-0.033096+0.014259*(([.F45]+273.15)/100)-0.0017*((([.F45]+273.15)/100))^2)) -> 5.170631856 | O45: 2.888
A46: Latitude | B46: 11º30,31 N | E46: 178 | F46: 12.1489 | G46: 17.4 | H46: =of:=[.G46]+273 -> 290.4 | I46: 35.275 | J46: 1.02 | K46: =of:=([.J$135]*[.J46]*112/[.J$136])*([.H46]/273) -> 2.297187717 | L46: =of:=[.K46]/[.M46] -> 38% | M46: =of:=EXP(-173.4292+249.6339*(100/([.F46]+273.15))+143.3483*LN(([.F46]+273.15)/100)-21.8492*(([.F46]+273.15)/100)+[.I46]*(-0.033096+0.014259*(([.F46]+273.15)/100)-0.0017*((([.F46]+273.15)/100))^2)) -> 6.022190602 | O46: 2.1909
A47: Longitude | B47: 037º5720 W | E47: 698 | F47: 6.8656 | G47: 14.6 | H47: =of:=[.G47]+273 -> 287.6 | I47: 34.7975 | J47: 0.98 | K47: =of:=([.J$135]*[.J47]*112/[.J$136])*([.H47]/273) -> 2.185821327 | L47: =of:=[.K47]/[.M47] -> 32% | M47: =of:=EXP(-173.4292+249.6339*(100/([.F47]+273.15))+143.3483*LN(([.F47]+273.15)/100)-21.8492*(([.F47]+273.15)/100)+[.I47]*(-0.033096+0.014259*(([.F47]+273.15)/100)-0.0017*((([.F47]+273.15)/100))^2)) -> 6.791637245 | O47: 2.0995
E48: 1500 | F48: 4.3344 | G48: 15.6 | H48: =of:=[.G48]+273 -> 288.6 | I48: 34.9772 | J48: 2.21 | K48: =of:=([.J$135]*[.J48]*112/[.J$136])*([.H48]/273) -> 4.946389392 | L48: =of:=[.K48]/[.M48] -> 69% | M48: =of:=EXP(-173.4292+249.6339*(100/([.F48]+273.15))+143.3483*LN(([.F48]+273.15)/100)-21.8492*(([.F48]+273.15)/100)+[.I48]*(-0.033096+0.014259*(([.F48]+273.15)/100)-0.0017*((([.F48]+273.15)/100))^2)) -> 7.205694171 | O48: 4.9432
E49: 4003 | F49: 2.3963 | G49: 14 | H49: =of:=[.G49]+273 -> 287 | I49: 34.8895 | J49: 2.36 | K49: =of:=([.J$135]*[.J49]*112/[.J$136])*([.H49]/273) -> 5.252833092 | L49: =of:=[.K49]/[.M49] -> 69% | M49: =of:=EXP(-173.4292+249.6339*(100/([.F49]+273.15))+143.3483*LN(([.F49]+273.15)/100)-21.8492*(([.F49]+273.15)/100)+[.I49]*(-0.033096+0.014259*(([.F49]+273.15)/100)-0.0017*((([.F49]+273.15)/100))^2)) -> 7.565991997 | O49: 5.4623
A50: ESTAÇÃO | B50: DATA | C50: HORA | D50: PROFUND | E50: PROFUND | F50: TEMP (ºC) | G50: TEMP (ºC) | H50: TEMP (K) | I50: SALINIDADE | J50: VOL,gasto | K50: WINKLER | L50: PORCENTAGEM | M50: SOLUBILIDADE | O50: CTD
C51: HMG | D51: LOCAL (m) | E51: COLETA | F51: CTD | G51: BANCADA | I51: PSU | J51: tiossulfato | K51: OD (ml / L) | M51: DO OXIGENIO | O51: OD (ml / L)
A52: 17 | B52: 2011-08-29 | C52: PT16H11M00S | D52: 5368 | E52: 2 | F52: 28.211 | G52: 30 | H52: =of:=[.G52]+273 -> 303 | I52: 36.3471 | J52: 1.87 | K52: =of:=([.J$135]*[.J52]*112/[.J$136])*([.H52]/273) -> 4.394241656 | L52: =of:=[.K52]/[.M52] -> 99% | M52: =of:=EXP(-173.4292+249.6339*(100/([.F52]+273.15))+143.3483*LN(([.F52]+273.15)/100)-21.8492*(([.F52]+273.15)/100)+[.I52]*(-0.033096+0.014259*(([.F52]+273.15)/100)-0.0017*((([.F52]+273.15)/100))^2)) -> 4.446663924 | O52: 4.33
A53: POSIÇÃO GEOGRÁFICA | E53: 1 | F53: 28.21 | G53: 30 | H53: =of:=[.G53]+273 -> 303 | I53: 36.3522 | J53: 1.86 | K53: =of:=([.J$135]*[.J53]*112/[.J$136])*([.H53]/273) -> 4.370743038 | L53: =of:=[.K53]/[.M53] -> 98% | M53: =of:=EXP(-173.4292+249.6339*(100/([.F53]+273.15))+143.3483*LN(([.F53]+273.15)/100)-21.8492*(([.F53]+273.15)/100)+[.I53]*(-0.033096+0.014259*(([.F53]+273.15)/100)-0.0017*((([.F53]+273.15)/100))^2)) -> 4.446609935 | O53: 4.3351
A54: Latitude | B54: 13º14,43 N | E54: 17 | F54: 27.88 | G54: 28.8 | H54: =of:=[.G54]+273 -> 301.8 | I54: 36.4313 | J54: 1.86 | K54: =of:=([.J$135]*[.J54]*112/[.J$136])*([.H54]/273) -> 4.353433164 | L54: =of:=[.K54]/[.M54] -> 97% | M54: =of:=EXP(-173.4292+249.6339*(100/([.F54]+273.15))+143.3483*LN(([.F54]+273.15)/100)-21.8492*(([.F54]+273.15)/100)+[.I54]*(-0.033096+0.014259*(([.F54]+273.15)/100)-0.0017*((([.F54]+273.15)/100))^2)) -> 4.468582213 | O54: 4.3624
A55: Longitude | B55: 038º00,22 W | E55: 142 | F55: 14.92 | G55: 21.2 | H55: =of:=[.G55]+273 -> 294.2 | I55: 35.8174 | J55: 1.03 | K55: =of:=([.J$135]*[.J55]*112/[.J$136])*([.H55]/273) -> 2.350063486 | L55: =of:=[.K55]/[.M55] -> 41% | M55: =of:=EXP(-173.4292+249.6339*(100/([.F55]+273.15))+143.3483*LN(([.F55]+273.15)/100)-21.8492*(([.F55]+273.15)/100)+[.I55]*(-0.033096+0.014259*(([.F55]+273.15)/100)-0.0017*((([.F55]+273.15)/100))^2)) -> 5.668891189 | O55: 2.1911
E56: 597 | F56: 8.2 | G56: 16.6 | H56: =of:=[.G56]+273 -> 289.6 | I56: 34.9226 | J56: 0.82 | K56: =of:=([.J$135]*[.J56]*112/[.J$136])*([.H56]/273) -> 1.841671263 | L56: =of:=[.K56]/[.M56] -> 28% | M56: =of:=EXP(-173.4292+249.6339*(100/([.F56]+273.15))+143.3483*LN(([.F56]+273.15)/100)-21.8492*(([.F56]+273.15)/100)+[.I56]*(-0.033096+0.014259*(([.F56]+273.15)/100)-0.0017*((([.F56]+273.15)/100))^2)) -> 6.581039091 | O56: 1.8393
E57: 1498 | F57: 4.42 | G57: 14.4 | H57: =of:=[.G57]+273 -> 287.4 | I57: 34.9922 | J57: 2.07 | K57: =of:=([.J$135]*[.J57]*112/[.J$136])*([.H57]/273) -> 4.613779244 | L57: =of:=[.K57]/[.M57] -> 64% | M57: =of:=EXP(-173.4292+249.6339*(100/([.F57]+273.15))+143.3483*LN(([.F57]+273.15)/100)-21.8492*(([.F57]+273.15)/100)+[.I57]*(-0.033096+0.014259*(([.F57]+273.15)/100)-0.0017*((([.F57]+273.15)/100))^2)) -> 7.189949263 | O57: 4.7925
A58: ESTAÇÃO | B58: DATA | C58: HORA | D58: PROFUND | E58: PROFUND | F58: TEMP (ºC) | G58: TEMP (ºC) | H58: TEMP (K) | I58: SALINIDADE | J58: VOL,gasto | K58: WINKLER | L58: PORCENTAGEM | M58: SOLUBILIDADE | O58: CTD
C59: HMG | D59: LOCAL (m) | E59: COLETA | F59: CTD | G59: BANCADA | I59: PSU | J59: tiossulfato | K59: OD (ml / L) | M59: DO OXIGENIO | O59: OD (ml / L)
A60: 19 | B60: 2011-08-30 | C60: PT05H11M00S | D60: 5764 | E60: 1 | F60: 27.4486 | G60: 25.9 | H60: =of:=[.G60]+273 -> 298.9 | I60: 36.6566 | J60: 1.98 | K60: =of:=([.J$135]*[.J60]*112/[.J$136])*([.H60]/273) -> 4.589768775 | L60: =of:=[.K60]/[.M60] -> 102% | M60: =of:=EXP(-173.4292+249.6339*(100/([.F60]+273.15))+143.3483*LN(([.F60]+273.15)/100)-21.8492*(([.F60]+273.15)/100)+[.I60]*(-0.033096+0.014259*(([.F60]+273.15)/100)-0.0017*((([.F60]+273.15)/100))^2)) -> 4.494563815 | O60: 4.352
A61: POSIÇÃO GEOGRÁFICA | E61: 32 | F61: 25.99 | G61: 25.7 | H61: =of:=[.G61]+273 -> 298.7 | I61: 36.7947 | J61: 1.96 | K61: =of:=([.J$135]*[.J61]*112/[.J$136])*([.H61]/273) -> 4.540367388 | L61: =of:=[.K61]/[.M61] -> 99% | M61: =of:=EXP(-173.4292+249.6339*(100/([.F61]+273.15))+143.3483*LN(([.F61]+273.15)/100)-21.8492*(([.F61]+273.15)/100)+[.I61]*(-0.033096+0.014259*(([.F61]+273.15)/100)-0.0017*((([.F61]+273.15)/100))^2)) -> 4.600990107 | O61: 4.6497
A62: Latitude | B62: 14º58,19 N | E62: 55 | F62: 24.5089 | G62: 24.7 | H62: =of:=[.G62]+273 -> 297.7 | I62: 36.9947 | J62: 2.05 | K62: =of:=([.J$135]*[.J62]*112/[.J$136])*([.H62]/273) -> 4.732955241 | L62: =of:=[.K62]/[.M62] -> 100% | M62: =of:=EXP(-173.4292+249.6339*(100/([.F62]+273.15))+143.3483*LN(([.F62]+273.15)/100)-21.8492*(([.F62]+273.15)/100)+[.I62]*(-0.033096+0.014259*(([.F62]+273.15)/100)-0.0017*((([.F62]+273.15)/100))^2)) -> 4.712520645 | O62: 4.7343
A63: Longitude | B63: 038º00,34 W | E63: 203 | F63: 14.2858 | G63: 19.2 | H63: =of:=[.G63]+273 -> 292.2 | I63: 35.7775 | J63: 1.12 | K63: =of:=([.J$135]*[.J63]*112/[.J$136])*([.H63]/273) -> 2.538036924 | L63: =of:=[.K63]/[.M63] -> 44% | M63: =of:=EXP(-173.4292+249.6339*(100/([.F63]+273.15))+143.3483*LN(([.F63]+273.15)/100)-21.8492*(([.F63]+273.15)/100)+[.I63]*(-0.033096+0.014259*(([.F63]+273.15)/100)-0.0017*((([.F63]+273.15)/100))^2)) -> 5.743423209 | O63: 2.2023
E64: 1502 | F64: 4.534 | G64: 14 | H64: =of:=[.G64]+273 -> 287 | I64: 34.992 | J64: 2.02 | K64: =of:=([.J$135]*[.J64]*112/[.J$136])*([.H64]/273) -> 4.496069003 | L64: =of:=[.K64]/[.M64] -> 63% | M64: =of:=EXP(-173.4292+249.6339*(100/([.F64]+273.15))+143.3483*LN(([.F64]+273.15)/100)-21.8492*(([.F64]+273.15)/100)+[.I64]*(-0.033096+0.014259*(([.F64]+273.15)/100)-0.0017*((([.F64]+273.15)/100))^2)) -> 7.170029155 | O64: 4.6521
E65: 4080 | F65: 2.3828 | G65: 14.2 | H65: =of:=[.G65]+273 -> 287.2 | I65: 34.8886 | J65: 2.44 | K65: =of:=([.J$135]*[.J65]*112/[.J$136])*([.H65]/273) -> 5.434679827 | L65: =of:=[.K65]/[.M65] -> 72% | M65: =of:=EXP(-173.4292+249.6339*(100/([.F65]+273.15))+143.3483*LN(([.F65]+273.15)/100)-21.8492*(([.F65]+273.15)/100)+[.I65]*(-0.033096+0.014259*(([.F65]+273.15)/100)-0.0017*((([.F65]+273.15)/100))^2)) -> 7.568626707 | O65: 5.4402
A66: ESTAÇÃO | B66: DATA | C66: HORA | D66: PROFUND | E66: PROFUND | F66: TEMP (ºC) | G66: TEMP (ºC) | H66: TEMP (K) | I66: SALINIDADE | J66: VOL,gasto | K66: WINKLER | L66: PORCENTAGEM | M66: SOLUBILIDADE | O66: CTD
C67: HMG | D67: LOCAL (m) | E67: COLETA | F67: CTD | G67: BANCADA | I67: PSU | J67: tiossulfato | K67: OD (ml / L) | M67: DO OXIGENIO | O67: OD (ml / L)
A68: 24 | B68: 2011-09-14 | C68: PT21H52M00S | D68: 4520 | E68: 1 | F68: 27.41 | G68: 26 | H68: =of:=[.G68]+273 -> 299 | I68: 35.5338 | J68: 1.94 | K68: =of:=([.J$135]*[.J68]*112/[.J$136])*([.H68]/273) -> 4.498550705 | L68: =of:=[.K68]/[.M68] -> 99% | M68: =of:=EXP(-173.4292+249.6339*(100/([.F68]+273.15))+143.3483*LN(([.F68]+273.15)/100)-21.8492*(([.F68]+273.15)/100)+[.I68]*(-0.033096+0.014259*(([.F68]+273.15)/100)-0.0017*((([.F68]+273.15)/100))^2)) -> 4.525759936 | O68: 4.3444
A69: POSIÇÃO GEOGRÁFICA | E69: 106 | F69: 24.2355 | G69: 25.1 | H69: =of:=[.G69]+273 -> 298.1 | I69: 36.6942 | J69: 1.82 | K69: =of:=([.J$135]*[.J69]*112/[.J$136])*([.H69]/273) -> 4.207586623 | L69: =of:=[.K69]/[.M69] -> 89% | M69: =of:=EXP(-173.4292+249.6339*(100/([.F69]+273.15))+143.3483*LN(([.F69]+273.15)/100)-21.8492*(([.F69]+273.15)/100)+[.I69]*(-0.033096+0.014259*(([.F69]+273.15)/100)-0.0017*((([.F69]+273.15)/100))^2)) -> 4.742838866 | O69: 4.1326
A70: Latitude | B70: 00º00,81 S | E70: 501 | F70: 7.18 | G70: 15.9 | H70: =of:=[.G70]+273 -> 288.9 | I70: 34.6203 | J70: 1.38 | K70: =of:=([.J$135]*[.J70]*112/[.J$136])*([.H70]/273) -> 3.091906341 | L70: =of:=[.K70]/[.M70] -> 46% | M70: =of:=EXP(-173.4292+249.6339*(100/([.F70]+273.15))+143.3483*LN(([.F70]+273.15)/100)-21.8492*(([.F70]+273.15)/100)+[.I70]*(-0.033096+0.014259*(([.F70]+273.15)/100)-0.0017*((([.F70]+273.15)/100))^2)) -> 6.749985295 | O70: 2.9938
A71: Longitude | B71: 035°01,93W | E71: 762 | F71: 4.83 | G71: 14.3 | H71: =of:=[.G71]+273 -> 287.3 | I71: 34.4962 | J71: 1.65 | K71: =of:=([.J$135]*[.J71]*112/[.J$136])*([.H71]/273) -> 3.676370494 | L71: =of:=[.K71]/[.M71] -> 51% | M71: =of:=EXP(-173.4292+249.6339*(100/([.F71]+273.15))+143.3483*LN(([.F71]+273.15)/100)-21.8492*(([.F71]+273.15)/100)+[.I71]*(-0.033096+0.014259*(([.F71]+273.15)/100)-0.0017*((([.F71]+273.15)/100))^2)) -> 7.1420541 | O71: 3.5222
E72: 1507 | F72: 4.29 | G72: 14 | H72: =of:=[.G72]+273 -> 287 | I72: 34.9764 | J72: 2.36 | K72: =of:=([.J$135]*[.J72]*112/[.J$136])*([.H72]/273) -> 5.252833092 | L72: =of:=[.K72]/[.M72] -> 73% | M72: =of:=EXP(-173.4292+249.6339*(100/([.F72]+273.15))+143.3483*LN(([.F72]+273.15)/100)-21.8492*(([.F72]+273.15)/100)+[.I72]*(-0.033096+0.014259*(([.F72]+273.15)/100)-0.0017*((([.F72]+273.15)/100))^2)) -> 7.21355108 | O72: 5.1901
E73: 4010 | F73: 2.04 | G73: 14 | H73: =of:=[.G73]+273 -> 287 | I73: 34.8585 | J73: 2.5 | K73: =of:=([.J$135]*[.J73]*112/[.J$136])*([.H73]/273) -> 5.564441835 | L73: =of:=[.K73]/[.M73] -> 73% | M73: =of:=EXP(-173.4292+249.6339*(100/([.F73]+273.15))+143.3483*LN(([.F73]+273.15)/100)-21.8492*(([.F73]+273.15)/100)+[.I73]*(-0.033096+0.014259*(([.F73]+273.15)/100)-0.0017*((([.F73]+273.15)/100))^2)) -> 7.636440245 | O73: 5.5508
A74: ESTAÇÃO | B74: DATA | C74: HORA | D74: PROFUND | E74: PROFUND | F74: TEMP (ºC) | G74: TEMP (ºC) | H74: TEMP (K) | I74: SALINIDADE | J74: VOL,gasto | K74: WINKLER | L74: PORCENTAGEM | M74: SOLUBILIDADE | O74: CTD
C75: HMG | D75: LOCAL (m) | E75: COLETA | F75: CTD | G75: BANCADA | I75: PSU | J75: tiossulfato | K75: OD (ml / L) | M75: DO OXIGENIO | O75: OD (ml / L)
A76: 25 | B76: 2011-09-18 | C76: PT09H01M00S | D76: 5365 | E76: 1 | F76: 26.47 | G76: 26 | H76: =of:=[.G76]+273 -> 299 | I76: 36.1935 | J76: 1.89 | K76: =of:=([.J$135]*[.J76]*112/[.J$136])*([.H76]/273) -> 4.382608677 | L76: =of:=[.K76]/[.M76] -> 96% | M76: =of:=EXP(-173.4292+249.6339*(100/([.F76]+273.15))+143.3483*LN(([.F76]+273.15)/100)-21.8492*(([.F76]+273.15)/100)+[.I76]*(-0.033096+0.014259*(([.F76]+273.15)/100)-0.0017*((([.F76]+273.15)/100))^2)) -> 4.579755115 | O76: 4.3727
A77: POSIÇÃO GEOGRÁFICA | E77: 93 | F77: 25.35 | G77: 25.1 | H77: =of:=[.G77]+273 -> 298.1 | I77: 36.2656 | J77: 1.89 | K77: =of:=([.J$135]*[.J77]*112/[.J$136])*([.H77]/273) -> 4.369416878 | L77: =of:=[.K77]/[.M77] -> 94% | M77: =of:=EXP(-173.4292+249.6339*(100/([.F77]+273.15))+143.3483*LN(([.F77]+273.15)/100)-21.8492*(([.F77]+273.15)/100)+[.I77]*(-0.033096+0.014259*(([.F77]+273.15)/100)-0.0017*((([.F77]+273.15)/100))^2)) -> 4.664830586 | O77: 4.2243
A78: Latitude | B78: 07°49,13 S | E78: 706 | F78: 5.32 | G78: 16.8 | H78: =of:=[.G78]+273 -> 289.8 | I78: 34.477 | J78: 1.44 | K78: =of:=([.J$135]*[.J78]*112/[.J$136])*([.H78]/273) -> 3.236387946 | L78: =of:=[.K78]/[.M78] -> 46% | M78: =of:=EXP(-173.4292+249.6339*(100/([.F78]+273.15))+143.3483*LN(([.F78]+273.15)/100)-21.8492*(([.F78]+273.15)/100)+[.I78]*(-0.033096+0.014259*(([.F78]+273.15)/100)-0.0017*((([.F78]+273.15)/100))^2)) -> 7.059105625 | O78: 3.2687
A79: Longitude | B79: 030°32,07 W | E79: 1111 | F79: 4.11 | G79: 14.8 | H79: =of:=[.G79]+273 -> 287.8 | I79: 34.6561 | J79: 1.75 | K79: =of:=([.J$135]*[.J79]*112/[.J$136])*([.H79]/273) -> 3.905966732 | L79: =of:=[.K79]/[.M79] -> 54% | M79: =of:=EXP(-173.4292+249.6339*(100/([.F79]+273.15))+143.3483*LN(([.F79]+273.15)/100)-21.8492*(([.F79]+273.15)/100)+[.I79]*(-0.033096+0.014259*(([.F79]+273.15)/100)-0.0017*((([.F79]+273.15)/100))^2)) -> 7.260806102 | O79: 3.837
E80: 2022 | F80: 3.37 | G80: 14.2 | H80: =of:=[.G80]+273 -> 287.2 | I80: 34.9443 | J80: 2.42 | K80: =of:=([.J$135]*[.J80]*112/[.J$136])*([.H80]/273) -> 5.390133271 | L80: =of:=[.K80]/[.M80] -> 73% | M80: =of:=EXP(-173.4292+249.6339*(100/([.F80]+273.15))+143.3483*LN(([.F80]+273.15)/100)-21.8492*(([.F80]+273.15)/100)+[.I80]*(-0.033096+0.014259*(([.F80]+273.15)/100)-0.0017*((([.F80]+273.15)/100))^2)) -> 7.380592319 | O80: 5.4172
E81: 4060 | F81: 1.8 | G81: 13.6 | H81: =of:=[.G81]+273 -> 286.6 | I81: 34.0291 | J81: 2.38 | K81: =of:=([.J$135]*[.J81]*112/[.J$136])*([.H81]/273) -> 5.289965563 | L81: =of:=[.K81]/[.M81] -> 68% | M81: =of:=EXP(-173.4292+249.6339*(100/([.F81]+273.15))+143.3483*LN(([.F81]+273.15)/100)-21.8492*(([.F81]+273.15)/100)+[.I81]*(-0.033096+0.014259*(([.F81]+273.15)/100)-0.0017*((([.F81]+273.15)/100))^2)) -> 7.726543094 | O81: 5.343
A82: ESTAÇÃO | B82: DATA | C82: HORA | D82: PROFUND | E82: PROFUND | F82: TEMP (ºC) | G82: TEMP (ºC) | H82: TEMP (K) | I82: SALINIDADE | J82: VOL,gasto | K82: WINKLER | L82: PORCENTAGEM | M82: SOLUBILIDADE | O82: CTD
C83: HMG | D83: LOCAL (m) | E83: COLETA | F83: CTD | G83: BANCADA | I83: PSU | J83: tiossulfato | K83: OD (ml / L) | M83: DO OXIGENIO | O83: OD (ml / L)
A84: 27 | B84: 2011-09-29 | C84: PT10H32M00S | D84: 5105 | E84: 1 | F84: 25.95 | G84: 25.9 | H84: =of:=[.G84]+273 -> 298.9 | I84: 36.4604 | J84: 1.9 | K84: =of:=([.J$135]*[.J84]*112/[.J$136])*([.H84]/273) -> 4.404323572 | L84: =of:=[.K84]/[.M84] -> 95% | M84: =of:=EXP(-173.4292+249.6339*(100/([.F84]+273.15))+143.3483*LN(([.F84]+273.15)/100)-21.8492*(([.F84]+273.15)/100)+[.I84]*(-0.033096+0.014259*(([.F84]+273.15)/100)-0.0017*((([.F84]+273.15)/100))^2)) -> 4.612788669 | O84: 4.4301
A85: POSIÇÃO GEOGRÁFICA | E85: 81 | F85: 25.74 | G85: 25.7 | H85: =of:=[.G85]+273 -> 298.7 | I85: 36.623 | J85: 1.92 | K85: =of:=([.J$135]*[.J85]*112/[.J$136])*([.H85]/273) -> 4.44770683 | L85: =of:=[.K85]/[.M85] -> 96% | M85: =of:=EXP(-173.4292+249.6339*(100/([.F85]+273.15))+143.3483*LN(([.F85]+273.15)/100)-21.8492*(([.F85]+273.15)/100)+[.I85]*(-0.033096+0.014259*(([.F85]+273.15)/100)-0.0017*((([.F85]+273.15)/100))^2)) -> 4.624834346 | O85: 4.4406
A86: Latitude | B86: 10°42,80 S | E86: 132 | F86: 21.73 | G86: 22.7 | H86: =of:=[.G86]+273 -> 295.7 | I86: 36.6165 | J86: 1.81 | K86: =of:=([.J$135]*[.J86]*112/[.J$136])*([.H86]/273) -> 4.150778907 | L86: =of:=[.K86]/[.M86] -> 84% | M86: =of:=EXP(-173.4292+249.6339*(100/([.F86]+273.15))+143.3483*LN(([.F86]+273.15)/100)-21.8492*(([.F86]+273.15)/100)+[.I86]*(-0.033096+0.014259*(([.F86]+273.15)/100)-0.0017*((([.F86]+273.15)/100))^2)) -> 4.95830792 | O86: 4.1153
A87: Longitude | B87: 031°31,4 W | E87: 308 | F87: 10.1 | G87: 15.1 | H87: =of:=[.G87]+273 -> 288.1 | I87: 34.9312 | J87: 1.03 | K87: =of:=([.J$135]*[.J87]*112/[.J$136])*([.H87]/273) -> 2.301336813 | L87: =of:=[.K87]/[.M87] -> 36% | M87: =of:=EXP(-173.4292+249.6339*(100/([.F87]+273.15))+143.3483*LN(([.F87]+273.15)/100)-21.8492*(([.F87]+273.15)/100)+[.I87]*(-0.033096+0.014259*(([.F87]+273.15)/100)-0.0017*((([.F87]+273.15)/100))^2)) -> 6.307415215 | O87: 2.205
E88: 703 | F88: 5.34 | G88: 15.4 | H88: =of:=[.G88]+273 -> 288.4 | I88: 34.476 | J88: 1.46 | K88: =of:=([.J$135]*[.J88]*112/[.J$136])*([.H88]/273) -> 3.265485905 | L88: =of:=[.K88]/[.M88] -> 46% | M88: =of:=EXP(-173.4292+249.6339*(100/([.F88]+273.15))+143.3483*LN(([.F88]+273.15)/100)-21.8492*(([.F88]+273.15)/100)+[.I88]*(-0.033096+0.014259*(([.F88]+273.15)/100)-0.0017*((([.F88]+273.15)/100))^2)) -> 7.055766729 | O88: 3.2631
E89: 1488 | F89: 4.23 | G89: 14.2 | H89: =of:=[.G89]+273 -> 287.2 | I89: 34.9193 | J89: 2.15 | K89: =of:=([.J$135]*[.J89]*112/[.J$136])*([.H89]/273) -> 4.788754766 | L89: =of:=[.K89]/[.M89] -> 66% | M89: =of:=EXP(-173.4292+249.6339*(100/([.F89]+273.15))+143.3483*LN(([.F89]+273.15)/100)-21.8492*(([.F89]+273.15)/100)+[.I89]*(-0.033096+0.014259*(([.F89]+273.15)/100)-0.0017*((([.F89]+273.15)/100))^2)) -> 7.226873896 | O89: 4.7985
A90: ESTAÇÃO | B90: DATA | C90: HORA | D90: PROFUND | E90: PROFUND | F90: TEMP (ºC) | G90: TEMP (ºC) | H90: TEMP (K) | I90: SALINIDADE | J90: VOL,gasto | K90: WINKLER | L90: PORCENTAGEM | M90: SOLUBILIDADE | O90: CTD
C91: HMG | D91: LOCAL (m) | E91: COLETA | F91: CTD | G91: BANCADA | I91: PSU | J91: tiossulfato | K91: OD (ml / L) | M91: DO OXIGENIO | O91: OD (ml / L)
A92: 28 | B92: 2011-09-29 | C92: PT22H10M00S | D92: 2587 | E92: 6 | F92: 25.8 | G92: 25.6 | H92: =of:=[.G92]+273 -> 298.6 | I92: 36.5752 | J92: 1.92 | K92: =of:=([.J$135]*[.J92]*112/[.J$136])*([.H92]/273) -> 4.446217808 | L92: =of:=[.K92]/[.M92] -> 96% | M92: =of:=EXP(-173.4292+249.6339*(100/([.F92]+273.15))+143.3483*LN(([.F92]+273.15)/100)-21.8492*(([.F92]+273.15)/100)+[.I92]*(-0.033096+0.014259*(([.F92]+273.15)/100)-0.0017*((([.F92]+273.15)/100))^2)) -> 4.621420731 | O92: 4.4532
A93: POSIÇÃO GEOGRÁFICA | E93: 134 | F93: 22.78 | G93: 23 | H93: =of:=[.G93]+273 -> 296 | I93: 36.8273 | J93: 1.88 | K93: =of:=([.J$135]*[.J93]*112/[.J$136])*([.H93]/273) -> 4.315680268 | L93: =of:=[.K93]/[.M93] -> 89% | M93: =of:=EXP(-173.4292+249.6339*(100/([.F93]+273.15))+143.3483*LN(([.F93]+273.15)/100)-21.8492*(([.F93]+273.15)/100)+[.I93]*(-0.033096+0.014259*(([.F93]+273.15)/100)-0.0017*((([.F93]+273.15)/100))^2)) -> 4.860790515 | O93: 4.3473
A94: Latitude | B94: 12°08,30 S | E94: 306 | F94: 11.53 | G94: 16.2 | H94: =of:=[.G94]+273 -> 289.2 | I94: 35.0771 | J94: 1.13 | K94: =of:=([.J$135]*[.J94]*112/[.J$136])*([.H94]/273) -> 2.534407434 | L94: =of:=[.K94]/[.M94] -> 41% | M94: =of:=EXP(-173.4292+249.6339*(100/([.F94]+273.15))+143.3483*LN(([.F94]+273.15)/100)-21.8492*(([.F94]+273.15)/100)+[.I94]*(-0.033096+0.014259*(([.F94]+273.15)/100)-0.0017*((([.F94]+273.15)/100))^2)) -> 6.10948272 | O94: 2.5138
A95: Longitude | B95: 032°03,37 W | E95: 504 | F95: 6.62 | G95: 15.8 | H95: =of:=[.G95]+273 -> 288.8 | I95: 34.5373 | J95: 1.48 | K95: =of:=([.J$135]*[.J95]*112/[.J$136])*([.H95]/273) -> 3.314809738 | L95: =of:=[.K95]/[.M95] -> 48% | M95: =of:=EXP(-173.4292+249.6339*(100/([.F95]+273.15))+143.3483*LN(([.F95]+273.15)/100)-21.8492*(([.F95]+273.15)/100)+[.I95]*(-0.033096+0.014259*(([.F95]+273.15)/100)-0.0017*((([.F95]+273.15)/100))^2)) -> 6.842263838 | O95: 3.324
E96: 709 | F96: 5.07 | G96: 15 | H96: =of:=[.G96]+273 -> 288 | I96: 34.4534 | J96: 1.55 | K96: =of:=([.J$135]*[.J96]*112/[.J$136])*([.H96]/273) -> 3.461974683 | L96: =of:=[.K96]/[.M96] -> 49% | M96: =of:=EXP(-173.4292+249.6339*(100/([.F96]+273.15))+143.3483*LN(([.F96]+273.15)/100)-21.8492*(([.F96]+273.15)/100)+[.I96]*(-0.033096+0.014259*(([.F96]+273.15)/100)-0.0017*((([.F96]+273.15)/100))^2)) -> 7.102770645 | O96: 3.4634
E97: 1517 | F97: 4.09 | G97: 14.7 | H97: =of:=[.G97]+273 -> 287.7 | I97: 34.9037 | J97: 2.18 | K97: =of:=([.J$135]*[.J97]*112/[.J$136])*([.H97]/273) -> 4.864027898 | L97: =of:=[.K97]/[.M97] -> 67% | M97: =of:=EXP(-173.4292+249.6339*(100/([.F97]+273.15))+143.3483*LN(([.F97]+273.15)/100)-21.8492*(([.F97]+273.15)/100)+[.I97]*(-0.033096+0.014259*(([.F97]+273.15)/100)-0.0017*((([.F97]+273.15)/100))^2)) -> 7.252453577 | O97: 4.7825
A98: ESTAÇÃO | B98: DATA | C98: HORA | D98: PROFUND | E98: PROFUND | F98: TEMP (ºC) | G98: TEMP (ºC) | H98: TEMP (K) | I98: SALINIDADE | J98: VOL,gasto | K98: WINKLER | L98: PORCENTAGEM | M98: SOLUBILIDADE | O98: CTD
C99: HMG | D99: LOCAL (m) | E99: COLETA | F99: CTD | G99: BANCADA | I99: PSU | J99: tiossulfato | K99: OD (ml / L) | M99: DO OXIGENIO | O99: OD (ml / L)
A100: 29 | B100: 2011-09-30 | C100: PT09H15M00S | D100: 4670 | E100: 6 | F100: 25.41 | G100: 25.5 | H100: =of:=[.G100]+273 -> 298.5 | I100: 36.927 | J100: 1.95 | K100: =of:=([.J$135]*[.J100]*112/[.J$136])*([.H100]/273) -> 4.514177674 | L100: =of:=[.K100]/[.M100] -> 97% | M100: =of:=EXP(-173.4292+249.6339*(100/([.F100]+273.15))+143.3483*LN(([.F100]+273.15)/100)-21.8492*(([.F100]+273.15)/100)+[.I100]*(-0.033096+0.014259*(([.F100]+273.15)/100)-0.0017*((([.F100]+273.15)/100))^2)) -> 4.642627049 | O100: 4.4874
A101: POSIÇÃO GEOGRÁFICA | E101: 120 | F101: 25.24 | G101: 25.2 | H101: =of:=[.G101]+273 -> 298.2 | I101: 37.0082 | J101: 1.93 | K101: =of:=([.J$135]*[.J101]*112/[.J$136])*([.H101]/273) -> 4.463388086 | L101: =of:=[.K101]/[.M101] -> 96% | M101: =of:=EXP(-173.4292+249.6339*(100/([.F101]+273.15))+143.3483*LN(([.F101]+273.15)/100)-21.8492*(([.F101]+273.15)/100)+[.I101]*(-0.033096+0.014259*(([.F101]+273.15)/100)-0.0017*((([.F101]+273.15)/100))^2)) -> 4.65384965 | O101: 4.4698
A102: Latitude | B102: 13°33,10 S | E102: 710 | F102: 4.79 | G102: 16 | H102: =of:=[.G102]+273 -> 289 | I102: 34.3764 | J102: 1.67 | K102: =of:=([.J$135]*[.J102]*112/[.J$136])*([.H102]/273) -> 3.742949913 | L102: =of:=[.K102]/[.M102] -> 52% | M102: =of:=EXP(-173.4292+249.6339*(100/([.F102]+273.15))+143.3483*LN(([.F102]+273.15)/100)-21.8492*(([.F102]+273.15)/100)+[.I102]*(-0.033096+0.014259*(([.F102]+273.15)/100)-0.0017*((([.F102]+273.15)/100))^2)) -> 7.154628791 | O102: 3.8818
A103: Longitude | B103: 032°31,80 W | E103: 1107 | F103: 3.92 | G103: 14.5 | H103: =of:=[.G103]+273 -> 287.5 | I103: 34.6534 | J103: 1.83 | K103: =of:=([.J$135]*[.J103]*112/[.J$136])*([.H103]/273) -> 4.080267541 | L103: =of:=[.K103]/[.M103] -> 56% | M103: =of:=EXP(-173.4292+249.6339*(100/([.F103]+273.15))+143.3483*LN(([.F103]+273.15)/100)-21.8492*(([.F103]+273.15)/100)+[.I103]*(-0.033096+0.014259*(([.F103]+273.15)/100)-0.0017*((([.F103]+273.15)/100))^2)) -> 7.294924362 | O103: 4.0764
E104: 2019 | F104: 3.29 | G104: 13.9 | H104: =of:=[.G104]+273 -> 286.9 | I104: 34.9471 | J104: 2.46 | K104: =of:=([.J$135]*[.J104]*112/[.J$136])*([.H104]/273) -> 5.473502957 | L104: =of:=[.K104]/[.M104] -> 74% | M104: =of:=EXP(-173.4292+249.6339*(100/([.F104]+273.15))+143.3483*LN(([.F104]+273.15)/100)-21.8492*(([.F104]+273.15)/100)+[.I104]*(-0.033096+0.014259*(([.F104]+273.15)/100)-0.0017*((([.F104]+273.15)/100))^2)) -> 7.395163815 | O104: 5.5305
E105: 4062 | F105: 1.71 | G105: 13.2 | H105: =of:=[.G105]+273 -> 286.2 | I105: 34.821 | J105: 2.38 | K105: =of:=([.J$135]*[.J105]*112/[.J$136])*([.H105]/273) -> 5.282582498 | L105: =of:=[.K105]/[.M105] -> 69% | M105: =of:=EXP(-173.4292+249.6339*(100/([.F105]+273.15))+143.3483*LN(([.F105]+273.15)/100)-21.8492*(([.F105]+273.15)/100)+[.I105]*(-0.033096+0.014259*(([.F105]+273.15)/100)-0.0017*((([.F105]+273.15)/100))^2)) -> 7.703165705 | O105: 5.2941
A106: ESTAÇÃO | B106: DATA | C106: HORA | D106: PROFUND | E106: PROFUND | F106: TEMP (ºC) | G106: TEMP (ºC) | H106: TEMP (K) | I106: SALINIDADE | J106: VOL,gasto | K106: WINKLER | L106: PORCENTAGEM | M106: SOLUBILIDADE | O106: CTD
C107: HMG | D107: LOCAL (m) | E107: COLETA | F107: CTD | G107: BANCADA | I107: PSU | J107: tiossulfato | K107: OD (ml / L) | M107: DO OXIGENIO | O107: OD (ml / L)
A108: 30 | B108: 2011-10-01 | C108: PT07H30M00S | D108: 4535 | E108: 1 | F108: 25.0499 | G108: 25.1 | H108: =of:=[.G108]+273 -> 298.1 | I108: 37.1042 | J108: 1.98 | K108: =of:=([.J$135]*[.J108]*112/[.J$136])*([.H108]/273) -> 4.577484348 | L108: =of:=[.K108]/[.M108] -> 98% | M108: =of:=EXP(-173.4292+249.6339*(100/([.F108]+273.15))+143.3483*LN(([.F108]+273.15)/100)-21.8492*(([.F108]+273.15)/100)+[.I108]*(-0.033096+0.014259*(([.F108]+273.15)/100)-0.0017*((([.F108]+273.15)/100))^2)) -> 4.666327901 | O108: 4.4745
A109: POSIÇÃO GEOGRÁFICA | E109: 115 | F109: 24.1443 | G109: 24.9 | H109: =of:=[.G109]+273 -> 297.9 | I109: 37.2177 | J109: 1.95 | K109: =of:=([.J$135]*[.J109]*112/[.J$136])*([.H109]/273) -> 4.50510395 | L109: =of:=[.K109]/[.M109] -> 95% | M109: =of:=EXP(-173.4292+249.6339*(100/([.F109]+273.15))+143.3483*LN(([.F109]+273.15)/100)-21.8492*(([.F109]+273.15)/100)+[.I109]*(-0.033096+0.014259*(([.F109]+273.15)/100)-0.0017*((([.F109]+273.15)/100))^2)) -> 4.736066424 | O109: 4.5146
A110: Latitude | B110: 14°53,90 S | E110: 253 | F110: 14.6943 | G110: 18.2 | H110: =of:=[.G110]+273 -> 291.2 | I110: 35.4133 | J110: 1.77 | K110: =of:=([.J$135]*[.J110]*112/[.J$136])*([.H110]/273) -> 3.997277865 | L110: =of:=[.K110]/[.M110] -> 70% | M110: =of:=EXP(-173.4292+249.6339*(100/([.F110]+273.15))+143.3483*LN(([.F110]+273.15)/100)-21.8492*(([.F110]+273.15)/100)+[.I110]*(-0.033096+0.014259*(([.F110]+273.15)/100)-0.0017*((([.F110]+273.15)/100))^2)) -> 5.70885549 | O110: 3.9912
A111: Longitude | B111: 033°07,20 W | E111: 533 | F111: 6.7926 | G111: 16.4 | H111: =of:=[.G111]+273 -> 289.4 | I111: 34.5585 | J111: 1.41 | K111: =of:=([.J$135]*[.J111]*112/[.J$136])*([.H111]/273) -> 3.164589197 | L111: =of:=[.K111]/[.M111] -> 46% | M111: =of:=EXP(-173.4292+249.6339*(100/([.F111]+273.15))+143.3483*LN(([.F111]+273.15)/100)-21.8492*(([.F111]+273.15)/100)+[.I111]*(-0.033096+0.014259*(([.F111]+273.15)/100)-0.0017*((([.F111]+273.15)/100))^2)) -> 6.813780618 | O111: 3.166
E112: 712 | F112: 4.5853 | G112: 16 | H112: =of:=[.G112]+273 -> 289 | I112: 34.4036 | J112: 1.82 | K112: =of:=([.J$135]*[.J112]*112/[.J$136])*([.H112]/273) -> 4.079143019 | L112: =of:=[.K112]/[.M112] -> 57% | M112: =of:=EXP(-173.4292+249.6339*(100/([.F112]+273.15))+143.3483*LN(([.F112]+273.15)/100)-21.8492*(([.F112]+273.15)/100)+[.I112]*(-0.033096+0.014259*(([.F112]+273.15)/100)-0.0017*((([.F112]+273.15)/100))^2)) -> 7.188986192 | O112: 4.0632
E113: 1502 | F113: 3.9239 | G113: 14.8 | H113: =of:=[.G113]+273 -> 287.8 | I113: 34.9044 | J113: 2.2 | K113: =of:=([.J$135]*[.J113]*112/[.J$136])*([.H113]/273) -> 4.910358177 | L113: =of:=[.K113]/[.M113] -> 67% | M113: =of:=EXP(-173.4292+249.6339*(100/([.F113]+273.15))+143.3483*LN(([.F113]+273.15)/100)-21.8492*(([.F113]+273.15)/100)+[.I113]*(-0.033096+0.014259*(([.F113]+273.15)/100)-0.0017*((([.F113]+273.15)/100))^2)) -> 7.282079121 | O113: 4.9013
A114: ESTAÇÃO | B114: DATA | C114: HORA | D114: PROFUND | E114: PROFUND | F114: TEMP (ºC) | G114: TEMP (ºC) | H114: TEMP (K) | I114: SALINIDADE | J114: VOL,gasto | K114: WINKLER | L114: PORCENTAGEM | M114: SOLUBILIDADE | O114: CTD
C115: HMG | D115: LOCAL (m) | E115: COLETA | F115: CTD | G115: BANCADA | I115: PSU | J115: tiossulfato | K115: OD (ml / L) | M115: DO OXIGENIO | O115: OD (ml / L)
A116: 31 | B116: 2011-10-01 | C116: PT17H56M00S | D116: 4525 | E116: 1 | F116: 24.95 | G116: 25 | H116: =of:=[.G116]+273 -> 298 | I116: 37.2498 | J116: 2.02 | K116: =of:=([.J$135]*[.J116]*112/[.J$136])*([.H116]/273) -> 4.668392205 | L116: =of:=[.K116]/[.M116] -> 100% | M116: =of:=EXP(-173.4292+249.6339*(100/([.F116]+273.15))+143.3483*LN(([.F116]+273.15)/100)-21.8492*(([.F116]+273.15)/100)+[.I116]*(-0.033096+0.014259*(([.F116]+273.15)/100)-0.0017*((([.F116]+273.15)/100))^2)) -> 4.670381171 | O116: 4.5225
A117: POSIÇÃO GEOGRÁFICA | E117: 161 | F117: 23.72 | G117: 24.2 | H117: =of:=[.G117]+273 -> 297.2 | I117: 37.2516 | J117: 1.96 | K117: =of:=([.J$135]*[.J117]*112/[.J$136])*([.H117]/273) -> 4.517566749 | L117: =of:=[.K117]/[.M117] -> 95% | M117: =of:=EXP(-173.4292+249.6339*(100/([.F117]+273.15))+143.3483*LN(([.F117]+273.15)/100)-21.8492*(([.F117]+273.15)/100)+[.I117]*(-0.033096+0.014259*(([.F117]+273.15)/100)-0.0017*((([.F117]+273.15)/100))^2)) -> 4.769968653 | O117: 4.4926
A118: Latitude | B118: 16°14,21 S | E118: 199 | F118: 19.93 | G118: 20.8 | H118: =of:=[.G118]+273 -> 293.8 | I118: 36.3533 | J118: 1.88 | K118: =of:=([.J$135]*[.J118]*112/[.J$136])*([.H118]/273) -> 4.283604266 | L118: =of:=[.K118]/[.M118] -> 83% | M118: =of:=EXP(-173.4292+249.6339*(100/([.F118]+273.15))+143.3483*LN(([.F118]+273.15)/100)-21.8492*(([.F118]+273.15)/100)+[.I118]*(-0.033096+0.014259*(([.F118]+273.15)/100)-0.0017*((([.F118]+273.15)/100))^2)) -> 5.131096995 | O118: 4.2721
A119: Longitude | B119: 033°38,83 W | E119: 449 | F119: 9.08 | G119: 18.9 | H119: =of:=[.G119]+273 -> 291.9 | I119: 34.7414 | J119: 1.52 | K119: =of:=([.J$135]*[.J119]*112/[.J$136])*([.H119]/273) -> 3.440942256 | L119: =of:=[.K119]/[.M119] -> 53% | M119: =of:=EXP(-173.4292+249.6339*(100/([.F119]+273.15))+143.3483*LN(([.F119]+273.15)/100)-21.8492*(([.F119]+273.15)/100)+[.I119]*(-0.033096+0.014259*(([.F119]+273.15)/100)-0.0017*((([.F119]+273.15)/100))^2)) -> 6.459321189 | O119: 3.4065
E120: 702 | F120: 4.67 | G120: 14.5 | H120: =of:=[.G120]+273 -> 287.5 | I120: 34.3923 | J120: 1.88 | K120: =of:=([.J$135]*[.J120]*112/[.J$136])*([.H120]/273) -> 4.19175026 | L120: =of:=[.K120]/[.M120] -> 58% | M120: =of:=EXP(-173.4292+249.6339*(100/([.F120]+273.15))+143.3483*LN(([.F120]+273.15)/100)-21.8492*(([.F120]+273.15)/100)+[.I120]*(-0.033096+0.014259*(([.F120]+273.15)/100)-0.0017*((([.F120]+273.15)/100))^2)) -> 7.174735816 | O120: 4.1837
E121: 1557 | F121: 4.01 | G121: 13.2 | H121: =of:=[.G121]+273 -> 286.2 | I121: 34.9352 | J121: 2.26 | K121: =of:=([.J$135]*[.J121]*112/[.J$136])*([.H121]/273) -> 5.016233801 | L121: =of:=[.K121]/[.M121] -> 69% | M121: =of:=EXP(-173.4292+249.6339*(100/([.F121]+273.15))+143.3483*LN(([.F121]+273.15)/100)-21.8492*(([.F121]+273.15)/100)+[.I121]*(-0.033096+0.014259*(([.F121]+273.15)/100)-0.0017*((([.F121]+273.15)/100))^2)) -> 7.265193305 | O121: 5.0429
A122: ESTAÇÃO | B122: DATA | C122: HORA | D122: PROFUND | E122: PROFUND | F122: TEMP (ºC) | G122: TEMP (ºC) | H122: TEMP (K) | I122: SALINIDADE | J122: VOL,gasto | K122: WINKLER | L122: PORCENTAGEM | M122: SOLUBILIDADE | O122: CTD
C123: HMG | D123: LOCAL (m) | E123: COLETA | F123: CTD | G123: BANCADA | I123: PSU | J123: tiossulfato | K123: OD (ml / L) | M123: DO OXIGENIO | O123: OD (ml / L)
A124: 33 | B124: 2011-10-02 | C124: PT17H26M00S | D124: 4177 | E124: 1 | F124: 24.1 | G124: 24.8 | H124: =of:=[.G124]+273 -> 297.8 | I124: 37.315 | J124: 1.97 | K124: =of:=([.J$135]*[.J124]*112/[.J$136])*([.H124]/273) -> 4.549782347 | L124: =of:=[.K124]/[.M124] -> 96% | M124: =of:=EXP(-173.4292+249.6339*(100/([.F124]+273.15))+143.3483*LN(([.F124]+273.15)/100)-21.8492*(([.F124]+273.15)/100)+[.I124]*(-0.033096+0.014259*(([.F124]+273.15)/100)-0.0017*((([.F124]+273.15)/100))^2)) -> 4.737037891 | O124: 4.5539
A125: POSIÇÃO GEOGRÁFICA | E125: 138 | F125: 23.77 | G125: 24 | H125: =of:=[.G125]+273 -> 297 | I125: 37.2781 | J125: 1.94 | K125: =of:=([.J$135]*[.J125]*112/[.J$136])*([.H125]/273) -> 4.468460065 | L125: =of:=[.K125]/[.M125] -> 94% | M125: =of:=EXP(-173.4292+249.6339*(100/([.F125]+273.15))+143.3483*LN(([.F125]+273.15)/100)-21.8492*(([.F125]+273.15)/100)+[.I125]*(-0.033096+0.014259*(([.F125]+273.15)/100)-0.0017*((([.F125]+273.15)/100))^2)) -> 4.765114372 | O125: 4.4991
A126: Latitude | B126: 18°58,13 S | E126: 507 | F126: 9.07 | G126: 18.7 | H126: =of:=[.G126]+273 -> 291.7 | I126: 34.7098 | J126: 1.81 | K126: =of:=([.J$135]*[.J126]*112/[.J$136])*([.H126]/273) -> 4.094630393 | L126: =of:=[.K126]/[.M126] -> 63% | M126: =of:=EXP(-173.4292+249.6339*(100/([.F126]+273.15))+143.3483*LN(([.F126]+273.15)/100)-21.8492*(([.F126]+273.15)/100)+[.I126]*(-0.033096+0.014259*(([.F126]+273.15)/100)-0.0017*((([.F126]+273.15)/100))^2)) -> 6.462071253 | O126: 4.0054
A127: Longitude | B127: 034°47,72 W | E127: 1008 | F127: 3.62 | G127: 14.2 | H127: =of:=[.G127]+273 -> 287.2 | I127: 34.4814 | J127: 1.86 | K127: =of:=([.J$135]*[.J127]*112/[.J$136])*([.H127]/273) -> 4.142829704 | L127: =of:=[.K127]/[.M127] -> 56% | M127: =of:=EXP(-173.4292+249.6339*(100/([.F127]+273.15))+143.3483*LN(([.F127]+273.15)/100)-21.8492*(([.F127]+273.15)/100)+[.I127]*(-0.033096+0.014259*(([.F127]+273.15)/100)-0.0017*((([.F127]+273.15)/100))^2)) -> 7.357582828 | O127: 4.1461
E128: 2521 | F128: 2.91 | G128: 13.1 | H128: =of:=[.G128]+273 -> 286.1 | I128: 34.9281 | J128: 2.42 | K128: =of:=([.J$135]*[.J128]*112/[.J$136])*([.H128]/273) -> 5.36948861 | L128: =of:=[.K128]/[.M128] -> 72% | M128: =of:=EXP(-173.4292+249.6339*(100/([.F128]+273.15))+143.3483*LN(([.F128]+273.15)/100)-21.8492*(([.F128]+273.15)/100)+[.I128]*(-0.033096+0.014259*(([.F128]+273.15)/100)-0.0017*((([.F128]+273.15)/100))^2)) -> 7.466694005 | O128: 5.3308
E129: 3760 | F129: 1.63 | G129: 12.2 | H129: =of:=[.G129]+273 -> 285.2 | I129: 34.8118 | J129: 2.37 | K129: =of:=([.J$135]*[.J129]*112/[.J$136])*([.H129]/273) -> 5.242006666 | L129: =of:=[.K129]/[.M129] -> 68% | M129: =of:=EXP(-173.4292+249.6339*(100/([.F129]+273.15))+143.3483*LN(([.F129]+273.15)/100)-21.8492*(([.F129]+273.15)/100)+[.I129]*(-0.033096+0.014259*(([.F129]+273.15)/100)-0.0017*((([.F129]+273.15)/100))^2)) -> 7.719498827 | O129: 5.2519
B133: DADOS COMPLEMENTARES
B135: FATOR DE CORREÇÃO TIOSSULFATO DE SÓDIO | J135: 0.94517958
B136: VOLUME TOTAL DA ALICOTA UTILIZADA PARA ANÁLISE (ml) | J136: 50
B138: OBSERVAÇÕES GERAIS
B139: PERFIL Nº | E139: 3
B140: Nº ESTAÇÕES | E140: 33
B141: REALIZADAS | E141: 15
B142: LEITURA DAS AMOSTRAS | E142: 90
B144: FEITO POR : | D144: Cb Hn Lourenço
B145: CONFERIDO POR: | D145: Cb Hn Ornelis

Sheet PIR001

Sheet PIR003

Sheet PIR005

Sheet PIR007

Sheet PIR015

Sheet PIR017

Sheet PIR019

Sheet PIR024

Sheet PIR025

Sheet PIR027

Sheet PIR028

Sheet PIR029

Sheet PIR030

Sheet PIR031

Sheet PIR033

Sheet COMP. OD BANCADAxCTD
A1: PIRATA XIII / 2011.
A4: COMPARAÇÃO ENTRE VALORES DE OD CTD - BANCADA
A6: ESTAÇÃO | B6: GARRAFA | C6: PROFUNDIDADE | D6: OD | E6: OD | F6: DIFERENÇA
B7: Nº | C7: COLETA (m) | D7: CTD | E7: BANCADA | F7: CTD - BANCADA.
A8: PIR-001 | B8: 12 | C8: 2 | D8: 4.3296 | E8: 4.2321 | F8: =of:=[.D8]-[.E8] -> 0.0975
B9: 10 | C9: 79 | D9: 4.3353 | E9: 4.2146 | F9: =of:=[.D9]-[.E9] -> 0.1207
B10: 8 | C10: 99 | D10: 4.4961 | E10: 4.2321 | F10: =of:=[.D10]-[.E10] -> 0.264
B11: 6 | C11: 150 | D11: 4.0513 | E11: 4.0812 | F11: =of:=[.D11]-[.E11] -> -0.0299
B12: 4 | C12: 598 | D12: 3.7717 | E12: 3.8479 | F12: =of:=[.D12]-[.E12] -> -0.0762
B13: 2 | C13: 1496 | D13: 5.0314 | E13: 4.7608 | F13: =of:=[.D13]-[.E13] -> 0.2706
A14: ESTAÇÃO | B14: GARRAFA | C14: PROFUNDIDADE | D14: OD | E14: OD | F14: DIFERENÇA
B15: Nº | C15: COLETA (m) | D15: CTD | E15: BANCADA | F15: CTD - POR
A16: PIR-003 | B16: 12 | C16: 3 | D16: 4.3295 | E16: 4.488821315 | F16: =of:=[.D16]-[.E16] -> -0.1593213153
B17: 10 | C17: 108 | D17: 4.0266 | E17: 4.207526938 | F17: =of:=[.D17]-[.E17] -> -0.1809269382
B18: 8 | C18: 128 | D18: 3.7935 | E18: 3.659270015 | F18: =of:=[.D18]-[.E18] -> 0.1342299854
B19: 6 | C19: 400 | D19: 2.9854 | E19: 2.995352612 | F19: =of:=[.D19]-[.E19] -> -0.009952611631
B20: 4 | C20: 685 | D20: 3.3149 | E20: 3.356130081 | F20: =of:=[.D20]-[.E20] -> -0.04123008085
B21: 2 | C21: 1493 | D21: 5.1594 | E21: 5.009804641 | F21: =of:=[.D21]-[.E21] -> 0.149595359
A22: ESTAÇÃO | B22: GARRAFA | C22: PROFUNDIDADE | D22: OD | E22: OD | F22: DIFERENÇA
B23: Nº | C23: COLETA (m) | D23: CTD | E23: BANCADA | F23: CTD - POR
A24: PIR-005 | B24: 12 | C24: 3 | D24: 4.3225 | E24: 4.3128108 | F24: =of:=[.D24]-[.E24] -> 0.009689200133
B25: 10 | C25: 95 | D25: 3.9147 | E25: 3.913892669 | F25: =of:=[.D25]-[.E25] -> 0.0008073313004
B26: 8 | C26: 113 | D26: 2.058 | E26: 2.04237118 | F26: =of:=[.D26]-[.E26] -> 0.01562881992
B27: 6 | C27: 495 | D27: 2.8791 | E27: 2.82304492 | F27: =of:=[.D27]-[.E27] -> 0.05605507993
B28: 4 | C28: 698 | D28: 3.322 | E28: 3.351461378 | F28: =of:=[.D28]-[.E28] -> -0.02946137844
B29: 2 | C29: 1470 | D29: 5.0361 | E29: 4.994425842 | F29: =of:=[.D29]-[.E29] -> 0.04167415778
A30: ESTAÇÃO | B30: GARRAFA | C30: PROFUNDIDADE | D30: OD | E30: OD | F30: DIFERENÇA
B31: Nº | C31: COLETA (m) | D31: CTD | E31: BANCADA | F31: CTD - POR
A32: PIR-007 | B32: 12 | C32: 3 | D32: 4.2945 | E32: 4.272374563 | F32: =of:=[.D32]-[.E32] -> 0.02212543669
B33: 10 | C33: 89 | D33: 4.0834 | E33: 4.066114082 | F33: =of:=[.D33]-[.E33] -> 0.01728591759
B34: 8 | C34: 116 | D34: 3.0899 | E34: 3.048988402 | F34: =of:=[.D34]-[.E34] -> 0.0409115978
B35: 6 | C35: 399 | D35: 3.1249 | E35: 3.07162618 | F35: =of:=[.D35]-[.E35] -> 0.0532738198
B36: 4 | C36: 700 | D36: 2.9003 | E36: 2.893509754 | F36: =of:=[.D36]-[.E36] -> 0.00679024576
B37: 2 | C37: 3512 | D37: 5.705 | E37: 5.760806528 | F37: =of:=[.D37]-[.E37] -> -0.05580652813
A38: ESTAÇÃO | B38: GARRAFA | C38: PROFUNDIDADE | D38: OD | E38: OD | F38: DIFERENÇA
B39: Nº | C39: COLETA (m) | D39: CTD | E39: BANCADA | F39: CTD - POR
A40: PIR-015 | B40: 12 | C40: 4 | D40: 4.2879 | E40: 4.455151936 | F40: =of:=[.D40]-[.E40] -> -0.1672519364
B41: 10 | C41: 98 | D41: 2.888 | E41: 2.853957624 | F41: =of:=[.D41]-[.E41] -> 0.03404237588
B42: 8 | C42: 178 | D42: 2.1909 | E42: 2.297187717 | F42: =of:=[.D42]-[.E42] -> -0.1062877172
B43: 6 | C43: 698 | D43: 2.0995 | E43: 2.185821327 | F43: =of:=[.D43]-[.E43] -> -0.08632132729
B44: 4 | C44: 1500 | D44: 4.9432 | E44: 4.946389392 | F44: =of:=[.D44]-[.E44] -> -0.003189392422
B45: 2 | C45: 4003 | D45: 5.4623 | E45: 5.252833092 | F45: =of:=[.D45]-[.E45] -> 0.2094669077
A46: ESTAÇÃO | B46: GARRAFA | C46: PROFUNDIDADE | D46: OD | E46: OD | F46: DIFERENÇA
B47: Nº | C47: COLETA (m) | D47: CTD | E47: BANCADA | F47: CTD - POR
A48: PIR-017 | B48: 12 | C48: 2 | D48: 4.33 | E48: 4.394241656 | F48: =of:=[.D48]-[.E48] -> -0.06424165599
B49: 10 | C49: 1 | D49: 4.3351 | E49: 4.370743038 | F49: =of:=[.D49]-[.E49] -> -0.03564303751
B50: 8 | C50: 17 | D50: 4.3624 | E50: 4.353433164 | F50: =of:=[.D50]-[.E50] -> 0.008966835907
B51: 6 | C51: 142 | D51: 2.1911 | E51: 2.350063486 | F51: =of:=[.D51]-[.E51] -> -0.1589634864
B52: 4 | C52: 597 | D52: 1.8393 | E52: 1.841671263 | F52: =of:=[.D52]-[.E52] -> -0.002371263358
B53: 2 | C53: 1498 | D53: 4.7925 | E53: 4.613779244 | F53: =of:=[.D53]-[.E53] -> 0.1787207559
A54: ESTAÇÃO | B54: GARRAFA | C54: PROFUNDIDADE | D54: OD | E54: OD | F54: DIFERENÇA
B55: Nº | C55: COLETA (m) | D55: CTD | E55: BANCADA | F55: CTD - POR
A56: PIR-019 | B56: 12 | C56: 1 | D56: 4.352 | E56: 4.589768775 | F56: =of:=[.D56]-[.E56] -> -0.2377687745
B57: 10 | C57: 32 | D57: 4.6497 | E57: 4.540367388 | F57: =of:=[.D57]-[.E57] -> 0.1093326115
B58: 8 | C58: 55 | D58: 4.7343 | E58: 4.732955241 | F58: =of:=[.D58]-[.E58] -> 0.001344759136
B59: 6 | C59: 203 | D59: 2.2023 | E59: 2.538036924 | F59: =of:=[.D59]-[.E59] -> -0.3357369236
B60: 4 | C60: 1502 | D60: 4.6521 | E60: 4.496069003 | F60: =of:=[.D60]-[.E60] -> 0.1560309973
B61: 2 | C61: 4080 | D61: 5.4402 | E61: 5.434679827 | F61: =of:=[.D61]-[.E61] -> 0.005520172985
A62: ESTAÇÃO | B62: GARRAFA | C62: PROFUNDIDADE | D62: OD | E62: OD | F62: DIFERENÇA
B63: Nº | C63: COLETA (m) | D63: CTD | E63: BANCADA | F63: CTD - POR
A64: PIR-024 | B64: 12 | C64: 1 | D64: 4.3444 | E64: 4.498550705 | F64: =of:=[.D64]-[.E64] -> -0.154150705
B65: 10 | C65: 106 | D65: 4.1326 | E65: 4.207586623 | F65: =of:=[.D65]-[.E65] -> -0.07498662312
B66: 8 | C66: 501 | D66: 2.9938 | E66: 3.091906341 | F66: =of:=[.D66]-[.E66] -> -0.09810634103
B67: 6 | C67: 762 | D67: 3.5222 | E67: 3.676370494 | F67: =of:=[.D67]-[.E67] -> -0.1541704944
B68: 4 | C68: 1507 | D68: 5.1901 | E68: 5.252833092 | F68: =of:=[.D68]-[.E68] -> -0.06273309231
B69: 2 | C69: 4010 | D69: 5.5508 | E69: 5.564441835 | F69: =of:=[.D69]-[.E69] -> -0.01364183508
A70: ESTAÇÃO | B70: GARRAFA | C70: PROFUNDIDADE | D70: OD | E70: OD | F70: DIFERENÇA
B71: Nº | C71: COLETA (m) | D71: CTD | E71: BANCADA | F71: CTD - POR
A72: PIR-025 | B72: 12 | C72: 1 | D72: 4.3727 | E72: 4.382608677 | F72: =of:=[.D72]-[.E72] -> -0.009908676544
B73: 10 | C73: 93 | D73: 4.2243 | E73: 4.369416878 | F73: =of:=[.D73]-[.E73] -> -0.1451168779
B74: 8 | C74: 706 | D74: 3.2687 | E74: 3.236387946 | F74: =of:=[.D74]-[.E74] -> 0.03231205424
B75: 6 | C75: 1111 | D75: 3.837 | E75: 3.905966732 | F75: =of:=[.D75]-[.E75] -> -0.06896673204
B76: 4 | C76: 2022 | D76: 5.4172 | E76: 5.390133271 | F76: =of:=[.D76]-[.E76] -> 0.02706672894
B77: 2 | C77: 4060 | D77: 5.343 | E77: 5.289965563 | F77: =of:=[.D77]-[.E77] -> 0.0530344373
A78: ESTAÇÃO | B78: GARRAFA | C78: PROFUNDIDADE | D78: OD | E78: OD | F78: DIFERENÇA
B79: Nº | C79: COLETA (m) | D79: CTD | E79: BANCADA | F79: CTD - POR
A80: PIR-027 | B80: 12 | C80: 1 | D80: 4.4301 | E80: 4.404323572 | F80: =of:=[.D80]-[.E80] -> 0.02577642849
B81: 10 | C81: 81 | D81: 4.4406 | E81: 4.44770683 | F81: =of:=[.D81]-[.E81] -> -0.007106829525
B82: 8 | C82: 132 | D82: 4.1153 | E82: 4.150778907 | F82: =of:=[.D82]-[.E82] -> -0.03547890682
B83: 6 | C83: 308 | D83: 2.205 | E83: 2.301336813 | F83: =of:=[.D83]-[.E83] -> -0.09633681319
B84: 4 | C84: 703 | D84: 3.2631 | E84: 3.265485905 | F84: =of:=[.D84]-[.E84] -> -0.00238590501
B85: 2 | C85: 1488 | D85: 4.7985 | E85: 4.788754766 | F85: =of:=[.D85]-[.E85] -> 0.009745234393
A86: ESTAÇÃO | B86: GARRAFA | C86: PROFUNDIDADE | D86: OD | E86: OD | F86: DIFERENÇA
B87: Nº | C87: COLETA (m) | D87: CTD | E87: BANCADA | F87: CTD - POR
A88: PIR-028 | B88: 12 | C88: 6 | D88: 4.4532 | E88: 4.446217808 | F88: =of:=[.D88]-[.E88] -> 0.006982191844
B89: 10 | C89: 134 | D89: 4.3473 | E89: 4.315680268 | F89: =of:=[.D89]-[.E89] -> 0.03161973187
B90: 8 | C90: 306 | D90: 2.5138 | E90: 2.534407434 | F90: =of:=[.D90]-[.E90] -> -0.02060743406
B91: 6 | C91: 504 | D91: 3.324 | E91: 3.314809738 | F91: =of:=[.D91]-[.E91] -> 0.009190262138
B92: 4 | C92: 709 | D92: 3.4634 | E92: 3.461974683 | F92: =of:=[.D92]-[.E92] -> 0.001425316825
B93: 2 | C93: 1517 | D93: 4.7825 | E93: 4.864027898 | F93: =of:=[.D93]-[.E93] -> -0.08152789794
A94: ESTAÇÃO | B94: GARRAFA | C94: PROFUNDIDADE | D94: OD | E94: OD | F94: DIFERENÇA
B95: Nº | C95: COLETA (m) | D95: CTD | E95: BANCADA | F95: CTD - POR
A96: PIR-029 | B96: 12 | C96: 6 | D96: 4.4874 | E96: 4.514177674 | F96: =of:=[.D96]-[.E96] -> -0.02677767408
B97: 10 | C97: 120 | D97: 4.4698 | E97: 4.463388086 | F97: =of:=[.D97]-[.E97] -> 0.006411914182
B98: 8 | C98: 710 | D98: 3.8818 | E98: 3.742949913 | F98: =of:=[.D98]-[.E98] -> 0.1388500866
B99: 6 | C99: 1107 | D99: 4.0764 | E99: 4.080267541 | F99: =of:=[.D99]-[.E99] -> -0.003867540738
B100: 4 | C100: 2019 | D100: 5.5305 | E100: 5.473502957 | F100: =of:=[.D100]-[.E100] -> 0.05699704291
B101: 2 | C101: 4062 | D101: 5.2941 | E101: 5.282582498 | F101: =of:=[.D101]-[.E101] -> 0.01151750158
A102: ESTAÇÃO | B102: GARRAFA | C102: PROFUNDIDADE | D102: OD | E102: OD | F102: DIFERENÇA
B103: Nº | C103: COLETA (m) | D103: CTD | E103: BANCADA | F103: CTD - POR
A104: PIR-030 | B104: 12 | C104: 1502 | D104: 4.4745 | E104: 4.577484348 | F104: =of:=[.D104]-[.E104] -> -0.1029843482
B105: 10 | C105: 712 | D105: 4.5146 | E105: 4.50510395 | F105: =of:=[.D105]-[.E105] -> 0.009496049888
B106: 8 | C106: 533 | D106: 3.9912 | E106: 3.997277865 | F106: =of:=[.D106]-[.E106] -> -0.00607786537
B107: 6 | C107: 253 | D107: 3.166 | E107: 3.164589197 | F107: =of:=[.D107]-[.E107] -> 0.001410803386
B108: 3 | C108: 115 | D108: 4.0632 | E108: 4.079143019 | F108: =of:=[.D108]-[.E108] -> -0.01594301939
B109: 2 | C109: 1 | D109: 4.9013 | E109: 4.910358177 | F109: =of:=[.D109]-[.E109] -> -0.009058177418
A110: ESTAÇÃO | B110: GARRAFA | C110: PROFUNDIDADE | D110: OD | E110: OD | F110: DIFERENÇA
B111: Nº | C111: COLETA (m) | D111: CTD | E111: BANCADA | F111: CTD - POR
A112: PIR-031 | B112: 12 | C112: 1 | D112: 4.5225 | E112: 4.668392205 | F112: =of:=[.D112]-[.E112] -> -0.1458922049
B113: 10 | C113: 161 | D113: 4.4926 | E113: 4.517566749 | F113: =of:=[.D113]-[.E113] -> -0.02496674876
B114: 8 | C114: 199 | D114: 4.2721 | E114: 4.283604266 | F114: =of:=[.D114]-[.E114] -> -0.01150426614
B115: 6 | C115: 449 | D115: 3.4065 | E115: 3.440942256 | F115: =of:=[.D115]-[.E115] -> -0.03444225634
B116: 4 | C116: 702 | D116: 4.1837 | E116: 4.19175026 | F116: =of:=[.D116]-[.E116] -> -0.008050260431
B117: 2 | C117: 1557 | D117: 5.0429 | E117: 5.016233801 | F117: =of:=[.D117]-[.E117] -> 0.02666619898
A118: ESTAÇÃO | B118: GARRAFA | C118: PROFUNDIDADE | D118: OD | E118: OD | F118: DIFERENÇA
B119: Nº | C119: COLETA (m) | D119: CTD | E119: BANCADA | F119: CTD - POR
A120: PIR-033 | B120: 12 | C120: 1 | D120: 4.5539 | E120: 4.549782347 | F120: =of:=[.D120]-[.E120] -> 0.004117653495
B121: 10 | C121: 138 | D121: 4.4991 | E121: 4.468460065 | F121: =of:=[.D121]-[.E121] -> 0.03063993514
B122: 8 | C122: 507 | D122: 4.0054 | E122: 4.094630393 | F122: =of:=[.D122]-[.E122] -> -0.08923039269
B123: 6 | C123: 1008 | D123: 4.1461 | E123: 4.142829704 | F123: =of:=[.D123]-[.E123] -> 0.0032702958
B124: 4 | C124: 2521 | D124: 5.3308 | E124: 5.36948861 | F124: =of:=[.D124]-[.E124] -> -0.0386886102
B125: 2 | C125: 3760 | D125: 5.2519 | E125: 5.242006666 | F125: =of:=[.D125]-[.E125] -> 0.009893333892
A126: ESTAÇÃO | B126: GARRAFA | C126: PROFUNDIDADE | D126: OD | E126: OD | F126: DIFERENÇA
B127: Nº | C127: COLETA (m) | D127: CTD | E127: BANCADA | F127: CTD - POR
A128: PIR-033 | B128: 12 | F128: =of:=[.D128]-[.E128] -> 0
B129: 10 | F129: =of:=[.D129]-[.E129] -> 0
B130: 8 | F130: =of:=[.D130]-[.E130] -> 0
B131: 6 | F131: =of:=[.D131]-[.E131] -> 0
B132: 4 | F132: =of:=[.D132]-[.E132] -> 0
B133: 2 | F133: =of:=[.D133]-[.E133] -> 0
A134: ESTAÇÃO | B134: GARRAFA | C134: PROFUNDIDADE | D134: OD | E134: OD | F134: DIFERENÇA
B135: Nº | C135: COLETA (m) | D135: CTD | E135: BANCADA | F135: CTD - POR
A136: OCS-4 017 | B136: 8 | C136: 1 | D136: 3.5602 | E136: 3.91 | F136: =of:=[.D136]-[.E136] -> -0.3498
B137: 7 | C137: 40 | D137: 3.5386 | E137: 4.08 | F137: =of:=[.D137]-[.E137] -> -0.5414
B138: 6 | C138: 150 | D138: 3.243 | E138: 4.18 | F138: =of:=[.D138]-[.E138] -> -0.937
B139: 5 | C139: 400 | D139: 3.0898 | E139: 3.61 | F139: =of:=[.D139]-[.E139] -> -0.5202
B140: 4 | C140: 830 | D140: 2.8102 | E140: 4.28 | F140: =of:=[.D140]-[.E140] -> -1.4698
B141: 3 | C141: 1500 | D141: 2.0852 | E141: 3.36 | F141: =of:=[.D141]-[.E141] -> -1.2748
B142: 2 | C142: 2100 | D142: 2.3101 | E142: 4.01 | F142: =of:=[.D142]-[.E142] -> -1.6999
B143: 1 | C143: 2680 | D143: 2.2787 | E143: 3.56 | F143: =of:=[.D143]-[.E143] -> -1.2813
A144: ESTAÇÃO | B144: GARRAFA | C144: PROFUNDIDADE | D144: OD | E144: OD | F144: DIFERENÇA
B145: Nº | C145: COLETA (m) | D145: CTD | E145: BANCADA | F145: CTD - POR
A146: OCS-4 018 | B146: 6 | C146: 1 | D146: 3.6056 | E146: 3.64 | F146: =of:=[.D146]-[.E146] -> -0.0344
B147: 5 | C147: 50 | D147: 3.5096 | E147: 3.61 | F147: =of:=[.D147]-[.E147] -> -0.1004
B148: 4 | C148: 75 | D148: 3.2195 | E148: 3.73 | F148: =of:=[.D148]-[.E148] -> -0.5105
B149: 3 | C149: 95 | D149: 2.9747 | E149: 3.49 | F149: =of:=[.D149]-[.E149] -> -0.5153
B150: 2 | C150: 115 | D150: 2.9203 | E150: 3.54 | F150: =of:=[.D150]-[.E150] -> -0.6197
B151: 1 | C151: 125 | D151: 2.9207 | E151: 3.56 | F151: =of:=[.D151]-[.E151] -> -0.6393
A152: ESTAÇÃO | B152: GARRAFA | C152: PROFUNDIDADE | D152: OD | E152: OD | F152: DIFERENÇA
B153: Nº | C153: COLETA (m) | D153: CTD | E153: BANCADA | F153: CTD - POR
A154: OCS-4 019 | B154: 6 | C154: 2 | D154: 3.5639 | E154: 3.61 | F154: =of:=[.D154]-[.E154] -> -0.0461
B155: 5 | C155: 25 | D155: 3.5654 | E155: 3.64 | F155: =of:=[.D155]-[.E155] -> -0.0746
B156: 4 | C156: 50 | D156: 3.5148 | E156: 3.68 | F156: =of:=[.D156]-[.E156] -> -0.1652
B157: 3 | C157: 80 | D157: 3.0855 | E157: 3.46 | F157: =of:=[.D157]-[.E157] -> -0.3745
B158: 2 | C158: 110 | D158: 2.969 | E158: 3.39 | F158: =of:=[.D158]-[.E158] -> -0.421
B159: 1 | C159: 120 | D159: 2.9661 | E159: 3.41 | F159: =of:=[.D159]-[.E159] -> -0.4439
A160: ESTAÇÃO | B160: GARRAFA | C160: PROFUNDIDADE | D160: OD | E160: OD | F160: DIFERENÇA
B161: Nº | C161: COLETA (m) | D161: CTD | E161: BANCADA | F161: CTD - POR
A162: OCS-4 020 | B162: 6 | C162: 2 | D162: 3.5491 | E162: 3.71 | F162: =of:=[.D162]-[.E162] -> -0.1609
B163: 5 | C163: 20 | D163: 3.5484 | E163: 3.68 | F163: =of:=[.D163]-[.E163] -> -0.1316
B164: 4 | C164: 40 | D164: 3.476 | E164: 3.59 | F164: =of:=[.D164]-[.E164] -> -0.114
B165: 3 | C165: 60 | D165: 3.3198 | E165: 3.46 | F165: =of:=[.D165]-[.E165] -> -0.1402
B166: 2 | C166: 120 | D166: 3.1358 | E166: 3.49 | F166: =of:=[.D166]-[.E166] -> -0.3542
B167: 1 | C167: 148 | D167: 3.007 | E167: 3.34 | F167: =of:=[.D167]-[.E167] -> -0.333
A168: ESTAÇÃO | B168: GARRAFA | C168: PROFUNDIDADE | D168: OD | E168: OD | F168: DIFERENÇA
B169: Nº | C169: COLETA (m) | D169: CTD | E169: BANCADA | F169: CTD - POR
A170: OCS-4 021 | B170: 8 | C170: 1 | D170: 3.6393 | E170: 3.73 | F170: =of:=[.D170]-[.E170] -> -0.0907
B171: 7 | C171: 20 | D171: 3.6187 | E171: 3.71 | F171: =of:=[.D171]-[.E171] -> -0.0913
B172: 6 | C172: 120 | D172: 3.4835 | E172: 3.51 | F172: =of:=[.D172]-[.E172] -> -0.0265
B173: 5 | C173: 400 | D173: 2.9527 | E173: 3.36 | F173: =of:=[.D173]-[.E173] -> -0.4073
B174: 4 | C174: 680 | D174: 2.5839 | E174: 3.21 | F174: =of:=[.D174]-[.E174] -> -0.6261
B175: 3 | C175: 780 | D175: 2.4926 | E175: 3.12 | F175: =of:=[.D175]-[.E175] -> -0.6274
B176: 2 | C176: 1464 | D176: 2.1886 | E176: 3.14 | F176: =of:=[.D176]-[.E176] -> -0.9514
B177: 1 | C177: 2148 | D177: 2.3659 | E177: 3.07 | F177: =of:=[.D177]-[.E177] -> -0.7041
A178: ESTAÇÃO | B178: GARRAFA | C178: PROFUNDIDADE | D178: OD | E178: OD | F178: DIFERENÇA
B179: Nº | C179: COLETA (m) | D179: CTD | E179: BANCADA | F179: CTD - POR
A180: OCS-4 022 | B180: 8 | C180: 1 | D180: 3.6039 | E180: 2.68 | F180: =of:=[.D180]-[.E180] -> 0.9239
B181: 7 | C181: 15 | D181: 3.6058 | E181: 3.71 | F181: =of:=[.D181]-[.E181] -> -0.1042
B182: 6 | C182: 85 | D182: 3.3205 | E182: 3.41 | F182: =of:=[.D182]-[.E182] -> -0.0895
B183: 5 | C183: 350 | D183: 3.0574 | E183: 3.51 | F183: =of:=[.D183]-[.E183] -> -0.4526
B184: 4 | C184: 740 | D184: 2.7332 | E184: 3.17 | F184: =of:=[.D184]-[.E184] -> -0.4368
B185: 3 | C185: 900 | D185: 2.5746 | E185: 3.24 | F185: =of:=[.D185]-[.E185] -> -0.6654
B186: 2 | C186: 1740 | D186: 2.1881 | E186: 3.19 | F186: =of:=[.D186]-[.E186] -> -1.0019
B187: 1 | C187: 3100 | D187: 2.172 | E187: 2.99 | F187: =of:=[.D187]-[.E187] -> -0.818
A188: ESTAÇÃO | B188: GARRAFA | C188: PROFUNDIDADE | D188: OD | E188: OD | F188: DIFERENÇA
B189: Nº | C189: COLETA (m) | D189: CTD | E189: BANCADA | F189: CTD - POR
A190: OCS-4 023 | B190: 8 | C190: 1 | D190: 3.578 | E190: 3.78 | F190: =of:=[.D190]-[.E190] -> -0.202
B191: 7 | C191: 20 | D191: 3.5947 | E191: 3.81 | F191: =of:=[.D191]-[.E191] -> -0.2153
B192: 6 | C192: 40 | D192: 3.6085 | E192: 3.91 | F192: =of:=[.D192]-[.E192] -> -0.3015
B193: 5 | C193: 250 | D193: 3.14 | E193: 3.51 | F193: =of:=[.D193]-[.E193] -> -0.37
B194: 4 | C194: 750 | D194: 2.5586 | E194: 3.21 | F194: =of:=[.D194]-[.E194] -> -0.6514
B195: 3 | C195: 970 | D195: 2.3638 | E195: 3.14 | F195: =of:=[.D195]-[.E195] -> -0.7762
B196: 2 | C196: 1800 | D196: 2.2144 | E196: 3.04 | F196: =of:=[.D196]-[.E196] -> -0.8256
B197: 1 | C197: 2730 | D197: 2.2018 | E197: 3.07 | F197: =of:=[.D197]-[.E197] -> -0.8682
A198: ESTAÇÃO | B198: GARRAFA | C198: PROFUNDIDADE | D198: OD | E198: OD | F198: DIFERENÇA
B199: Nº | C199: COLETA (m) | D199: CTD | E199: BANCADA | F199: CTD - POR
A200: OCS-4 024 | B200: 6 | C200: 1 | D200: 3.5428 | E200: 3.59 | F200: =of:=[.D200]-[.E200] -> -0.0472
B201: 5 | C201: 25 | D201: 3.5581 | E201: 3.71 | F201: =of:=[.D201]-[.E201] -> -0.1519
B202: 4 | C202: 40 | D202: 3.5607 | E202: 3.56 | F202: =of:=[.D202]-[.E202] -> 0.0007
B203: 3 | C203: 290 | D203: 3.1414 | E203: 3.51 | F203: =of:=[.D203]-[.E203] -> -0.3686
... 178 more rows
